Organisation Name,Organisation Code,Effective Date,Directorate  Where Expenditure Incurred,Supplier Name,Payment Date,Transaction Number,Gross Amount,Purpose of Spend,Merchant Category,Card Transaction
WALSALL COUNCIL,HTTP://OPENDATACOMMUNITIES.ORG/ID/METROPOLITAN-DISTRICT-COUNCIL/WALSALL,30/06/2020,CHILDRENS SERVICES,AMZNMKTPLACE,01/04/2020,H59620200402AQYTVFGQO-1,7.74,TRANSITION AND LEAVING CARE PL-PURCHASE OF FURNITURE & EQUIPM,MISCELLANEOUS AND SPECIALTY RETAIL STORES,GPC
WALSALL COUNCIL,HTTP://OPENDATACOMMUNITIES.ORG/ID/METROPOLITAN-DISTRICT-COUNCIL/WALSALL,30/06/2020,CHILDRENS SERVICES,BLOCKHALL CONVENIENCE,01/04/2020,H59620200402BFCWCQNLW-1,5.46,ADOLESCENT SERVICE-FOOD & DRINK SUPPLIES,GROCERY STORES AND SUPERMARKETS,GPC
WALSALL COUNCIL,HTTP://OPENDATACOMMUNITIES.ORG/ID/METROPOLITAN-DISTRICT-COUNCIL/WALSALL,30/06/2020,CHILDRENS SERVICES,CURRYS ONLINE,01/04/2020,H59620200402BHUSGPDKG-1,24.99,ADOLESCENT SERVICE-STATIONERY & GENERAL OFFICE SU,ELECTRONIC SALES,GPC
WALSALL COUNCIL,HTTP://OPENDATACOMMUNITIES.ORG/ID/METROPOLITAN-DISTRICT-COUNCIL/WALSALL,30/06/2020,CHILDRENS SERVICES,NISA LOCAL,01/04/2020,H59620200402BYZXZXPQP-1,2.65,REDRUTH ROAD-FOOD & DRINK SUPPLIES,MISCELLANEOUS FOOD STORES & CONVENIENCE STORES,GPC
WALSALL COUNCIL,HTTP://OPENDATACOMMUNITIES.ORG/ID/METROPOLITAN-DISTRICT-COUNCIL/WALSALL,30/06/2020,CHILDRENS SERVICES,GEN REGISTER OFFICE,01/04/2020,H59620200402CKVUCLJUM-1,14.00,SAFEGUARDING & FAMILY SUPPORT-FEES & LICENCES,GOVERNMENT SERVICES,GPC
WALSALL COUNCIL,HTTP://OPENDATACOMMUNITIES.ORG/ID/METROPOLITAN-DISTRICT-COUNCIL/WALSALL,30/06/2020,ECONOMY & ENVIRONMENT,SQ *T.MORGAN & SONS(LOCK,01/04/2020,H59620200402CVJKJFCDJ-1,162.96,FLEET-MATERIALS,"GENERAL CONTRACTORS, RESIDENTIAL AND COMMERCIAL",GPC
WALSALL COUNCIL,HTTP://OPENDATACOMMUNITIES.ORG/ID/METROPOLITAN-DISTRICT-COUNCIL/WALSALL,30/06/2020,RESOURCES & TRANSFORMATION,AMZNMKTPLACE,01/04/2020,H59620200402CVYDLPOCW-1,34.89,COMMUNICATIONS-STATIONERY & GENERAL OFFICE SU,MISCELLANEOUS AND SPECIALTY RETAIL STORES,GPC
WALSALL COUNCIL,HTTP://OPENDATACOMMUNITIES.ORG/ID/METROPOLITAN-DISTRICT-COUNCIL/WALSALL,30/06/2020,CHILDRENS SERVICES,TRAVELODGE GB0000,01/04/2020,H59620200402DKPNEFUOO-1,-328.00,INITIAL RESPONSE SERVICE-HOTEL ACCOMMODATION-EMPLOYEES,TRAVELODGE,GPC
WALSALL COUNCIL,HTTP://OPENDATACOMMUNITIES.ORG/ID/METROPOLITAN-DISTRICT-COUNCIL/WALSALL,30/06/2020,CHILDRENS SERVICES - SCHOOLS,AMAZON.CO.UK*IO9AJ00X5,01/04/2020,H59620200402FVOWNEYGJ-1,17.96,ICT LEARNING RESOURCES-MATERIALS,OTHER DIRECT MARKETING-OTHER DIRECT MARKETERS,GPC
WALSALL COUNCIL,HTTP://OPENDATACOMMUNITIES.ORG/ID/METROPOLITAN-DISTRICT-COUNCIL/WALSALL,30/06/2020,ADULT SOCIAL CARE,WWW.ADASS.ORG.UK,01/04/2020,H59620200402GTRLYRQYV-1,324.00,SENIOR MANAGEMENT TEAM-EXTERNAL TRAINING,"ORGANIZATIONS, CHARITABLE AND SOCIAL SERVICE",GPC
WALSALL COUNCIL,HTTP://OPENDATACOMMUNITIES.ORG/ID/METROPOLITAN-DISTRICT-COUNCIL/WALSALL,30/06/2020,CHILDRENS SERVICES,ONE STOP 6168,01/04/2020,H59620200402HJJNTFJGC-1,2.45,57 LICHFIELD ROAD-FOOD & DRINK SUPPLIES,GROCERY STORES AND SUPERMARKETS,GPC
WALSALL COUNCIL,HTTP://OPENDATACOMMUNITIES.ORG/ID/METROPOLITAN-DISTRICT-COUNCIL/WALSALL,30/06/2020,CHILDRENS SERVICES,CO-OPERATIVE FOOD,01/04/2020,H59620200402HOOTBDDBU-1,2.58,ADOLESCENT SERVICE-FOOD & DRINK SUPPLIES,GROCERY STORES AND SUPERMARKETS,GPC
WALSALL COUNCIL,HTTP://OPENDATACOMMUNITIES.ORG/ID/METROPOLITAN-DISTRICT-COUNCIL/WALSALL,30/06/2020,RESOURCES & TRANSFORMATION,ARTHUR BRETT CATER,01/04/2020,H59620200402IGNLUTBCF-1,8.87,CA LINDENS PRIMARY SCHOOL-FOOD & DRINK SUPPLIES,MISCELLANEOUS FOOD STORES & CONVENIENCE STORES,GPC
WALSALL COUNCIL,HTTP://OPENDATACOMMUNITIES.ORG/ID/METROPOLITAN-DISTRICT-COUNCIL/WALSALL,30/06/2020,CHILDRENS SERVICES,B&M RETAIL,01/04/2020,H59620200402JBMNVUCOB-1,14.97,FAMILY PLACEMENTS-CLEANING MATERIALS,DISCOUNT STORES,GPC
WALSALL COUNCIL,HTTP://OPENDATACOMMUNITIES.ORG/ID/METROPOLITAN-DISTRICT-COUNCIL/WALSALL,30/06/2020,CHILDRENS SERVICES,GIFFGAFF,01/04/2020,H59620200402JFGWNPMLX-1,10.00,ADMINISTRATIVE SUPPLIES-LANDLINE PHONES,TELECOMMUNICATION SERVICES,GPC
WALSALL COUNCIL,HTTP://OPENDATACOMMUNITIES.ORG/ID/METROPOLITAN-DISTRICT-COUNCIL/WALSALL,30/06/2020,RESOURCES & TRANSFORMATION,ARTHUR BRETT CATER,01/04/2020,H59620200402JOVSONCKD-1,18.80,CA RADLEYS PRIMARY SCHOOL-FOOD & DRINK SUPPLIES,MISCELLANEOUS FOOD STORES & CONVENIENCE STORES,GPC
WALSALL COUNCIL,HTTP://OPENDATACOMMUNITIES.ORG/ID/METROPOLITAN-DISTRICT-COUNCIL/WALSALL,30/06/2020,ECONOMY & ENVIRONMENT,P. F JONES (DIESEL SERVIC,01/04/2020,H59620200402JQITWKGTP-1,234.00,FLEET-MATERIALS,"AUTOMOTIVE PARTS, ACCESSORIES STORES",GPC
WALSALL COUNCIL,HTTP://OPENDATACOMMUNITIES.ORG/ID/METROPOLITAN-DISTRICT-COUNCIL/WALSALL,30/06/2020,RESOURCES & TRANSFORMATION,ARTHUR BRETT CATER,01/04/2020,H59620200402MFTBKEVYY-1,11.02,CA CASTLEFORT JMI SCHOOL-FOOD & DRINK SUPPLIES,MISCELLANEOUS FOOD STORES & CONVENIENCE STORES,GPC
WALSALL COUNCIL,HTTP://OPENDATACOMMUNITIES.ORG/ID/METROPOLITAN-DISTRICT-COUNCIL/WALSALL,30/06/2020,ECONOMY & ENVIRONMENT,SOUTHCOMBE BROTHERS LT,01/04/2020,H59620200402MNRDXSVBK-1,162.00,CEMETERIES CENTRAL ADMINISTRAT-MATERIALS,WOMENS ACCESSORY AND SPECIALTY STORES,GPC
WALSALL COUNCIL,HTTP://OPENDATACOMMUNITIES.ORG/ID/METROPOLITAN-DISTRICT-COUNCIL/WALSALL,30/06/2020,RESOURCES & TRANSFORMATION,AMZNMKTPLACE,01/04/2020,H59620200402NEDXTEISN-1,34.89,COMMUNICATIONS-STATIONERY & GENERAL OFFICE SU,MISCELLANEOUS AND SPECIALTY RETAIL STORES,GPC
WALSALL COUNCIL,HTTP://OPENDATACOMMUNITIES.ORG/ID/METROPOLITAN-DISTRICT-COUNCIL/WALSALL,30/06/2020,RESOURCES & TRANSFORMATION,ARTHUR BRETT CATER,01/04/2020,H59620200402PFCCPSITN-1,56.70,CA ELMWOOD SPECIAL SCHOOL-FOOD & DRINK SUPPLIES,MISCELLANEOUS FOOD STORES & CONVENIENCE STORES,GPC
WALSALL COUNCIL,HTTP://OPENDATACOMMUNITIES.ORG/ID/METROPOLITAN-DISTRICT-COUNCIL/WALSALL,30/06/2020,CHILDRENS SERVICES,GEN REGISTER OFFICE,01/04/2020,H59620200402SWXSGYNGV-1,56.00,SAFEGUARDING & FAMILY SUPPORT-FEES & LICENCES,GOVERNMENT SERVICES,GPC
WALSALL COUNCIL,HTTP://OPENDATACOMMUNITIES.ORG/ID/METROPOLITAN-DISTRICT-COUNCIL/WALSALL,30/06/2020,RESOURCES & TRANSFORMATION,WWW.SCC.COM,01/04/2020,H59620200402TGWDPBVCG-1,1010.40,RECHARGEABLE EQUIPMENT-COMPUTER EQUIPMENT,"COMPUTERS, COMPUTER PERIPHERAL EQUIPMENT, SOFTWARE",GPC
WALSALL COUNCIL,HTTP://OPENDATACOMMUNITIES.ORG/ID/METROPOLITAN-DISTRICT-COUNCIL/WALSALL,30/06/2020,CHILDRENS SERVICES,AMZNMKTPLACE AMAZON.CO.UK,01/04/2020,H59620200402UIXYGPSXW-1,22.99,VIRTUAL SCHOOL - CENTRAL PUPIL-OTHER EXPENSES,MISCELLANEOUS AND SPECIALTY RETAIL STORES,GPC
WALSALL COUNCIL,HTTP://OPENDATACOMMUNITIES.ORG/ID/METROPOLITAN-DISTRICT-COUNCIL/WALSALL,30/06/2020,RESOURCES & TRANSFORMATION,WWW.SCC.COM,01/04/2020,H59620200402UPRHIFBNM-1,1893.60,RECHARGEABLE EQUIPMENT-COMPUTER EQUIPMENT,"COMPUTERS, COMPUTER PERIPHERAL EQUIPMENT, SOFTWARE",GPC
WALSALL COUNCIL,HTTP://OPENDATACOMMUNITIES.ORG/ID/METROPOLITAN-DISTRICT-COUNCIL/WALSALL,30/06/2020,RESOURCES & TRANSFORMATION,AMZNMKTPLACE AMAZON.CO.UK,01/04/2020,H59620200402UVAUCAMBO-1,34.89,COMMUNICATIONS-STATIONERY & GENERAL OFFICE SU,MISCELLANEOUS AND SPECIALTY RETAIL STORES,GPC
WALSALL COUNCIL,HTTP://OPENDATACOMMUNITIES.ORG/ID/METROPOLITAN-DISTRICT-COUNCIL/WALSALL,30/06/2020,ECONOMY & ENVIRONMENT,WWW.BANNERUK.COM,01/04/2020,H59620200402VMEGNTZNB-1,66.53,CIVIC LEADERSHIP AND MOBILISIN-STATIONERY & GENERAL OFFICE SU,"STATIONERY, OFFICE SUPPLIES AND WRITING PAPER",GPC
WALSALL COUNCIL,HTTP://OPENDATACOMMUNITIES.ORG/ID/METROPOLITAN-DISTRICT-COUNCIL/WALSALL,30/06/2020,CHILDRENS SERVICES,AMZN DIGITAL,01/04/2020,H59620200402VQXGSFNLQ-1,55.99,"43A HILTON ROAD, WILLENHALL-FEES & LICENCES","DIGITAL GOODS - MEDIA, BOOKS, MOVIES, MUSIC",GPC
WALSALL COUNCIL,HTTP://OPENDATACOMMUNITIES.ORG/ID/METROPOLITAN-DISTRICT-COUNCIL/WALSALL,30/06/2020,CHILDRENS SERVICES,AMZNMKTPLACE AMAZON.CO.UK,01/04/2020,H59620200402XQPIQQMME-1,22.99,VIRTUAL SCHOOL - CENTRAL PUPIL-OTHER EXPENSES,MISCELLANEOUS AND SPECIALTY RETAIL STORES,GPC
WALSALL COUNCIL,HTTP://OPENDATACOMMUNITIES.ORG/ID/METROPOLITAN-DISTRICT-COUNCIL/WALSALL,30/06/2020,CHILDRENS SERVICES,AMZNMKTPLACE AMAZON.CO.UK,01/04/2020,H59620200402XSRNKRPKC-1,41.99,TRANSITION AND LEAVING CARE PL-PURCHASE OF FURNITURE & EQUIPM,MISCELLANEOUS AND SPECIALTY RETAIL STORES,GPC
WALSALL COUNCIL,HTTP://OPENDATACOMMUNITIES.ORG/ID/METROPOLITAN-DISTRICT-COUNCIL/WALSALL,30/06/2020,RESOURCES & TRANSFORMATION,ARTHUR BRETT CATER,01/04/2020,H59620200402YLMOCCUTI-1,11.97,CA MOORCROFT WOOD-FOOD & DRINK SUPPLIES,MISCELLANEOUS FOOD STORES & CONVENIENCE STORES,GPC
WALSALL COUNCIL,HTTP://OPENDATACOMMUNITIES.ORG/ID/METROPOLITAN-DISTRICT-COUNCIL/WALSALL,30/06/2020,CHILDRENS SERVICES,CO-OPERATIVE FOOD,01/04/2020,H59620200402ZKFKPOPWQ-1,1.00,ADOLESCENT SERVICE-FOOD & DRINK SUPPLIES,GROCERY STORES AND SUPERMARKETS,GPC
WALSALL COUNCIL,HTTP://OPENDATACOMMUNITIES.ORG/ID/METROPOLITAN-DISTRICT-COUNCIL/WALSALL,30/06/2020,RESOURCES & TRANSFORMATION,REMOVALS.CO.UK,02/04/2020,H59620200403AXTNDDYEO-1,99.22,CATERING - MANAGEMENT-TRANSPORTATION-PRIV CONTRACTOR,MOTOR FREIGHT CARRIERS,GPC
WALSALL COUNCIL,HTTP://OPENDATACOMMUNITIES.ORG/ID/METROPOLITAN-DISTRICT-COUNCIL/WALSALL,30/06/2020,CHILDRENS SERVICES,NISA LOCAL,02/04/2020,H59620200403BXCJBHISG-1,7.88,REDRUTH ROAD-FOOD & DRINK SUPPLIES,MISCELLANEOUS FOOD STORES & CONVENIENCE STORES,GPC
WALSALL COUNCIL,HTTP://OPENDATACOMMUNITIES.ORG/ID/METROPOLITAN-DISTRICT-COUNCIL/WALSALL,30/06/2020,RESOURCES & TRANSFORMATION,WILKO RETAIL LIMITED,02/04/2020,H59620200403CLNCMZGVL-1,12.00,ROUGH SLEEPING INITIATIVE GRAN-CRISIS SUPPORT PAYMENTS,MISCELLANEOUS GENERAL MERCHANDISE,GPC
WALSALL COUNCIL,HTTP://OPENDATACOMMUNITIES.ORG/ID/METROPOLITAN-DISTRICT-COUNCIL/WALSALL,30/06/2020,CHILDRENS SERVICES,WM MORRISONS STORE,02/04/2020,H59620200403DIYPBEFOE-1,24.65,"43A HILTON ROAD, WILLENHALL-FOOD & DRINK SUPPLIES",GROCERY STORES AND SUPERMARKETS,GPC
WALSALL COUNCIL,HTTP://OPENDATACOMMUNITIES.ORG/ID/METROPOLITAN-DISTRICT-COUNCIL/WALSALL,30/06/2020,CHILDRENS SERVICES,WM MORRISONS STORE,02/04/2020,H59620200403DIYPBEFOE-2,81.41,"43A HILTON ROAD, WILLENHALL-FOOD & DRINK SUPPLIES",GROCERY STORES AND SUPERMARKETS,GPC
WALSALL COUNCIL,HTTP://OPENDATACOMMUNITIES.ORG/ID/METROPOLITAN-DISTRICT-COUNCIL/WALSALL,30/06/2020,CHILDRENS SERVICES,ASDA GROCERIES ONLINE,02/04/2020,H59620200403EOBJEQAWG-1,93.44,SAFEGUARDING & FAMILY SUPPORT-FOOD & DRINK SUPPLIES,GROCERY STORES AND SUPERMARKETS,GPC
WALSALL COUNCIL,HTTP://OPENDATACOMMUNITIES.ORG/ID/METROPOLITAN-DISTRICT-COUNCIL/WALSALL,30/06/2020,CHILDRENS SERVICES,W M MORRISON STORE,02/04/2020,H59620200403EXLKEVVFO-1,4.00,57 LICHFIELD ROAD-CLEANING MATERIALS,GROCERY STORES AND SUPERMARKETS,GPC
WALSALL COUNCIL,HTTP://OPENDATACOMMUNITIES.ORG/ID/METROPOLITAN-DISTRICT-COUNCIL/WALSALL,30/06/2020,CHILDRENS SERVICES,SAINSBURYS S/MKT,02/04/2020,H59620200403FDHXOMODP-1,14.50,REDRUTH ROAD-RESIDENTS PERSONAL EXPENSES-AL,GROCERY STORES AND SUPERMARKETS,GPC
WALSALL COUNCIL,HTTP://OPENDATACOMMUNITIES.ORG/ID/METROPOLITAN-DISTRICT-COUNCIL/WALSALL,30/06/2020,RESOURCES & TRANSFORMATION,AMZNMKTPLACE AMAZON.CO.UK,02/04/2020,H59620200403FNIUNFYPC-1,33.40,AREA PARTNERSHIPS-STATIONERY & GENERAL OFFICE SU,MISCELLANEOUS AND SPECIALTY RETAIL STORES,GPC
WALSALL COUNCIL,HTTP://OPENDATACOMMUNITIES.ORG/ID/METROPOLITAN-DISTRICT-COUNCIL/WALSALL,30/06/2020,CHILDRENS SERVICES,ARGOS LTD,02/04/2020,H59620200403GCQXWDDUJ-1,114.98,FAMILY PLACEMENTS-FOSTER CARERS OTHER ALLOWANCES,DISCOUNT STORES,GPC
WALSALL COUNCIL,HTTP://OPENDATACOMMUNITIES.ORG/ID/METROPOLITAN-DISTRICT-COUNCIL/WALSALL,30/06/2020,RESOURCES & TRANSFORMATION,CHICKEN JOES LTD,02/04/2020,H59620200403HDNUTGWDA-1,36.48,CA LEIGHSWOOD PRIMARY SCHOOL-FOOD & DRINK SUPPLIES,CATERERS,GPC
WALSALL COUNCIL,HTTP://OPENDATACOMMUNITIES.ORG/ID/METROPOLITAN-DISTRICT-COUNCIL/WALSALL,30/06/2020,CHILDRENS SERVICES - SCHOOLS,THE K  TRADING,02/04/2020,H59620200403HUOVQVUON-1,-156.16,ALUMWELL JUNIOR SCHOOL-MATERIALS,,GPC
WALSALL COUNCIL,HTTP://OPENDATACOMMUNITIES.ORG/ID/METROPOLITAN-DISTRICT-COUNCIL/WALSALL,30/06/2020,CHILDRENS SERVICES,SAINSBURYS SMKT,02/04/2020,H59620200403IFHPIYVPW-1,2.45,"43A HILTON ROAD, WILLENHALL-FOOD & DRINK SUPPLIES",GROCERY STORES AND SUPERMARKETS,GPC
WALSALL COUNCIL,HTTP://OPENDATACOMMUNITIES.ORG/ID/METROPOLITAN-DISTRICT-COUNCIL/WALSALL,30/06/2020,CHILDRENS SERVICES,SAINSBURYS SMKT,02/04/2020,H59620200403IFHPIYVPW-2,6.00,"43A HILTON ROAD, WILLENHALL-FOOD & DRINK SUPPLIES",GROCERY STORES AND SUPERMARKETS,GPC
WALSALL COUNCIL,HTTP://OPENDATACOMMUNITIES.ORG/ID/METROPOLITAN-DISTRICT-COUNCIL/WALSALL,30/06/2020,RESOURCES & TRANSFORMATION,CHICKEN JOES LTD,02/04/2020,H59620200403JAOCEIFNA-1,91.46,CA RADLEYS PRIMARY SCHOOL-FOOD & DRINK SUPPLIES,CATERERS,GPC
WALSALL COUNCIL,HTTP://OPENDATACOMMUNITIES.ORG/ID/METROPOLITAN-DISTRICT-COUNCIL/WALSALL,30/06/2020,RESOURCES & TRANSFORMATION,SPAR PELSALL,02/04/2020,H59620200403KWUMGTEWR-1,49.00,WALSALL CRISIS SUPPORT SCHEME-CRISIS SUPPORT PAYMENTS,GROCERY STORES AND SUPERMARKETS,GPC
WALSALL COUNCIL,HTTP://OPENDATACOMMUNITIES.ORG/ID/METROPOLITAN-DISTRICT-COUNCIL/WALSALL,30/06/2020,CHILDRENS SERVICES - SCHOOLS,FOREIGN EXCHANGE FEE,02/04/2020,H59620200403LCTODFXRN-1,-4.29,ALUMWELL JUNIOR SCHOOL-OTHER TRAVEL ALLOWANCES,,GPC
WALSALL COUNCIL,HTTP://OPENDATACOMMUNITIES.ORG/ID/METROPOLITAN-DISTRICT-COUNCIL/WALSALL,30/06/2020,RESOURCES & TRANSFORMATION,BLAKEMORE FOODSERVICE,02/04/2020,H59620200403LEUIXZGOP-1,-55.16,CA ST MICHAELS C.E. PRIMARY SC-FOOD & DRINK SUPPLIES,CATERERS,GPC
WALSALL COUNCIL,HTTP://OPENDATACOMMUNITIES.ORG/ID/METROPOLITAN-DISTRICT-COUNCIL/WALSALL,30/06/2020,RESOURCES & TRANSFORMATION,BLAKEMORE FOODSERVICE,02/04/2020,H59620200403LOTDPRXCO-1,349.68,REDUNDANT BUILDINGS-CATERING & REFRESHMENTS,CATERERS,GPC
WALSALL COUNCIL,HTTP://OPENDATACOMMUNITIES.ORG/ID/METROPOLITAN-DISTRICT-COUNCIL/WALSALL,30/06/2020,RESOURCES & TRANSFORMATION,BLAKEMORE FOODSERVICE,02/04/2020,H59620200403LUXXYECGK-1,-8.83,CA ST MICHAELS C.E. PRIMARY SC-FOOD & DRINK SUPPLIES,CATERERS,GPC
WALSALL COUNCIL,HTTP://OPENDATACOMMUNITIES.ORG/ID/METROPOLITAN-DISTRICT-COUNCIL/WALSALL,30/06/2020,RESOURCES & TRANSFORMATION,CHICKEN JOES LTD,02/04/2020,H59620200403MFIEPSJRB-1,85.87,CATERING - SCHOOLS-FOOD & DRINK SUPPLIES,CATERERS,GPC
WALSALL COUNCIL,HTTP://OPENDATACOMMUNITIES.ORG/ID/METROPOLITAN-DISTRICT-COUNCIL/WALSALL,30/06/2020,RESOURCES & TRANSFORMATION,AMZNMKTPLACE,02/04/2020,H59620200403MGEPBSVUB-1,9.95,COMMUNICATIONS-STATIONERY & GENERAL OFFICE SU,MISCELLANEOUS AND SPECIALTY RETAIL STORES,GPC
WALSALL COUNCIL,HTTP://OPENDATACOMMUNITIES.ORG/ID/METROPOLITAN-DISTRICT-COUNCIL/WALSALL,30/06/2020,ECONOMY & ENVIRONMENT,FOREIGN EXCHANGE FEE,02/04/2020,H59620200403MHIJKPSTQ-1,0.25,NEW ART GALLERY - ADMIN-POSTAGES & COURIER SERVICES,,GPC
WALSALL COUNCIL,HTTP://OPENDATACOMMUNITIES.ORG/ID/METROPOLITAN-DISTRICT-COUNCIL/WALSALL,30/06/2020,RESOURCES & TRANSFORMATION,CHICKEN JOES LTD,02/04/2020,H59620200403NCPTTZHDQ-1,91.53,CA BARCROFT D/C-FOOD & DRINK SUPPLIES,CATERERS,GPC
WALSALL COUNCIL,HTTP://OPENDATACOMMUNITIES.ORG/ID/METROPOLITAN-DISTRICT-COUNCIL/WALSALL,30/06/2020,RESOURCES & TRANSFORMATION,WWW.SCC.COM,02/04/2020,H59620200403NTEDWMMWT-1,74.16,RECHARGEABLE EQUIPMENT-COMPUTER EQUIPMENT,"COMPUTERS, COMPUTER PERIPHERAL EQUIPMENT, SOFTWARE",GPC
WALSALL COUNCIL,HTTP://OPENDATACOMMUNITIES.ORG/ID/METROPOLITAN-DISTRICT-COUNCIL/WALSALL,30/06/2020,ADULT SOCIAL CARE,AMZNMKTPLACE,02/04/2020,H59620200403OKLFEOFWM-1,79.99,"STRATEGY, COMMISSIONING, AND D-STATIONERY & GENERAL OFFICE SU",MISCELLANEOUS AND SPECIALTY RETAIL STORES,GPC
WALSALL COUNCIL,HTTP://OPENDATACOMMUNITIES.ORG/ID/METROPOLITAN-DISTRICT-COUNCIL/WALSALL,30/06/2020,ADULT SOCIAL CARE,REMOVALS.CO.UK,02/04/2020,H59620200403OLNUYHAHY-1,251.75,ACCESS TEAM-TRANSPORTATION-PRIV CONTRACTOR,MOTOR FREIGHT CARRIERS,GPC
WALSALL COUNCIL,HTTP://OPENDATACOMMUNITIES.ORG/ID/METROPOLITAN-DISTRICT-COUNCIL/WALSALL,30/06/2020,CHILDRENS SERVICES - SCHOOLS,FOREIGN EXCHANGE FEE,02/04/2020,H59620200403OQZRGOSME-1,-1.43,ALUMWELL JUNIOR SCHOOL-MATERIALS,,GPC
WALSALL COUNCIL,HTTP://OPENDATACOMMUNITIES.ORG/ID/METROPOLITAN-DISTRICT-COUNCIL/WALSALL,30/06/2020,CHILDRENS SERVICES,POST OFFICE COUNTER,02/04/2020,H59620200403OYVWHMRGK-1,14.80,FAMILY PLACEMENTS-POSTAGES & COURIER SERVICES,POSTAL SERVICES - GOVERNMENT ONLY,GPC
WALSALL COUNCIL,HTTP://OPENDATACOMMUNITIES.ORG/ID/METROPOLITAN-DISTRICT-COUNCIL/WALSALL,30/06/2020,ECONOMY & ENVIRONMENT,WWW.BANNERUK.COM,02/04/2020,H59620200403PSDDFWWWP-1,13.08,LIBRARY OPERATIONS CENTRAL-CLEANING MATERIALS,"STATIONERY, OFFICE SUPPLIES AND WRITING PAPER",GPC
WALSALL COUNCIL,HTTP://OPENDATACOMMUNITIES.ORG/ID/METROPOLITAN-DISTRICT-COUNCIL/WALSALL,30/06/2020,ECONOMY & ENVIRONMENT,P. F JONES (DIESEL SERVIC,02/04/2020,H59620200403QOQVCXFMJ-1,234.00,FLEET-MATERIALS,"AUTOMOTIVE PARTS, ACCESSORIES STORES",GPC
WALSALL COUNCIL,HTTP://OPENDATACOMMUNITIES.ORG/ID/METROPOLITAN-DISTRICT-COUNCIL/WALSALL,30/06/2020,ADULT SOCIAL CARE,REMOVALS.CO.UK,02/04/2020,H59620200403QXJMSCQYY-1,89.78,ACCESS TEAM-TRANSPORTATION-PRIV CONTRACTOR,MOTOR FREIGHT CARRIERS,GPC
WALSALL COUNCIL,HTTP://OPENDATACOMMUNITIES.ORG/ID/METROPOLITAN-DISTRICT-COUNCIL/WALSALL,30/06/2020,RESOURCES & TRANSFORMATION,WWW.SCC.COM,02/04/2020,H59620200403RUFYFFBFK-1,1010.40,RECHARGEABLE EQUIPMENT-COMPUTER EQUIPMENT,"COMPUTERS, COMPUTER PERIPHERAL EQUIPMENT, SOFTWARE",GPC
WALSALL COUNCIL,HTTP://OPENDATACOMMUNITIES.ORG/ID/METROPOLITAN-DISTRICT-COUNCIL/WALSALL,30/06/2020,RESOURCES & TRANSFORMATION,BLAKEMORE FOODSERVICE,02/04/2020,H59620200403SGDWQWXJM-1,-9.51,CA OLD HALL SPECIAL SCHOOL-FOOD & DRINK SUPPLIES,CATERERS,GPC
WALSALL COUNCIL,HTTP://OPENDATACOMMUNITIES.ORG/ID/METROPOLITAN-DISTRICT-COUNCIL/WALSALL,30/06/2020,RESOURCES & TRANSFORMATION,TRAVELODGE GB0000,02/04/2020,H59620200403SNFUGDOFK-1,-291.00,BED & BREAKFAST PAYMENTS-ACCOMMODATION AND RELATED COST,TRAVELODGE,GPC
WALSALL COUNCIL,HTTP://OPENDATACOMMUNITIES.ORG/ID/METROPOLITAN-DISTRICT-COUNCIL/WALSALL,30/06/2020,CHILDRENS SERVICES - SCHOOLS,THE K  TRADING,02/04/2020,H59620200403SWSDTJVKO-1,-52.05,ALUMWELL JUNIOR SCHOOL-MATERIALS,,GPC
WALSALL COUNCIL,HTTP://OPENDATACOMMUNITIES.ORG/ID/METROPOLITAN-DISTRICT-COUNCIL/WALSALL,30/06/2020,CHILDRENS SERVICES,VIRTUAL COLLEGE LIMITE,02/04/2020,H59620200403TGVYGKETL-1,28.80,"43A HILTON ROAD, WILLENHALL-EXTERNAL TRAINING",OTHER SCHOOLS AND EDUCATIONAL SERVICES,GPC
WALSALL COUNCIL,HTTP://OPENDATACOMMUNITIES.ORG/ID/METROPOLITAN-DISTRICT-COUNCIL/WALSALL,30/06/2020,RESOURCES & TRANSFORMATION,METRO INNS WALSALL,02/04/2020,H59620200403TMGHNLUEC-1,266.00,BED & BREAKFAST PAYMENTS-ACCOMMODATION AND RELATED COST,"HOTELS, MOTELS, RESORTS",GPC
WALSALL COUNCIL,HTTP://OPENDATACOMMUNITIES.ORG/ID/METROPOLITAN-DISTRICT-COUNCIL/WALSALL,30/06/2020,ECONOMY & ENVIRONMENT,WWW.AOSONLINE.CO.UK,02/04/2020,H59620200403UCIOSKPKW-1,36.86,CEMETERIES CENTRAL ADMINISTRAT-STATIONERY & GENERAL OFFICE SU,"STATIONERY, OFFICE SUPPLIES AND WRITING PAPER",GPC
WALSALL COUNCIL,HTTP://OPENDATACOMMUNITIES.ORG/ID/METROPOLITAN-DISTRICT-COUNCIL/WALSALL,30/06/2020,ECONOMY & ENVIRONMENT,MIDLANDNEWS.COM,02/04/2020,H59620200403VQJEHEHLY-1,374.76,DEVELOPMENT MANAGEMENT-SUBSCRIPTIONS,NEWS DEALERS AND NEWSSTANDS,GPC
WALSALL COUNCIL,HTTP://OPENDATACOMMUNITIES.ORG/ID/METROPOLITAN-DISTRICT-COUNCIL/WALSALL,30/06/2020,CHILDRENS SERVICES,ALDI 772 129,02/04/2020,H59620200403WDWBJTPSY-1,0.95,"43A HILTON ROAD, WILLENHALL-FOOD & DRINK SUPPLIES",GROCERY STORES AND SUPERMARKETS,GPC
WALSALL COUNCIL,HTTP://OPENDATACOMMUNITIES.ORG/ID/METROPOLITAN-DISTRICT-COUNCIL/WALSALL,30/06/2020,CHILDRENS SERVICES,ALDI 772 129,02/04/2020,H59620200403WDWBJTPSY-2,2.90,"43A HILTON ROAD, WILLENHALL-FOOD & DRINK SUPPLIES",GROCERY STORES AND SUPERMARKETS,GPC
WALSALL COUNCIL,HTTP://OPENDATACOMMUNITIES.ORG/ID/METROPOLITAN-DISTRICT-COUNCIL/WALSALL,30/06/2020,CHILDRENS SERVICES,ASDA GROCERIES ONLINE,02/04/2020,H59620200403WGXXMVUGU-1,-17.00,SAFEGUARDING & FAMILY SUPPORT-FOOD & DRINK SUPPLIES,GROCERY STORES AND SUPERMARKETS,GPC
WALSALL COUNCIL,HTTP://OPENDATACOMMUNITIES.ORG/ID/METROPOLITAN-DISTRICT-COUNCIL/WALSALL,30/06/2020,ADULT SOCIAL CARE,REMOVALS.CO.UK,02/04/2020,H59620200403XGBMCEXQU-1,89.78,GOSCOTE-TRANSPORTATION-PRIV CONTRACTOR,MOTOR FREIGHT CARRIERS,GPC
WALSALL COUNCIL,HTTP://OPENDATACOMMUNITIES.ORG/ID/METROPOLITAN-DISTRICT-COUNCIL/WALSALL,30/06/2020,RESOURCES & TRANSFORMATION,METRO INNS WALSALL,02/04/2020,H59620200403XQWBJTUKV-1,38.00,BED & BREAKFAST PAYMENTS-HOTEL ACCOMMODATION-EMPLOYEES,"HOTELS, MOTELS, RESORTS",GPC
WALSALL COUNCIL,HTTP://OPENDATACOMMUNITIES.ORG/ID/METROPOLITAN-DISTRICT-COUNCIL/WALSALL,30/06/2020,CHILDRENS SERVICES,VIRGIN MEDIA,02/04/2020,H59620200403XUJBCIZCX-1,144.00,ADMINISTRATIVE SUPPLIES-MATERIALS,TELECOMMUNICATION EQUIPMENT & SALES,GPC
WALSALL COUNCIL,HTTP://OPENDATACOMMUNITIES.ORG/ID/METROPOLITAN-DISTRICT-COUNCIL/WALSALL,30/06/2020,ECONOMY & ENVIRONMENT,WETRANSFER,02/04/2020,H59620200403XZMTJKEEI-1,8.91,NEW ART GALLERY - ADMIN-POSTAGES & COURIER SERVICES,"COMPUTER PROGRAM, SYSTEM DESIGN",GPC
WALSALL COUNCIL,HTTP://OPENDATACOMMUNITIES.ORG/ID/METROPOLITAN-DISTRICT-COUNCIL/WALSALL,30/06/2020,RESOURCES & TRANSFORMATION,WWW.SCC.COM,02/04/2020,H59620200403YIGUXMWOH-1,269.28,RECHARGEABLE EQUIPMENT-COMPUTER EQUIPMENT,"COMPUTERS, COMPUTER PERIPHERAL EQUIPMENT, SOFTWARE",GPC
WALSALL COUNCIL,HTTP://OPENDATACOMMUNITIES.ORG/ID/METROPOLITAN-DISTRICT-COUNCIL/WALSALL,30/06/2020,RESOURCES & TRANSFORMATION,CHICKEN JOES LTD,02/04/2020,H59620200403YITDFQNPY-1,45.57,CA MOORCROFT WOOD-FOOD & DRINK SUPPLIES,CATERERS,GPC
WALSALL COUNCIL,HTTP://OPENDATACOMMUNITIES.ORG/ID/METROPOLITAN-DISTRICT-COUNCIL/WALSALL,30/06/2020,CHILDRENS SERVICES,SMYTHSTOYS.COM,02/04/2020,H59620200403YTDHXBHRV-1,166.93,FAMILY PLACEMENTS-MATERIALS,"GAME, TOY, AND HOBBY SHOPS",GPC
WALSALL COUNCIL,HTTP://OPENDATACOMMUNITIES.ORG/ID/METROPOLITAN-DISTRICT-COUNCIL/WALSALL,30/06/2020,CHILDRENS SERVICES,AMAZON.CO.UK*Z85O75PD5,02/04/2020,H59620200403YWSBHSIMK-1,119.00,"43A HILTON ROAD, WILLENHALL-PURCHASE OF FURNITURE & EQUIPM",OTHER DIRECT MARKETING-OTHER DIRECT MARKETERS,GPC
WALSALL COUNCIL,HTTP://OPENDATACOMMUNITIES.ORG/ID/METROPOLITAN-DISTRICT-COUNCIL/WALSALL,30/06/2020,RESOURCES & TRANSFORMATION,CHICKEN JOES LTD,02/04/2020,H59620200403ZKDRFXUNO-1,116.91,CA ST JOHNS C.E. PRIMARY SCHOO-FOOD & DRINK SUPPLIES,CATERERS,GPC
WALSALL COUNCIL,HTTP://OPENDATACOMMUNITIES.ORG/ID/METROPOLITAN-DISTRICT-COUNCIL/WALSALL,30/06/2020,ADULT SOCIAL CARE,WURTH UK LTD,03/04/2020,H59620200404AAGDRLLLO-1,199.38,ASC PARTNERSHIPS-CLEANING MATERIALS,HARDWARE EQUIPMENT AND SUPPLIES,GPC
WALSALL COUNCIL,HTTP://OPENDATACOMMUNITIES.ORG/ID/METROPOLITAN-DISTRICT-COUNCIL/WALSALL,30/06/2020,CHILDRENS SERVICES,WWW.BANNERUK.COM,03/04/2020,H59620200404ACMODNSOF-1,104.33,CHILD PROTECTION & REVIEW SERV-STATIONERY & GENERAL OFFICE SU,"STATIONERY, OFFICE SUPPLIES AND WRITING PAPER",GPC
WALSALL COUNCIL,HTTP://OPENDATACOMMUNITIES.ORG/ID/METROPOLITAN-DISTRICT-COUNCIL/WALSALL,30/06/2020,CHILDRENS SERVICES,WWW.BANNERUK.COM,03/04/2020,H59620200404ACMODNSOF-2,104.33,SAFEGUARDING & FAMILY SUPPORT-STATIONERY & GENERAL OFFICE SU,"STATIONERY, OFFICE SUPPLIES AND WRITING PAPER",GPC
WALSALL COUNCIL,HTTP://OPENDATACOMMUNITIES.ORG/ID/METROPOLITAN-DISTRICT-COUNCIL/WALSALL,30/06/2020,RESOURCES & TRANSFORMATION,METRO INNS WALSALL,03/04/2020,H59620200404ACRKKVHID-1,266.00,BED & BREAKFAST PAYMENTS-HOTEL ACCOMMODATION-EMPLOYEES,"HOTELS, MOTELS, RESORTS",GPC
WALSALL COUNCIL,HTTP://OPENDATACOMMUNITIES.ORG/ID/METROPOLITAN-DISTRICT-COUNCIL/WALSALL,30/06/2020,RESOURCES & TRANSFORMATION,METRO INNS WALSALL,03/04/2020,H59620200404CVSTXXPFB-1,266.00,BED & BREAKFAST PAYMENTS-HOTEL ACCOMMODATION-EMPLOYEES,"HOTELS, MOTELS, RESORTS",GPC
WALSALL COUNCIL,HTTP://OPENDATACOMMUNITIES.ORG/ID/METROPOLITAN-DISTRICT-COUNCIL/WALSALL,30/06/2020,ADULT SOCIAL CARE,PACKAGING EXPRESS,03/04/2020,H59620200404DBAKMMHAN-1,1452.00,ASC PARTNERSHIPS-STATIONERY & GENERAL OFFICE SU,"STATIONERY, OFFICE SUPPLIES AND WRITING PAPER",GPC
WALSALL COUNCIL,HTTP://OPENDATACOMMUNITIES.ORG/ID/METROPOLITAN-DISTRICT-COUNCIL/WALSALL,30/06/2020,RESOURCES & TRANSFORMATION,AMAZON.CO.UK*HF5QM1IN5,03/04/2020,H59620200404DGVEQFYUB-1,59.97,ACCOMMODATION SERVICES MANAGEM-CLEANING MATERIALS,OTHER DIRECT MARKETING-OTHER DIRECT MARKETERS,GPC
WALSALL COUNCIL,HTTP://OPENDATACOMMUNITIES.ORG/ID/METROPOLITAN-DISTRICT-COUNCIL/WALSALL,30/06/2020,RESOURCES & TRANSFORMATION,AMZNMKTPLACE AMAZON.CO.UK,03/04/2020,H59620200404DUELEOOCT-1,43.42,RECHARGEABLE EQUIPMENT-COMPUTER EQUIPMENT,MISCELLANEOUS AND SPECIALTY RETAIL STORES,GPC
WALSALL COUNCIL,HTTP://OPENDATACOMMUNITIES.ORG/ID/METROPOLITAN-DISTRICT-COUNCIL/WALSALL,30/06/2020,RESOURCES & TRANSFORMATION,AMZNMKTPLACE,03/04/2020,H59620200404EBMGPJVLE-1,20.89,COMMUNICATIONS-STATIONERY & GENERAL OFFICE SU,MISCELLANEOUS AND SPECIALTY RETAIL STORES,GPC
WALSALL COUNCIL,HTTP://OPENDATACOMMUNITIES.ORG/ID/METROPOLITAN-DISTRICT-COUNCIL/WALSALL,30/06/2020,CHILDRENS SERVICES,AMZNMKTPLACE,03/04/2020,H59620200404ETJTWTVLR-1,10.78,"43A HILTON ROAD, WILLENHALL-CLEANING MATERIALS",MISCELLANEOUS AND SPECIALTY RETAIL STORES,GPC
WALSALL COUNCIL,HTTP://OPENDATACOMMUNITIES.ORG/ID/METROPOLITAN-DISTRICT-COUNCIL/WALSALL,30/06/2020,ADULT SOCIAL CARE,TRI-ARD STAINLESS FSTN,03/04/2020,H59620200404FCNTXVGDS-1,53.32,GOSCOTE-PAYMENT TO CONTRACTORS,"ARCHITECTURAL, ENGINEERING, AND SURVEYING SERVICES",GPC
WALSALL COUNCIL,HTTP://OPENDATACOMMUNITIES.ORG/ID/METROPOLITAN-DISTRICT-COUNCIL/WALSALL,30/06/2020,ECONOMY & ENVIRONMENT,SIM-MAYOU HARDWARE,03/04/2020,H59620200404FMMMCRQSW-1,32.91,INFRASTRUCTURE MAINTENANCE-MATERIALS,HARDWARE STORES,GPC
WALSALL COUNCIL,HTTP://OPENDATACOMMUNITIES.ORG/ID/METROPOLITAN-DISTRICT-COUNCIL/WALSALL,30/06/2020,RESOURCES & TRANSFORMATION,METRO INNS WALSALL,03/04/2020,H59620200404FWWMMJRJF-1,304.00,BED & BREAKFAST PAYMENTS-HOTEL ACCOMMODATION-EMPLOYEES,"HOTELS, MOTELS, RESORTS",GPC
WALSALL COUNCIL,HTTP://OPENDATACOMMUNITIES.ORG/ID/METROPOLITAN-DISTRICT-COUNCIL/WALSALL,30/06/2020,CHILDRENS SERVICES - SCHOOLS,123 REG LTD,03/04/2020,H59620200404FXLQVVZWK-1,11.99,ADMINISTRATIVE SUPPLIES-MATERIALS,DIRECT MARKETING CONTINUITY SUBSCRIPTION MERCHANTS,GPC
WALSALL COUNCIL,HTTP://OPENDATACOMMUNITIES.ORG/ID/METROPOLITAN-DISTRICT-COUNCIL/WALSALL,30/06/2020,ECONOMY & ENVIRONMENT,BOCONLINE.CO.UK,03/04/2020,H59620200404GBSUNYCNB-1,60.00,WALSALL TOWN HALL-PURCHASE OF FURNITURE & EQUIPM,HOUSEHOLD APPLIANCE STORES,GPC
WALSALL COUNCIL,HTTP://OPENDATACOMMUNITIES.ORG/ID/METROPOLITAN-DISTRICT-COUNCIL/WALSALL,30/06/2020,CHILDRENS SERVICES,NISA LOCAL,03/04/2020,H59620200404LNVFHEVHV-1,9.67,REDRUTH ROAD-FOOD & DRINK SUPPLIES,MISCELLANEOUS FOOD STORES & CONVENIENCE STORES,GPC
WALSALL COUNCIL,HTTP://OPENDATACOMMUNITIES.ORG/ID/METROPOLITAN-DISTRICT-COUNCIL/WALSALL,30/06/2020,ADULT SOCIAL CARE,WURTH UK LTD,03/04/2020,H59620200404LVSBIICZE-1,7768.61,ASC PARTNERSHIPS-CLEANING MATERIALS,HARDWARE EQUIPMENT AND SUPPLIES,GPC
WALSALL COUNCIL,HTTP://OPENDATACOMMUNITIES.ORG/ID/METROPOLITAN-DISTRICT-COUNCIL/WALSALL,30/06/2020,RESOURCES & TRANSFORMATION,METRO INNS WALSALL,03/04/2020,H59620200404LWGJJTXQS-1,266.00,BED & BREAKFAST PAYMENTS-HOTEL ACCOMMODATION-EMPLOYEES,"HOTELS, MOTELS, RESORTS",GPC
WALSALL COUNCIL,HTTP://OPENDATACOMMUNITIES.ORG/ID/METROPOLITAN-DISTRICT-COUNCIL/WALSALL,30/06/2020,RESOURCES & TRANSFORMATION,WWW.SCC.COM,03/04/2020,H59620200404MLDQOPBPZ-1,1010.40,RECHARGEABLE EQUIPMENT-COMPUTER EQUIPMENT,"COMPUTERS, COMPUTER PERIPHERAL EQUIPMENT, SOFTWARE",GPC
WALSALL COUNCIL,HTTP://OPENDATACOMMUNITIES.ORG/ID/METROPOLITAN-DISTRICT-COUNCIL/WALSALL,30/06/2020,CHILDRENS SERVICES,TESCO ONLINE,03/04/2020,H59620200404MOYJCGWCN-1,16.00,SUPPORT UNDER SECT 23 OF THE C-SUPPORT UNDER SECTION 23 OF TH,MISCELLANEOUS AND SPECIALTY RETAIL STORES,GPC
WALSALL COUNCIL,HTTP://OPENDATACOMMUNITIES.ORG/ID/METROPOLITAN-DISTRICT-COUNCIL/WALSALL,30/06/2020,CHILDRENS SERVICES,WWW.CARPHONEWAREHO,03/04/2020,H59620200404ONKJHQILP-1,89.98,CONTACT SESSIONAL STAFF-LANDLINE PHONES,TELECOMMUNICATION EQUIPMENT & SALES,GPC
WALSALL COUNCIL,HTTP://OPENDATACOMMUNITIES.ORG/ID/METROPOLITAN-DISTRICT-COUNCIL/WALSALL,30/06/2020,ADULT SOCIAL CARE,WWW.BARGAINWHOLESALERS,03/04/2020,H59620200404OUOREGLVN-1,127.20,GOSCOTE-STATIONERY & GENERAL OFFICE SU,"CARD, GIFT, NOVELTY, AND SOUVENIR SHOPS",GPC
WALSALL COUNCIL,HTTP://OPENDATACOMMUNITIES.ORG/ID/METROPOLITAN-DISTRICT-COUNCIL/WALSALL,30/06/2020,ECONOMY & ENVIRONMENT,PREMIUMBEAT.COM,03/04/2020,H59620200404PESLXJVEV-1,47.62,EDUCATION INFORMAL-FEES & LICENCES,PROFESSIONAL SERVICES,GPC
WALSALL COUNCIL,HTTP://OPENDATACOMMUNITIES.ORG/ID/METROPOLITAN-DISTRICT-COUNCIL/WALSALL,30/06/2020,ECONOMY & ENVIRONMENT,AMZNMKTPLACE,03/04/2020,H59620200404PJYWAPDMN-1,256.30,COUNTRYSIDE MANAGEMENT - OTHER-MATERIALS,MISCELLANEOUS AND SPECIALTY RETAIL STORES,GPC
WALSALL COUNCIL,HTTP://OPENDATACOMMUNITIES.ORG/ID/METROPOLITAN-DISTRICT-COUNCIL/WALSALL,30/06/2020,RESOURCES & TRANSFORMATION,FACEBK UBEHMQWN22,03/04/2020,H59620200404RDYUWUNPG-1,3.00,AREA PARTNERSHIPS-PUBLICITY & ADVERTISING (NON S,ADVERTISING SERVICES,GPC
WALSALL COUNCIL,HTTP://OPENDATACOMMUNITIES.ORG/ID/METROPOLITAN-DISTRICT-COUNCIL/WALSALL,30/06/2020,RESOURCES & TRANSFORMATION,LOW COST FUNERAL,03/04/2020,H59620200404RRQYBTEJL-1,744.00,WALSALL CRISIS SUPPORT SCHEME-FEES & LICENCES,FUNERAL SERVICE AND CREMATORIES,GPC
WALSALL COUNCIL,HTTP://OPENDATACOMMUNITIES.ORG/ID/METROPOLITAN-DISTRICT-COUNCIL/WALSALL,30/06/2020,CHILDRENS SERVICES,CURRYS ONLINE,03/04/2020,H59620200404SOXVOWUZI-1,398.00,VIRTUAL SCHOOL - CENTRAL PUPIL-OTHER EXPENSES,ELECTRONIC SALES,GPC
WALSALL COUNCIL,HTTP://OPENDATACOMMUNITIES.ORG/ID/METROPOLITAN-DISTRICT-COUNCIL/WALSALL,30/06/2020,RESOURCES & TRANSFORMATION,WWW.SCC.COM,03/04/2020,H59620200404SRXSBYUKQ-1,1608.19,RECHARGEABLE EQUIPMENT-COMPUTER EQUIPMENT,"COMPUTERS, COMPUTER PERIPHERAL EQUIPMENT, SOFTWARE",GPC
WALSALL COUNCIL,HTTP://OPENDATACOMMUNITIES.ORG/ID/METROPOLITAN-DISTRICT-COUNCIL/WALSALL,30/06/2020,ADULT SOCIAL CARE,WWW.BARGAINWHOLESALERS,03/04/2020,H59620200404UKLQRZBCI-1,4999.50,ASC PARTNERSHIPS-STATIONERY & GENERAL OFFICE SU,"CARD, GIFT, NOVELTY, AND SOUVENIR SHOPS",GPC
WALSALL COUNCIL,HTTP://OPENDATACOMMUNITIES.ORG/ID/METROPOLITAN-DISTRICT-COUNCIL/WALSALL,30/06/2020,RESOURCES & TRANSFORMATION,AMAZON.CO.UK*US7T31K75,03/04/2020,H59620200404VKUMONECV-1,18.67,ACCOMMODATION SERVICES MANAGEM-MATERIALS,OTHER DIRECT MARKETING-OTHER DIRECT MARKETERS,GPC
WALSALL COUNCIL,HTTP://OPENDATACOMMUNITIES.ORG/ID/METROPOLITAN-DISTRICT-COUNCIL/WALSALL,30/06/2020,RESOURCES & TRANSFORMATION,METRO INNS WALSALL,03/04/2020,H59620200404WNPXJCQGH-1,266.00,BED & BREAKFAST PAYMENTS-HOTEL ACCOMMODATION-EMPLOYEES,"HOTELS, MOTELS, RESORTS",GPC
WALSALL COUNCIL,HTTP://OPENDATACOMMUNITIES.ORG/ID/METROPOLITAN-DISTRICT-COUNCIL/WALSALL,30/06/2020,CHILDRENS SERVICES,AMZNMKTPLACE,03/04/2020,H59620200404XHISUPZKT-1,22.99,VIRTUAL SCHOOL - CENTRAL PUPIL-OTHER EXPENSES,MISCELLANEOUS AND SPECIALTY RETAIL STORES,GPC
WALSALL COUNCIL,HTTP://OPENDATACOMMUNITIES.ORG/ID/METROPOLITAN-DISTRICT-COUNCIL/WALSALL,30/06/2020,RESOURCES & TRANSFORMATION,AMAZON.CO.UK*2L83Q1CC5,03/04/2020,H59620200404XOMCQULBS-1,18.67,ACCOMMODATION SERVICES MANAGEM-MATERIALS,OTHER DIRECT MARKETING-OTHER DIRECT MARKETERS,GPC
WALSALL COUNCIL,HTTP://OPENDATACOMMUNITIES.ORG/ID/METROPOLITAN-DISTRICT-COUNCIL/WALSALL,30/06/2020,CHILDRENS SERVICES,AMZNMKTPLACE,03/04/2020,H59620200404XVJFLNDBY-1,22.99,VIRTUAL SCHOOL - CENTRAL PUPIL-OTHER EXPENSES,MISCELLANEOUS AND SPECIALTY RETAIL STORES,GPC
WALSALL COUNCIL,HTTP://OPENDATACOMMUNITIES.ORG/ID/METROPOLITAN-DISTRICT-COUNCIL/WALSALL,30/06/2020,ECONOMY & ENVIRONMENT,FOREIGN EXCHANGE FEE,03/04/2020,H59620200404YIJRRJIOS-1,1.31,EDUCATION INFORMAL-FEES & LICENCES,,GPC
WALSALL COUNCIL,HTTP://OPENDATACOMMUNITIES.ORG/ID/METROPOLITAN-DISTRICT-COUNCIL/WALSALL,30/06/2020,CHILDRENS SERVICES,TESCO ONLINE,03/04/2020,H59620200404YSFRHUQIZ-1,135.00,CONTACT SESSIONAL STAFF-STATIONERY & GENERAL OFFICE SU,MISCELLANEOUS AND SPECIALTY RETAIL STORES,GPC
WALSALL COUNCIL,HTTP://OPENDATACOMMUNITIES.ORG/ID/METROPOLITAN-DISTRICT-COUNCIL/WALSALL,30/06/2020,ADULT SOCIAL CARE,SIM-MAYOU HARDWARE,03/04/2020,H59620200404ZPSHCLVLG-1,844.50,GOSCOTE-MATERIALS,HARDWARE STORES,GPC
WALSALL COUNCIL,HTTP://OPENDATACOMMUNITIES.ORG/ID/METROPOLITAN-DISTRICT-COUNCIL/WALSALL,30/06/2020,ADULT SOCIAL CARE,SAINSBURYS S/MKT,06/04/2020,H59620200407AJQPJJWSM-1,37.94,GOSCOTE-FOOD & DRINK SUPPLIES,GROCERY STORES AND SUPERMARKETS,GPC
WALSALL COUNCIL,HTTP://OPENDATACOMMUNITIES.ORG/ID/METROPOLITAN-DISTRICT-COUNCIL/WALSALL,30/06/2020,ECONOMY & ENVIRONMENT,THETRAINLINE.COM,06/04/2020,H59620200407BMLQRNQPV-1,-188.00,MUSIC HUB FOREST ARTS-OFFICERS & STAFF PUBLIC TRANSP,PASSENGER RAILWAYS,GPC
WALSALL COUNCIL,HTTP://OPENDATACOMMUNITIES.ORG/ID/METROPOLITAN-DISTRICT-COUNCIL/WALSALL,30/06/2020,RESOURCES & TRANSFORMATION,JOHAL DAIRIES LTD,06/04/2020,H59620200407CRPPOEOCZ-1,14.96,CA MOORCROFT WOOD-FOOD & DRINK SUPPLIES,OTHER NONDURABLE GOODS,GPC
WALSALL COUNCIL,HTTP://OPENDATACOMMUNITIES.ORG/ID/METROPOLITAN-DISTRICT-COUNCIL/WALSALL,30/06/2020,RESOURCES & TRANSFORMATION,AMZNMKTPLACE,06/04/2020,H59620200407CWRCTWDGQ-1,93.54,AREA PARTNERSHIPS-STATIONERY & GENERAL OFFICE SU,MISCELLANEOUS AND SPECIALTY RETAIL STORES,GPC
WALSALL COUNCIL,HTTP://OPENDATACOMMUNITIES.ORG/ID/METROPOLITAN-DISTRICT-COUNCIL/WALSALL,30/06/2020,RESOURCES & TRANSFORMATION,JOHAL DAIRIES LTD,06/04/2020,H59620200407DKXNPKSPI-1,9.40,CA RUSHALL JMI SCHOOL-FOOD & DRINK SUPPLIES,OTHER NONDURABLE GOODS,GPC
WALSALL COUNCIL,HTTP://OPENDATACOMMUNITIES.ORG/ID/METROPOLITAN-DISTRICT-COUNCIL/WALSALL,30/06/2020,RESOURCES & TRANSFORMATION,JOHAL DAIRIES LTD,06/04/2020,H59620200407ENRGFSHAA-1,11.28,CA ABBEY PRIMARY SCHOOL-FOOD & DRINK SUPPLIES,OTHER NONDURABLE GOODS,GPC
WALSALL COUNCIL,HTTP://OPENDATACOMMUNITIES.ORG/ID/METROPOLITAN-DISTRICT-COUNCIL/WALSALL,30/06/2020,CHILDRENS SERVICES - SCHOOLS,BT BILL PAYMENT 2,06/04/2020,H59620200407EOSNBEIVR-1,109.92,ADMINISTRATIVE SUPPLIES-MOBILE PHONES,TELECOMMUNICATION EQUIPMENT & SALES,GPC
WALSALL COUNCIL,HTTP://OPENDATACOMMUNITIES.ORG/ID/METROPOLITAN-DISTRICT-COUNCIL/WALSALL,30/06/2020,RESOURCES & TRANSFORMATION,JOHAL DAIRIES LTD,06/04/2020,H59620200407ERCLVGMKQ-1,15.04,CA KINGSHILL SCHOOL-FOOD & DRINK SUPPLIES,OTHER NONDURABLE GOODS,GPC
WALSALL COUNCIL,HTTP://OPENDATACOMMUNITIES.ORG/ID/METROPOLITAN-DISTRICT-COUNCIL/WALSALL,30/06/2020,RESOURCES & TRANSFORMATION,JOHAL DAIRIES LTD,06/04/2020,H59620200407ESKGFEKTE-1,18.72,CA TOWN HALL RESTAURANT - CATE-FOOD & DRINK SUPPLIES,OTHER NONDURABLE GOODS,GPC
WALSALL COUNCIL,HTTP://OPENDATACOMMUNITIES.ORG/ID/METROPOLITAN-DISTRICT-COUNCIL/WALSALL,30/06/2020,RESOURCES & TRANSFORMATION,WP ENGINE,06/04/2020,H59620200407FBAEYDVYY-1,285.15,APPLICATIONS-COMPUTER EQUIPMENT,"COMPUTER PROGRAM, SYSTEM DESIGN",GPC
WALSALL COUNCIL,HTTP://OPENDATACOMMUNITIES.ORG/ID/METROPOLITAN-DISTRICT-COUNCIL/WALSALL,30/06/2020,RESOURCES & TRANSFORMATION,JOHAL DAIRIES LTD,06/04/2020,H59620200407FERPGELOW-1,15.82,CA BEACON PRIMARY SCHOOL-FOOD & DRINK SUPPLIES,OTHER NONDURABLE GOODS,GPC
WALSALL COUNCIL,HTTP://OPENDATACOMMUNITIES.ORG/ID/METROPOLITAN-DISTRICT-COUNCIL/WALSALL,30/06/2020,CHILDRENS SERVICES,WWW.SECURE-PAYMENT-SER,06/04/2020,H59620200407FMNQYLKWQ-1,5.00,TRANSITION AND LEAVING CARE PL-FEES & LICENCES,"COMPUTER PROGRAM, SYSTEM DESIGN",GPC
WALSALL COUNCIL,HTTP://OPENDATACOMMUNITIES.ORG/ID/METROPOLITAN-DISTRICT-COUNCIL/WALSALL,30/06/2020,RESOURCES & TRANSFORMATION,JOHAL DAIRIES LTD,06/04/2020,H59620200407FPSVWYODT-1,15.04,CA BROWNHILLS WEST PRIMARY SCH-FOOD & DRINK SUPPLIES,OTHER NONDURABLE GOODS,GPC
WALSALL COUNCIL,HTTP://OPENDATACOMMUNITIES.ORG/ID/METROPOLITAN-DISTRICT-COUNCIL/WALSALL,30/06/2020,CHILDRENS SERVICES - SCHOOLS,MICROSOFT*OFFICE 365 HOME,06/04/2020,H59620200407GKEJDXTJP-1,79.99,CADMUS FEDERATION-MATERIALS,DIGITAL GOODS - GAMES,GPC
WALSALL COUNCIL,HTTP://OPENDATACOMMUNITIES.ORG/ID/METROPOLITAN-DISTRICT-COUNCIL/WALSALL,30/06/2020,CHILDRENS SERVICES,NISA LOCAL,06/04/2020,H59620200407GLKMWELRU-1,13.25,REDRUTH ROAD-FOOD & DRINK SUPPLIES,MISCELLANEOUS FOOD STORES & CONVENIENCE STORES,GPC
WALSALL COUNCIL,HTTP://OPENDATACOMMUNITIES.ORG/ID/METROPOLITAN-DISTRICT-COUNCIL/WALSALL,30/06/2020,RESOURCES & TRANSFORMATION,JOHAL DAIRIES LTD,06/04/2020,H59620200407GWJTBREBJ-1,57.80,CA COOPER JORDAN CE PRIMARY SC-FOOD & DRINK SUPPLIES,OTHER NONDURABLE GOODS,GPC
WALSALL COUNCIL,HTTP://OPENDATACOMMUNITIES.ORG/ID/METROPOLITAN-DISTRICT-COUNCIL/WALSALL,30/06/2020,RESOURCES & TRANSFORMATION,METRO INNS WALSALL,06/04/2020,H59620200407GXBNYLLIK-1,266.00,BED & BREAKFAST PAYMENTS-BED & BREAKFAST PAYMENTS,"HOTELS, MOTELS, RESORTS",GPC
WALSALL COUNCIL,HTTP://OPENDATACOMMUNITIES.ORG/ID/METROPOLITAN-DISTRICT-COUNCIL/WALSALL,30/06/2020,CHILDRENS SERVICES,WWW.BANNERUK.COM,06/04/2020,H59620200407HODGXYZYK-1,63.66,SAFEGUARDING & FAMILY SUPPORT-STATIONERY & GENERAL OFFICE SU,"STATIONERY, OFFICE SUPPLIES AND WRITING PAPER",GPC
WALSALL COUNCIL,HTTP://OPENDATACOMMUNITIES.ORG/ID/METROPOLITAN-DISTRICT-COUNCIL/WALSALL,30/06/2020,CHILDRENS SERVICES,WWW.BANNERUK.COM,06/04/2020,H59620200407HODGXYZYK-2,63.66,CHILD PROTECTION & REVIEW SERV-STATIONERY & GENERAL OFFICE SU,"STATIONERY, OFFICE SUPPLIES AND WRITING PAPER",GPC
WALSALL COUNCIL,HTTP://OPENDATACOMMUNITIES.ORG/ID/METROPOLITAN-DISTRICT-COUNCIL/WALSALL,30/06/2020,RESOURCES & TRANSFORMATION,FACEBK KYNXLQEN22,06/04/2020,H59620200407HOSZSIPPV-1,5.00,AREA PARTNERSHIPS-PUBLICITY & ADVERTISING (NON S,ADVERTISING SERVICES,GPC
WALSALL COUNCIL,HTTP://OPENDATACOMMUNITIES.ORG/ID/METROPOLITAN-DISTRICT-COUNCIL/WALSALL,30/06/2020,RESOURCES & TRANSFORMATION,JOHAL DAIRIES LTD,06/04/2020,H59620200407HYBHUTGBN-1,20.52,CATERING - SCHOOLS-FOOD & DRINK SUPPLIES,OTHER NONDURABLE GOODS,GPC
WALSALL COUNCIL,HTTP://OPENDATACOMMUNITIES.ORG/ID/METROPOLITAN-DISTRICT-COUNCIL/WALSALL,30/06/2020,RESOURCES & TRANSFORMATION,JOHAL DAIRIES LTD,06/04/2020,H59620200407IFXIIIGFM-1,46.76,CA LITTLE BLOXWICH CE PRIMARY -FOOD & DRINK SUPPLIES,OTHER NONDURABLE GOODS,GPC
WALSALL COUNCIL,HTTP://OPENDATACOMMUNITIES.ORG/ID/METROPOLITAN-DISTRICT-COUNCIL/WALSALL,30/06/2020,CHILDRENS SERVICES,ARGOS LTD,06/04/2020,H59620200407IQEZUFPBF-1,-303.94,VIRTUAL SCHOOL - CENTRAL PUPIL-OTHER EXPENSES,DISCOUNT STORES,GPC
WALSALL COUNCIL,HTTP://OPENDATACOMMUNITIES.ORG/ID/METROPOLITAN-DISTRICT-COUNCIL/WALSALL,30/06/2020,CHILDRENS SERVICES - SCHOOLS,SCREWFIX DIRECT,06/04/2020,H59620200407IVNHCUKNX-1,24.99,PALFREY JUNIOR SCHOOL-PURCHASE OF FURNITURE & EQUIPM,HOME SUPPLY WAREHOUSE STORES,GPC
WALSALL COUNCIL,HTTP://OPENDATACOMMUNITIES.ORG/ID/METROPOLITAN-DISTRICT-COUNCIL/WALSALL,30/06/2020,RESOURCES & TRANSFORMATION,JOHAL DAIRIES LTD,06/04/2020,H59620200407IVXYHEHOD-1,99.05,CA RADLEYS PRIMARY SCHOOL-FOOD & DRINK SUPPLIES,OTHER NONDURABLE GOODS,GPC
WALSALL COUNCIL,HTTP://OPENDATACOMMUNITIES.ORG/ID/METROPOLITAN-DISTRICT-COUNCIL/WALSALL,30/06/2020,ECONOMY & ENVIRONMENT,WWW.BANNERUK.COM,06/04/2020,H59620200407KHHIGGQRE-1,68.16,CEMETERIES CENTRAL ADMINISTRAT-MATERIALS,"STATIONERY, OFFICE SUPPLIES AND WRITING PAPER",GPC
WALSALL COUNCIL,HTTP://OPENDATACOMMUNITIES.ORG/ID/METROPOLITAN-DISTRICT-COUNCIL/WALSALL,30/06/2020,ECONOMY & ENVIRONMENT,B&M RETAIL LTD,06/04/2020,H59620200407KRAYGUXZI-1,57.49,DEPOT-MATERIALS,DISCOUNT STORES,GPC
WALSALL COUNCIL,HTTP://OPENDATACOMMUNITIES.ORG/ID/METROPOLITAN-DISTRICT-COUNCIL/WALSALL,30/06/2020,CHILDRENS SERVICES,B&M RETAIL,06/04/2020,H59620200407KTMMRKZSV-1,4.00,57 LICHFIELD ROAD-CLEANING MATERIALS,DISCOUNT STORES,GPC
WALSALL COUNCIL,HTTP://OPENDATACOMMUNITIES.ORG/ID/METROPOLITAN-DISTRICT-COUNCIL/WALSALL,30/06/2020,RESOURCES & TRANSFORMATION,JOHAL DAIRIES LTD,06/04/2020,H59620200407KVPGXNWLV-1,16.92,CA WALSALL WOOD PRIMARY SCHOOL-FOOD & DRINK SUPPLIES,OTHER NONDURABLE GOODS,GPC
WALSALL COUNCIL,HTTP://OPENDATACOMMUNITIES.ORG/ID/METROPOLITAN-DISTRICT-COUNCIL/WALSALL,30/06/2020,CHILDRENS SERVICES,AMZNMKTPLACE,06/04/2020,H59620200407LFGDVRLMT-1,210.97,VIRTUAL SCHOOL - CENTRAL PUPIL-OTHER EXPENSES,MISCELLANEOUS AND SPECIALTY RETAIL STORES,GPC
WALSALL COUNCIL,HTTP://OPENDATACOMMUNITIES.ORG/ID/METROPOLITAN-DISTRICT-COUNCIL/WALSALL,30/06/2020,RESOURCES & TRANSFORMATION,EXPEDIA 7528233892133,06/04/2020,H59620200407LNPXGKJES-1,39.00,BED & BREAKFAST PAYMENTS-BED & BREAKFAST PAYMENTS,TRAVEL AGENCIES AND TOUR OPERATORS,GPC
WALSALL COUNCIL,HTTP://OPENDATACOMMUNITIES.ORG/ID/METROPOLITAN-DISTRICT-COUNCIL/WALSALL,30/06/2020,CHILDRENS SERVICES,ARGOS LTD,06/04/2020,H59620200407MJMFHZSOX-1,443.93,VIRTUAL SCHOOL - CENTRAL PUPIL-COMPUTER EQUIPMENT,DISCOUNT STORES,GPC
WALSALL COUNCIL,HTTP://OPENDATACOMMUNITIES.ORG/ID/METROPOLITAN-DISTRICT-COUNCIL/WALSALL,30/06/2020,RESOURCES & TRANSFORMATION,JOHAL DAIRIES LTD,06/04/2020,H59620200407MKMOUCTZK-1,10.26,CA JANE LANE SPECIAL SCHOOL-FOOD & DRINK SUPPLIES,OTHER NONDURABLE GOODS,GPC
WALSALL COUNCIL,HTTP://OPENDATACOMMUNITIES.ORG/ID/METROPOLITAN-DISTRICT-COUNCIL/WALSALL,30/06/2020,RESOURCES & TRANSFORMATION,JOHAL DAIRIES LTD,06/04/2020,H59620200407MPXSCTTZL-1,35.64,CA CASTLEFORT JMI SCHOOL-FOOD & DRINK SUPPLIES,OTHER NONDURABLE GOODS,GPC
WALSALL COUNCIL,HTTP://OPENDATACOMMUNITIES.ORG/ID/METROPOLITAN-DISTRICT-COUNCIL/WALSALL,30/06/2020,CHILDRENS SERVICES - SCHOOLS,AMZNMKTPLACE,06/04/2020,H59620200407MSMBWTOBN-1,45.80,ADMINISTRATIVE SUPPLIES-MATERIALS,MISCELLANEOUS AND SPECIALTY RETAIL STORES,GPC
WALSALL COUNCIL,HTTP://OPENDATACOMMUNITIES.ORG/ID/METROPOLITAN-DISTRICT-COUNCIL/WALSALL,30/06/2020,RESOURCES & TRANSFORMATION,JOHAL DAIRIES LTD,06/04/2020,H59620200407NCBBJVRYX-1,27.45,CA ELMORE GREEN PRIMARY SCHOOL-FOOD & DRINK SUPPLIES,OTHER NONDURABLE GOODS,GPC
WALSALL COUNCIL,HTTP://OPENDATACOMMUNITIES.ORG/ID/METROPOLITAN-DISTRICT-COUNCIL/WALSALL,30/06/2020,RESOURCES & TRANSFORMATION,JOHAL DAIRIES LTD,06/04/2020,H59620200407NODAWUNXW-1,10.52,CA MEADOW VIEW JMI PRIMARY SCH-FOOD & DRINK SUPPLIES,OTHER NONDURABLE GOODS,GPC
WALSALL COUNCIL,HTTP://OPENDATACOMMUNITIES.ORG/ID/METROPOLITAN-DISTRICT-COUNCIL/WALSALL,30/06/2020,CHILDRENS SERVICES,B&M RETAIL LTD,06/04/2020,H59620200407NPOJLMGHB-1,21.93,ADOLESCENT SERVICE-MATERIALS,DISCOUNT STORES,GPC
WALSALL COUNCIL,HTTP://OPENDATACOMMUNITIES.ORG/ID/METROPOLITAN-DISTRICT-COUNCIL/WALSALL,30/06/2020,RESOURCES & TRANSFORMATION,JOHAL DAIRIES LTD,06/04/2020,H59620200407NSNNOACPX-1,19.74,CA ELMWOOD SPECIAL SCHOOL-FOOD & DRINK SUPPLIES,OTHER NONDURABLE GOODS,GPC
WALSALL COUNCIL,HTTP://OPENDATACOMMUNITIES.ORG/ID/METROPOLITAN-DISTRICT-COUNCIL/WALSALL,30/06/2020,RESOURCES & TRANSFORMATION,HM PASSPORT OFFICE,06/04/2020,H59620200407OYVPGEVIE-1,75.50,YOUNG PERSONS HOMELESS SERVICE-FEES & LICENCES,GOVERNMENT SERVICES,GPC
WALSALL COUNCIL,HTTP://OPENDATACOMMUNITIES.ORG/ID/METROPOLITAN-DISTRICT-COUNCIL/WALSALL,30/06/2020,RESOURCES & TRANSFORMATION,JOHAL DAIRIES LTD,06/04/2020,H59620200407PSWVFJWGK-1,0.94,CA CROFT COMMUNITY PRIMARY SCH-FOOD & DRINK SUPPLIES,OTHER NONDURABLE GOODS,GPC
WALSALL COUNCIL,HTTP://OPENDATACOMMUNITIES.ORG/ID/METROPOLITAN-DISTRICT-COUNCIL/WALSALL,30/06/2020,CHILDRENS SERVICES,WWW.SECURE-PAYMENT-SER,06/04/2020,H59620200407PWTKJWAQD-1,5.00,TRANSITION AND LEAVING CARE PL-FEES & LICENCES,"COMPUTER PROGRAM, SYSTEM DESIGN",GPC
WALSALL COUNCIL,HTTP://OPENDATACOMMUNITIES.ORG/ID/METROPOLITAN-DISTRICT-COUNCIL/WALSALL,30/06/2020,CHILDRENS SERVICES,AMZN DIGITAL,06/04/2020,H59620200407QOUSXAWLS-1,55.00,VIRTUAL SCHOOL - CENTRAL PUPIL-OTHER EXPENSES,"DIGITAL GOODS - MEDIA, BOOKS, MOVIES, MUSIC",GPC
WALSALL COUNCIL,HTTP://OPENDATACOMMUNITIES.ORG/ID/METROPOLITAN-DISTRICT-COUNCIL/WALSALL,30/06/2020,RESOURCES & TRANSFORMATION,JOHAL DAIRIES LTD,06/04/2020,H59620200407QPGZKKPIO-1,42.10,CA LEIGHSWOOD PRIMARY SCHOOL-FOOD & DRINK SUPPLIES,OTHER NONDURABLE GOODS,GPC
WALSALL COUNCIL,HTTP://OPENDATACOMMUNITIES.ORG/ID/METROPOLITAN-DISTRICT-COUNCIL/WALSALL,30/06/2020,RESOURCES & TRANSFORMATION,CURRYS T/SALES,06/04/2020,H59620200407QTDSJUGYK-1,529.98,CATERING - TOWN HALL RESTAURAN-PURCHASE OF FURNITURE & EQUIPM,ELECTRONIC SALES,GPC
WALSALL COUNCIL,HTTP://OPENDATACOMMUNITIES.ORG/ID/METROPOLITAN-DISTRICT-COUNCIL/WALSALL,30/06/2020,ADULT SOCIAL CARE,W M MORRISON STORE,06/04/2020,H59620200407RDHXPNJVH-1,24.94,ASC PARTNERSHIPS-FOOD & DRINK SUPPLIES,GROCERY STORES AND SUPERMARKETS,GPC
WALSALL COUNCIL,HTTP://OPENDATACOMMUNITIES.ORG/ID/METROPOLITAN-DISTRICT-COUNCIL/WALSALL,30/06/2020,CHILDRENS SERVICES,ARGOS LTD,06/04/2020,H59620200407RFEBHWCVG-1,303.94,VIRTUAL SCHOOL - CENTRAL PUPIL-OTHER EXPENSES,DISCOUNT STORES,GPC
WALSALL COUNCIL,HTTP://OPENDATACOMMUNITIES.ORG/ID/METROPOLITAN-DISTRICT-COUNCIL/WALSALL,30/06/2020,RESOURCES & TRANSFORMATION,MSFT *<E0700ARJGK>,06/04/2020,H59620200407RPGCYZVSR-1,597.60,APPLICATIONS-COMPUTER EQUIPMENT,"COMPUTERS, COMPUTER PERIPHERAL EQUIPMENT, SOFTWARE",GPC
WALSALL COUNCIL,HTTP://OPENDATACOMMUNITIES.ORG/ID/METROPOLITAN-DISTRICT-COUNCIL/WALSALL,30/06/2020,RESOURCES & TRANSFORMATION,AMZNMKTPLACE,06/04/2020,H59620200407RUCYDLHLP-1,93.54,AREA PARTNERSHIPS-STATIONERY & GENERAL OFFICE SU,MISCELLANEOUS AND SPECIALTY RETAIL STORES,GPC
WALSALL COUNCIL,HTTP://OPENDATACOMMUNITIES.ORG/ID/METROPOLITAN-DISTRICT-COUNCIL/WALSALL,30/06/2020,RESOURCES & TRANSFORMATION,AMZNMKTPLACE,06/04/2020,H59620200407RZKQMHFEW-1,93.54,AREA PARTNERSHIPS-STATIONERY & GENERAL OFFICE SU,MISCELLANEOUS AND SPECIALTY RETAIL STORES,GPC
WALSALL COUNCIL,HTTP://OPENDATACOMMUNITIES.ORG/ID/METROPOLITAN-DISTRICT-COUNCIL/WALSALL,30/06/2020,RESOURCES & TRANSFORMATION,MERCURE BARONS COURT HO,06/04/2020,H59620200407SDIPUTMFX-1,695.00,BED & BREAKFAST PAYMENTS-HOTEL ACCOMMODATION-EMPLOYEES,"HOTELS, MOTELS, RESORTS",GPC
WALSALL COUNCIL,HTTP://OPENDATACOMMUNITIES.ORG/ID/METROPOLITAN-DISTRICT-COUNCIL/WALSALL,30/06/2020,RESOURCES & TRANSFORMATION,AMZNMKTPLACE,06/04/2020,H59620200407SFLGYFLBT-1,11.48,COMMUNICATIONS-STATIONERY & GENERAL OFFICE SU,MISCELLANEOUS AND SPECIALTY RETAIL STORES,GPC
WALSALL COUNCIL,HTTP://OPENDATACOMMUNITIES.ORG/ID/METROPOLITAN-DISTRICT-COUNCIL/WALSALL,30/06/2020,RESOURCES & TRANSFORMATION,JOHAL DAIRIES LTD,06/04/2020,H59620200407SOCOHRHGG-1,9.40,CA OLD HALL SPECIAL SCHOOL-FOOD & DRINK SUPPLIES,OTHER NONDURABLE GOODS,GPC
WALSALL COUNCIL,HTTP://OPENDATACOMMUNITIES.ORG/ID/METROPOLITAN-DISTRICT-COUNCIL/WALSALL,30/06/2020,RESOURCES & TRANSFORMATION,JOHAL DAIRIES LTD,06/04/2020,H59620200407SPXATIHYD-1,24.19,CA BARCROFT D/C-FOOD & DRINK SUPPLIES,OTHER NONDURABLE GOODS,GPC
WALSALL COUNCIL,HTTP://OPENDATACOMMUNITIES.ORG/ID/METROPOLITAN-DISTRICT-COUNCIL/WALSALL,30/06/2020,CHILDRENS SERVICES,B&M RETAIL,06/04/2020,H59620200407SUGMCTZHN-1,6.98,CONTACT SESSIONAL STAFF-CLEANING MATERIALS,DISCOUNT STORES,GPC
WALSALL COUNCIL,HTTP://OPENDATACOMMUNITIES.ORG/ID/METROPOLITAN-DISTRICT-COUNCIL/WALSALL,30/06/2020,CHILDRENS SERVICES,AMZNMKTPLACE,06/04/2020,H59620200407TQNHITULO-1,10.00,"43A HILTON ROAD, WILLENHALL-RESIDENTS PERSONAL EXPENSES-AL",MISCELLANEOUS AND SPECIALTY RETAIL STORES,GPC
WALSALL COUNCIL,HTTP://OPENDATACOMMUNITIES.ORG/ID/METROPOLITAN-DISTRICT-COUNCIL/WALSALL,30/06/2020,CHILDRENS SERVICES,W M MORRISONS.COM,06/04/2020,H59620200407UXBAOGBSD-1,4.50,BLUEBELLS-CLEANING MATERIALS,GROCERY STORES AND SUPERMARKETS,GPC
WALSALL COUNCIL,HTTP://OPENDATACOMMUNITIES.ORG/ID/METROPOLITAN-DISTRICT-COUNCIL/WALSALL,30/06/2020,RESOURCES & TRANSFORMATION,JOHAL DAIRIES LTD,06/04/2020,H59620200407UXOYQHSVN-1,55.34,CA LINDENS PRIMARY SCHOOL-FOOD & DRINK SUPPLIES,OTHER NONDURABLE GOODS,GPC
WALSALL COUNCIL,HTTP://OPENDATACOMMUNITIES.ORG/ID/METROPOLITAN-DISTRICT-COUNCIL/WALSALL,30/06/2020,RESOURCES & TRANSFORMATION,AMZNMKTPLACE AMAZON.CO.UK,06/04/2020,H59620200407VDPJNASDO-1,49.95,AREA PARTNERSHIPS-STATIONERY & GENERAL OFFICE SU,MISCELLANEOUS AND SPECIALTY RETAIL STORES,GPC
WALSALL COUNCIL,HTTP://OPENDATACOMMUNITIES.ORG/ID/METROPOLITAN-DISTRICT-COUNCIL/WALSALL,30/06/2020,RESOURCES & TRANSFORMATION,UTILITA ENERGY LIMITED,06/04/2020,H59620200407VNSPINDGH-1,10.00,WALSALL CRISIS SUPPORT SCHEME-CRISIS SUPPORT PAYMENTS,"UTILITIES - ELECTRIC, GAS, SANITARY & WATER",GPC
WALSALL COUNCIL,HTTP://OPENDATACOMMUNITIES.ORG/ID/METROPOLITAN-DISTRICT-COUNCIL/WALSALL,30/06/2020,ECONOMY & ENVIRONMENT,AMZNMKTPLACE,06/04/2020,H59620200407VZQEJRQUB-1,54.99,GROWTH DEAL - REVENUE-PURCHASE OF FURNITURE & EQUIPM,MISCELLANEOUS AND SPECIALTY RETAIL STORES,GPC
WALSALL COUNCIL,HTTP://OPENDATACOMMUNITIES.ORG/ID/METROPOLITAN-DISTRICT-COUNCIL/WALSALL,30/06/2020,CHILDRENS SERVICES,ARGOS LTD,06/04/2020,H59620200407WADGPVVSR-1,373.93,VIRTUAL SCHOOL - CENTRAL PUPIL-OTHER EXPENSES,DISCOUNT STORES,GPC
WALSALL COUNCIL,HTTP://OPENDATACOMMUNITIES.ORG/ID/METROPOLITAN-DISTRICT-COUNCIL/WALSALL,30/06/2020,RESOURCES & TRANSFORMATION,HTTP://WEBEX.COM,06/04/2020,H59620200407WBVAKPQGK-1,14.40,DATA CENTRES-PROFESSIONAL FEES & SERVICES,OTHER BUSINESS SERVICES,GPC
WALSALL COUNCIL,HTTP://OPENDATACOMMUNITIES.ORG/ID/METROPOLITAN-DISTRICT-COUNCIL/WALSALL,30/06/2020,CHILDRENS SERVICES,AMZNMKTPLACE,06/04/2020,H59620200407WSPBRGZIW-1,299.00,VIRTUAL SCHOOL - CENTRAL PUPIL-OTHER EXPENSES,MISCELLANEOUS AND SPECIALTY RETAIL STORES,GPC
WALSALL COUNCIL,HTTP://OPENDATACOMMUNITIES.ORG/ID/METROPOLITAN-DISTRICT-COUNCIL/WALSALL,30/06/2020,CHILDRENS SERVICES,WWW.SECURE-PAYMENT-SER,06/04/2020,H59620200407XOQILPMMR-1,5.00,TRANSITION AND LEAVING CARE PL-COMPUTER EQUIPMENT,"COMPUTER PROGRAM, SYSTEM DESIGN",GPC
WALSALL COUNCIL,HTTP://OPENDATACOMMUNITIES.ORG/ID/METROPOLITAN-DISTRICT-COUNCIL/WALSALL,30/06/2020,RESOURCES & TRANSFORMATION,JOHAL DAIRIES LTD,06/04/2020,H59620200407XSVJYCJUV-1,43.56,CA RUSHALL JMI SCHOOL-FOOD & DRINK SUPPLIES,OTHER NONDURABLE GOODS,GPC
WALSALL COUNCIL,HTTP://OPENDATACOMMUNITIES.ORG/ID/METROPOLITAN-DISTRICT-COUNCIL/WALSALL,30/06/2020,RESOURCES & TRANSFORMATION,JOHAL DAIRIES LTD,06/04/2020,H59620200407XTEVMLPFT-1,11.28,CA ST GILES C.E. PRIMARY SCHOO-FOOD & DRINK SUPPLIES,OTHER NONDURABLE GOODS,GPC
WALSALL COUNCIL,HTTP://OPENDATACOMMUNITIES.ORG/ID/METROPOLITAN-DISTRICT-COUNCIL/WALSALL,30/06/2020,CHILDRENS SERVICES,BAINS CONVENIENCE STORE,06/04/2020,H59620200407XWQCFSSOJ-1,10.00,ADOLESCENT SERVICE-GAS,GROCERY STORES AND SUPERMARKETS,GPC
WALSALL COUNCIL,HTTP://OPENDATACOMMUNITIES.ORG/ID/METROPOLITAN-DISTRICT-COUNCIL/WALSALL,30/06/2020,RESOURCES & TRANSFORMATION,JOHAL DAIRIES LTD,06/04/2020,H59620200407YSDQTXBMK-1,62.68,CA ST JOHNS C.E. PRIMARY SCHOO-FOOD & DRINK SUPPLIES,OTHER NONDURABLE GOODS,GPC
WALSALL COUNCIL,HTTP://OPENDATACOMMUNITIES.ORG/ID/METROPOLITAN-DISTRICT-COUNCIL/WALSALL,30/06/2020,CHILDRENS SERVICES,TEXTHELP,06/04/2020,H59620200407YULDRMWQC-1,180.00,CONTACT SESSIONAL STAFF-COMPUTER EQUIPMENT,COMPUTER SOFTWARE STORES,GPC
WALSALL COUNCIL,HTTP://OPENDATACOMMUNITIES.ORG/ID/METROPOLITAN-DISTRICT-COUNCIL/WALSALL,30/06/2020,RESOURCES & TRANSFORMATION,JOHAL DAIRIES LTD,06/04/2020,H59620200407YVHEDDIGD-1,-1.88,CA ELMWOOD SPECIAL SCHOOL-FOOD & DRINK SUPPLIES,OTHER NONDURABLE GOODS,GPC
WALSALL COUNCIL,HTTP://OPENDATACOMMUNITIES.ORG/ID/METROPOLITAN-DISTRICT-COUNCIL/WALSALL,30/06/2020,RESOURCES & TRANSFORMATION,FOREIGN EXCHANGE FEE,06/04/2020,H59620200407ZICLXULDD-1,7.84,APPLICATIONS-COMPUTER EQUIPMENT,,GPC
WALSALL COUNCIL,HTTP://OPENDATACOMMUNITIES.ORG/ID/METROPOLITAN-DISTRICT-COUNCIL/WALSALL,30/06/2020,CHILDRENS SERVICES,ARGOS LTD,06/04/2020,H59620200407ZUMENIHWR-1,363.93,VIRTUAL SCHOOL - CENTRAL PUPIL-OTHER EXPENSES,DISCOUNT STORES,GPC
WALSALL COUNCIL,HTTP://OPENDATACOMMUNITIES.ORG/ID/METROPOLITAN-DISTRICT-COUNCIL/WALSALL,30/06/2020,RESOURCES & TRANSFORMATION,AMZNMKTPLACE AMAZON.CO.UK,07/04/2020,H59620200408BDLMLPYFN-1,79.90,RECHARGEABLE EQUIPMENT-COMPUTER EQUIPMENT,MISCELLANEOUS AND SPECIALTY RETAIL STORES,GPC
WALSALL COUNCIL,HTTP://OPENDATACOMMUNITIES.ORG/ID/METROPOLITAN-DISTRICT-COUNCIL/WALSALL,30/06/2020,RESOURCES & TRANSFORMATION,AMZNMKTPLACE,07/04/2020,H59620200408BNZTSLSML-1,29.99,AREA PARTNERSHIPS-STATIONERY & GENERAL OFFICE SU,MISCELLANEOUS AND SPECIALTY RETAIL STORES,GPC
WALSALL COUNCIL,HTTP://OPENDATACOMMUNITIES.ORG/ID/METROPOLITAN-DISTRICT-COUNCIL/WALSALL,30/06/2020,CHILDRENS SERVICES,WWW.SECURE-PAYMENT-SER,07/04/2020,H59620200408DIKIFSMPE-1,5.00,TRANSITION AND LEAVING CARE PL-COMPUTER EQUIPMENT,"COMPUTER PROGRAM, SYSTEM DESIGN",GPC
WALSALL COUNCIL,HTTP://OPENDATACOMMUNITIES.ORG/ID/METROPOLITAN-DISTRICT-COUNCIL/WALSALL,30/06/2020,ECONOMY & ENVIRONMENT,WWW.BANNERUK.COM,07/04/2020,H59620200408ECJUNIHXV-1,4.80,NEW ART GALLERY - ADMIN-STATIONERY & GENERAL OFFICE SU,"STATIONERY, OFFICE SUPPLIES AND WRITING PAPER",GPC
WALSALL COUNCIL,HTTP://OPENDATACOMMUNITIES.ORG/ID/METROPOLITAN-DISTRICT-COUNCIL/WALSALL,30/06/2020,ADULT SOCIAL CARE,SAINSBURYS S/MKTS,07/04/2020,H59620200408EEDCQNRTM-1,36.90,GOSCOTE-FOOD & DRINK SUPPLIES,GROCERY STORES AND SUPERMARKETS,GPC
WALSALL COUNCIL,HTTP://OPENDATACOMMUNITIES.ORG/ID/METROPOLITAN-DISTRICT-COUNCIL/WALSALL,30/06/2020,RESOURCES & TRANSFORMATION,AMZNMKTPLACE,07/04/2020,H59620200408EEYBCUQLZ-1,29.99,AREA PARTNERSHIPS-STATIONERY & GENERAL OFFICE SU,MISCELLANEOUS AND SPECIALTY RETAIL STORES,GPC
WALSALL COUNCIL,HTTP://OPENDATACOMMUNITIES.ORG/ID/METROPOLITAN-DISTRICT-COUNCIL/WALSALL,30/06/2020,RESOURCES & TRANSFORMATION,ARTHUR BRETT CATER,07/04/2020,H59620200408FTYHOPCIM-1,-14.90,CA LINDENS PRIMARY SCHOOL-FOOD & DRINK SUPPLIES,MISCELLANEOUS FOOD STORES & CONVENIENCE STORES,GPC
WALSALL COUNCIL,HTTP://OPENDATACOMMUNITIES.ORG/ID/METROPOLITAN-DISTRICT-COUNCIL/WALSALL,30/06/2020,RESOURCES & TRANSFORMATION,AMZNMKTPLACE,07/04/2020,H59620200408GMDFRXDPB-1,93.54,AREA PARTNERSHIPS-STATIONERY & GENERAL OFFICE SU,MISCELLANEOUS AND SPECIALTY RETAIL STORES,GPC
WALSALL COUNCIL,HTTP://OPENDATACOMMUNITIES.ORG/ID/METROPOLITAN-DISTRICT-COUNCIL/WALSALL,30/06/2020,RESOURCES & TRANSFORMATION,AMZNMKTPLACE AMAZON.CO.UK,07/04/2020,H59620200408GVNQHBOOU-1,29.99,AREA PARTNERSHIPS-STATIONERY & GENERAL OFFICE SU,MISCELLANEOUS AND SPECIALTY RETAIL STORES,GPC
WALSALL COUNCIL,HTTP://OPENDATACOMMUNITIES.ORG/ID/METROPOLITAN-DISTRICT-COUNCIL/WALSALL,30/06/2020,CHILDRENS SERVICES,WWW.SECURE-PAYMENT-SER,07/04/2020,H59620200408HIYKXOJHP-1,5.00,TRANSITION AND LEAVING CARE PL-FEES & LICENCES,"COMPUTER PROGRAM, SYSTEM DESIGN",GPC
WALSALL COUNCIL,HTTP://OPENDATACOMMUNITIES.ORG/ID/METROPOLITAN-DISTRICT-COUNCIL/WALSALL,30/06/2020,CHILDRENS SERVICES,AMZNMKTPLACE,07/04/2020,H59620200408HLVDBGJJW-1,36.85,ADMINISTRATIVE SUPPLIES-MATERIALS,MISCELLANEOUS AND SPECIALTY RETAIL STORES,GPC
WALSALL COUNCIL,HTTP://OPENDATACOMMUNITIES.ORG/ID/METROPOLITAN-DISTRICT-COUNCIL/WALSALL,30/06/2020,CHILDRENS SERVICES,WALSALL COUNCIL,07/04/2020,H59620200408HTSWPPHRH-1,17.00,SAFEGUARDING & FAMILY SUPPORT-FEES & LICENCES,GOVERNMENT SERVICES,GPC
WALSALL COUNCIL,HTTP://OPENDATACOMMUNITIES.ORG/ID/METROPOLITAN-DISTRICT-COUNCIL/WALSALL,30/06/2020,CHILDRENS SERVICES,WWW.GAME.CO.UK,07/04/2020,H59620200408IFPQUBOIE-1,60.00,57 LICHFIELD ROAD-RESIDENTS PERSONAL EXPENSES-AL,"GAME, TOY, AND HOBBY SHOPS",GPC
WALSALL COUNCIL,HTTP://OPENDATACOMMUNITIES.ORG/ID/METROPOLITAN-DISTRICT-COUNCIL/WALSALL,30/06/2020,RESOURCES & TRANSFORMATION,AMZNMKTPLACE,07/04/2020,H59620200408JRWYRGCDY-1,25.76,AREA PARTNERSHIPS-STATIONERY & GENERAL OFFICE SU,MISCELLANEOUS AND SPECIALTY RETAIL STORES,GPC
WALSALL COUNCIL,HTTP://OPENDATACOMMUNITIES.ORG/ID/METROPOLITAN-DISTRICT-COUNCIL/WALSALL,30/06/2020,RESOURCES & TRANSFORMATION,AMZNMKTPLACE AMAZON.CO.UK,07/04/2020,H59620200408JWCSFXZYE-1,56.00,AREA PARTNERSHIPS-STATIONERY & GENERAL OFFICE SU,MISCELLANEOUS AND SPECIALTY RETAIL STORES,GPC
WALSALL COUNCIL,HTTP://OPENDATACOMMUNITIES.ORG/ID/METROPOLITAN-DISTRICT-COUNCIL/WALSALL,30/06/2020,CHILDRENS SERVICES,W M MORRISONS.COM,07/04/2020,H59620200408NSQBUVFKC-1,40.00,REDRUTH ROAD-CLEANING MATERIALS,GROCERY STORES AND SUPERMARKETS,GPC
WALSALL COUNCIL,HTTP://OPENDATACOMMUNITIES.ORG/ID/METROPOLITAN-DISTRICT-COUNCIL/WALSALL,30/06/2020,RESOURCES & TRANSFORMATION,ALDI 78 772,07/04/2020,H59620200408ODBDBYLLH-1,3.90,ACCOMMODATION SERVICES MANAGEM-FOOD & DRINK SUPPLIES,GROCERY STORES AND SUPERMARKETS,GPC
WALSALL COUNCIL,HTTP://OPENDATACOMMUNITIES.ORG/ID/METROPOLITAN-DISTRICT-COUNCIL/WALSALL,30/06/2020,RESOURCES & TRANSFORMATION,AMZNMKTPLACE AMAZON.CO.UK,07/04/2020,H59620200408ONGWWMJRN-1,25.76,AREA PARTNERSHIPS-STATIONERY & GENERAL OFFICE SU,MISCELLANEOUS AND SPECIALTY RETAIL STORES,GPC
WALSALL COUNCIL,HTTP://OPENDATACOMMUNITIES.ORG/ID/METROPOLITAN-DISTRICT-COUNCIL/WALSALL,30/06/2020,CHILDRENS SERVICES,WWW.SECURE-PAYMENT-SER,07/04/2020,H59620200408QDBPXMMUD-1,5.00,TRANSITION AND LEAVING CARE PL-FEES & LICENCES,"COMPUTER PROGRAM, SYSTEM DESIGN",GPC
WALSALL COUNCIL,HTTP://OPENDATACOMMUNITIES.ORG/ID/METROPOLITAN-DISTRICT-COUNCIL/WALSALL,30/06/2020,RESOURCES & TRANSFORMATION,AMZNMKTPLACE AMAZON.CO.UK,07/04/2020,H59620200408RQEVBTIAC-1,25.76,AREA PARTNERSHIPS-STATIONERY & GENERAL OFFICE SU,MISCELLANEOUS AND SPECIALTY RETAIL STORES,GPC
WALSALL COUNCIL,HTTP://OPENDATACOMMUNITIES.ORG/ID/METROPOLITAN-DISTRICT-COUNCIL/WALSALL,30/06/2020,CHILDRENS SERVICES,AMZNMKTPLACE,07/04/2020,H59620200408SLOGNLBYO-1,6.14,VIRTUAL SCHOOL - CENTRAL PUPIL-OTHER EXPENSES,MISCELLANEOUS AND SPECIALTY RETAIL STORES,GPC
WALSALL COUNCIL,HTTP://OPENDATACOMMUNITIES.ORG/ID/METROPOLITAN-DISTRICT-COUNCIL/WALSALL,30/06/2020,RESOURCES & TRANSFORMATION,AMZNMKTPLACE,07/04/2020,H59620200408SVVMQDHKB-1,25.76,AREA PARTNERSHIPS-STATIONERY & GENERAL OFFICE SU,MISCELLANEOUS AND SPECIALTY RETAIL STORES,GPC
WALSALL COUNCIL,HTTP://OPENDATACOMMUNITIES.ORG/ID/METROPOLITAN-DISTRICT-COUNCIL/WALSALL,30/06/2020,RESOURCES & TRANSFORMATION,METRO INNS WALSALL,07/04/2020,H59620200408TPSFOBIJT-1,152.00,BED & BREAKFAST PAYMENTS-HOTEL ACCOMMODATION-EMPLOYEES,"HOTELS, MOTELS, RESORTS",GPC
WALSALL COUNCIL,HTTP://OPENDATACOMMUNITIES.ORG/ID/METROPOLITAN-DISTRICT-COUNCIL/WALSALL,30/06/2020,CHILDRENS SERVICES,WWW.SECURE-PAYMENT-SER,07/04/2020,H59620200408TVVAPQYUL-1,5.00,TRANSITION AND LEAVING CARE PL-FEES & LICENCES,"COMPUTER PROGRAM, SYSTEM DESIGN",GPC
WALSALL COUNCIL,HTTP://OPENDATACOMMUNITIES.ORG/ID/METROPOLITAN-DISTRICT-COUNCIL/WALSALL,30/06/2020,CHILDRENS SERVICES,POST OFFICE COUNTER,07/04/2020,H59620200408UENBGJCUK-1,36.48,BLUEBELLS-POSTAGES & COURIER SERVICES,POSTAL SERVICES - GOVERNMENT ONLY,GPC
WALSALL COUNCIL,HTTP://OPENDATACOMMUNITIES.ORG/ID/METROPOLITAN-DISTRICT-COUNCIL/WALSALL,30/06/2020,RESOURCES & TRANSFORMATION,FACEBK EHR7PQEN22,07/04/2020,H59620200408VGUGEFIDX-1,7.00,AREA PARTNERSHIPS-PUBLICITY & ADVERTISING (NON S,ADVERTISING SERVICES,GPC
WALSALL COUNCIL,HTTP://OPENDATACOMMUNITIES.ORG/ID/METROPOLITAN-DISTRICT-COUNCIL/WALSALL,30/06/2020,CHILDRENS SERVICES,LIDL GB WALSALL,07/04/2020,H59620200408VPTFXOLZP-1,86.67,REDRUTH ROAD-FOOD & DRINK SUPPLIES,GROCERY STORES AND SUPERMARKETS,GPC
WALSALL COUNCIL,HTTP://OPENDATACOMMUNITIES.ORG/ID/METROPOLITAN-DISTRICT-COUNCIL/WALSALL,30/06/2020,CHILDRENS SERVICES,LIDL GB WALSALL,07/04/2020,H59620200408VPTFXOLZP-2,11.94,REDRUTH ROAD-FOOD & DRINK SUPPLIES,GROCERY STORES AND SUPERMARKETS,GPC
WALSALL COUNCIL,HTTP://OPENDATACOMMUNITIES.ORG/ID/METROPOLITAN-DISTRICT-COUNCIL/WALSALL,30/06/2020,CHILDRENS SERVICES,POUNDLAND,07/04/2020,H59620200408VRFUBIOGF-1,3.00,TARGETED YOUTH WORK-EXTERNALLY FUNDED COMMISSION P,DISCOUNT STORES,GPC
WALSALL COUNCIL,HTTP://OPENDATACOMMUNITIES.ORG/ID/METROPOLITAN-DISTRICT-COUNCIL/WALSALL,30/06/2020,CHILDRENS SERVICES,POUNDLAND,07/04/2020,H59620200408VRFUBIOGF-2,18.00,TARGETED YOUTH WORK-EXTERNALLY FUNDED COMMISSION P,DISCOUNT STORES,GPC
WALSALL COUNCIL,HTTP://OPENDATACOMMUNITIES.ORG/ID/METROPOLITAN-DISTRICT-COUNCIL/WALSALL,30/06/2020,CHILDRENS SERVICES,WEST MIDLANDS TRAV,07/04/2020,H59620200408WOHFENSNS-1,59.00,SCHOOL IMPROVEMENT - VIRTUAL S-OTHER EXPENSES,BUS LINES,GPC
WALSALL COUNCIL,HTTP://OPENDATACOMMUNITIES.ORG/ID/METROPOLITAN-DISTRICT-COUNCIL/WALSALL,30/06/2020,RESOURCES & TRANSFORMATION,AMZNMKTPLACE AMAZON.CO.UK,07/04/2020,H59620200408WRJTTYZBS-1,29.99,AREA PARTNERSHIPS-STATIONERY & GENERAL OFFICE SU,MISCELLANEOUS AND SPECIALTY RETAIL STORES,GPC
WALSALL COUNCIL,HTTP://OPENDATACOMMUNITIES.ORG/ID/METROPOLITAN-DISTRICT-COUNCIL/WALSALL,30/06/2020,CHILDRENS SERVICES,NEST.COM,07/04/2020,H59620200408XDKJMGVSC-1,40.00,ST FRANCIS OF ASSISI CATHOLIC -OPERATIONAL MAINTENANCE,ELECTRICAL PARTS AND EQUIPMENT,GPC
WALSALL COUNCIL,HTTP://OPENDATACOMMUNITIES.ORG/ID/METROPOLITAN-DISTRICT-COUNCIL/WALSALL,30/06/2020,ADULT SOCIAL CARE,WM MORRISONS STORE,07/04/2020,H59620200408ZIRIXAJUA-1,32.00,GOSCOTE-FOOD & DRINK SUPPLIES,GROCERY STORES AND SUPERMARKETS,GPC
WALSALL COUNCIL,HTTP://OPENDATACOMMUNITIES.ORG/ID/METROPOLITAN-DISTRICT-COUNCIL/WALSALL,30/06/2020,RESOURCES & TRANSFORMATION,AMZNMKTPLACE,08/04/2020,H59620200409BYILHHCES-1,71.71,AREA PARTNERSHIPS-STATIONERY & GENERAL OFFICE SU,MISCELLANEOUS AND SPECIALTY RETAIL STORES,GPC
WALSALL COUNCIL,HTTP://OPENDATACOMMUNITIES.ORG/ID/METROPOLITAN-DISTRICT-COUNCIL/WALSALL,30/06/2020,RESOURCES & TRANSFORMATION,BESTWAY WALSALL,08/04/2020,H59620200409CBIKQUNCD-1,9.59,WALSALL TOWN HALL-FOOD & DRINK SUPPLIES,DAIRY PRODUCTS STORES,GPC
WALSALL COUNCIL,HTTP://OPENDATACOMMUNITIES.ORG/ID/METROPOLITAN-DISTRICT-COUNCIL/WALSALL,30/06/2020,CHILDRENS SERVICES,TTROCKSTARS.COM,08/04/2020,H59620200409CSTOVIYNF-1,144.12,MATHEMATICS-SUBSCRIPTIONS,OTHER SCHOOLS AND EDUCATIONAL SERVICES,GPC
WALSALL COUNCIL,HTTP://OPENDATACOMMUNITIES.ORG/ID/METROPOLITAN-DISTRICT-COUNCIL/WALSALL,30/06/2020,ECONOMY & ENVIRONMENT,DVLA VEHICLE TAX,08/04/2020,H59620200409CVYEFOFVQ-1,1138.50,FLEET-LICENCES FOR VEHICLES,TAX PAYMENTS,GPC
WALSALL COUNCIL,HTTP://OPENDATACOMMUNITIES.ORG/ID/METROPOLITAN-DISTRICT-COUNCIL/WALSALL,30/06/2020,ECONOMY & ENVIRONMENT,DVLA VEHICLE TAX,08/04/2020,H59620200409DXSAHRMTM-1,202.00,FLEET-LICENCES FOR VEHICLES,TAX PAYMENTS,GPC
WALSALL COUNCIL,HTTP://OPENDATACOMMUNITIES.ORG/ID/METROPOLITAN-DISTRICT-COUNCIL/WALSALL,30/06/2020,ECONOMY & ENVIRONMENT,DVLA VEHICLE TAX,08/04/2020,H59620200409FBKCLJURH-1,202.00,FLEET-LICENCES FOR VEHICLES,TAX PAYMENTS,GPC
WALSALL COUNCIL,HTTP://OPENDATACOMMUNITIES.ORG/ID/METROPOLITAN-DISTRICT-COUNCIL/WALSALL,30/06/2020,ECONOMY & ENVIRONMENT,AMAZON.CO.UK*E65EE2BZ5,08/04/2020,H59620200409GDOYSDDKM-1,16.97,CENTRALISED STATIONARY-STATIONERY & GENERAL OFFICE SU,OTHER DIRECT MARKETING-OTHER DIRECT MARKETERS,GPC
WALSALL COUNCIL,HTTP://OPENDATACOMMUNITIES.ORG/ID/METROPOLITAN-DISTRICT-COUNCIL/WALSALL,30/06/2020,RESOURCES & TRANSFORMATION,HOTEL ON BOOKING.COM,08/04/2020,H59620200409GKQGPLJMI-1,30.00,BED & BREAKFAST PAYMENTS-HOTEL ACCOMMODATION-EMPLOYEES,"HOTELS, MOTELS, RESORTS",GPC
WALSALL COUNCIL,HTTP://OPENDATACOMMUNITIES.ORG/ID/METROPOLITAN-DISTRICT-COUNCIL/WALSALL,30/06/2020,CHILDRENS SERVICES,AMZNMKTPLACE,08/04/2020,H59620200409GPEVKASGS-1,22.99,VIRTUAL SCHOOL - CENTRAL PUPIL-OTHER EXPENSES,MISCELLANEOUS AND SPECIALTY RETAIL STORES,GPC
WALSALL COUNCIL,HTTP://OPENDATACOMMUNITIES.ORG/ID/METROPOLITAN-DISTRICT-COUNCIL/WALSALL,30/06/2020,ECONOMY & ENVIRONMENT,DVLA VEHICLE TAX,08/04/2020,H59620200409JNWQBZCZA-1,267.50,FLEET-LICENCES FOR VEHICLES,TAX PAYMENTS,GPC
WALSALL COUNCIL,HTTP://OPENDATACOMMUNITIES.ORG/ID/METROPOLITAN-DISTRICT-COUNCIL/WALSALL,30/06/2020,ECONOMY & ENVIRONMENT,E CAREERS,08/04/2020,H59620200409LALRYWLPR-1,112.50,YEI ESF FUNDING-PROFESSIONAL FEES & SERVICES,COMPUTER NETWORK/INFORMATION SERVICES,GPC
WALSALL COUNCIL,HTTP://OPENDATACOMMUNITIES.ORG/ID/METROPOLITAN-DISTRICT-COUNCIL/WALSALL,30/06/2020,ECONOMY & ENVIRONMENT,E CAREERS,08/04/2020,H59620200409LALRYWLPR-2,112.50,YEI (IMPACT) PROGRAMME-PROFESSIONAL FEES & SERVICES,COMPUTER NETWORK/INFORMATION SERVICES,GPC
WALSALL COUNCIL,HTTP://OPENDATACOMMUNITIES.ORG/ID/METROPOLITAN-DISTRICT-COUNCIL/WALSALL,30/06/2020,ECONOMY & ENVIRONMENT,SQ *T.MORGAN & SONS(LOCK,08/04/2020,H59620200409LUDYPSCXD-1,45.60,INFRASTRUCTURE MAINTENANCE-MATERIALS,"GENERAL CONTRACTORS, RESIDENTIAL AND COMMERCIAL",GPC
WALSALL COUNCIL,HTTP://OPENDATACOMMUNITIES.ORG/ID/METROPOLITAN-DISTRICT-COUNCIL/WALSALL,30/06/2020,CHILDRENS SERVICES,POST OFFICE COUNTER,08/04/2020,H59620200409MBDHHBYWH-1,11.00,SAFEGUARDING & FAMILY SUPPORT-POSTAGES & COURIER SERVICES,POSTAL SERVICES - GOVERNMENT ONLY,GPC
WALSALL COUNCIL,HTTP://OPENDATACOMMUNITIES.ORG/ID/METROPOLITAN-DISTRICT-COUNCIL/WALSALL,30/06/2020,CHILDRENS SERVICES,SAINSBURYS S/MKT,08/04/2020,H59620200409NBMVDMCEO-1,41.00,REDRUTH ROAD-RESIDENTS PERSONAL EXPENSES-AL,GROCERY STORES AND SUPERMARKETS,GPC
WALSALL COUNCIL,HTTP://OPENDATACOMMUNITIES.ORG/ID/METROPOLITAN-DISTRICT-COUNCIL/WALSALL,30/06/2020,RESOURCES & TRANSFORMATION,AMZNMKTPLACE,08/04/2020,H59620200409OBXSEYHMU-1,71.95,AREA PARTNERSHIPS-STATIONERY & GENERAL OFFICE SU,MISCELLANEOUS AND SPECIALTY RETAIL STORES,GPC
WALSALL COUNCIL,HTTP://OPENDATACOMMUNITIES.ORG/ID/METROPOLITAN-DISTRICT-COUNCIL/WALSALL,30/06/2020,CHILDRENS SERVICES,CURRYS ONLINE,08/04/2020,H59620200409OFFXEHSMX-1,398.00,VIRTUAL SCHOOL - CENTRAL PUPIL-OTHER EXPENSES,ELECTRONIC SALES,GPC
WALSALL COUNCIL,HTTP://OPENDATACOMMUNITIES.ORG/ID/METROPOLITAN-DISTRICT-COUNCIL/WALSALL,30/06/2020,CHILDRENS SERVICES,ARGOS LTD,08/04/2020,H59620200409OGWUBYWGE-1,542.93,VIRTUAL SCHOOL - CENTRAL PUPIL-OTHER EXPENSES,DISCOUNT STORES,GPC
WALSALL COUNCIL,HTTP://OPENDATACOMMUNITIES.ORG/ID/METROPOLITAN-DISTRICT-COUNCIL/WALSALL,30/06/2020,CHILDRENS SERVICES - SCHOOLS,BT BILL PAYMENT 2,08/04/2020,H59620200409OJECRANPY-1,135.16,MILLFIELD PRIMARY SCHOOL-MOBILE PHONES,TELECOMMUNICATION EQUIPMENT & SALES,GPC
WALSALL COUNCIL,HTTP://OPENDATACOMMUNITIES.ORG/ID/METROPOLITAN-DISTRICT-COUNCIL/WALSALL,30/06/2020,CHILDRENS SERVICES,SMYTHSTOYS.COM,08/04/2020,H59620200409OLFWSBLLK-1,42.97,SAFEGUARDING & FAMILY SUPPORT-SECTION 1/17CHILD CARE ACT 198,"GAME, TOY, AND HOBBY SHOPS",GPC
WALSALL COUNCIL,HTTP://OPENDATACOMMUNITIES.ORG/ID/METROPOLITAN-DISTRICT-COUNCIL/WALSALL,30/06/2020,RESOURCES & TRANSFORMATION,AMZNMKTPLACE AMAZON.CO.UK,08/04/2020,H59620200409QTEEORBTF-1,71.95,AREA PARTNERSHIPS-STATIONERY & GENERAL OFFICE SU,MISCELLANEOUS AND SPECIALTY RETAIL STORES,GPC
WALSALL COUNCIL,HTTP://OPENDATACOMMUNITIES.ORG/ID/METROPOLITAN-DISTRICT-COUNCIL/WALSALL,30/06/2020,CHILDRENS SERVICES,CURRYS ONLINE,08/04/2020,H59620200409RZKINGTVW-1,199.00,VIRTUAL SCHOOL - CENTRAL PUPIL-OTHER EXPENSES,ELECTRONIC SALES,GPC
WALSALL COUNCIL,HTTP://OPENDATACOMMUNITIES.ORG/ID/METROPOLITAN-DISTRICT-COUNCIL/WALSALL,30/06/2020,ECONOMY & ENVIRONMENT,DVLA VEHICLE TAX,08/04/2020,H59620200409SQBHMOXMW-1,267.50,FLEET-LICENCES FOR VEHICLES,TAX PAYMENTS,GPC
WALSALL COUNCIL,HTTP://OPENDATACOMMUNITIES.ORG/ID/METROPOLITAN-DISTRICT-COUNCIL/WALSALL,30/06/2020,CHILDRENS SERVICES,B&M RETAIL LTD,08/04/2020,H59620200409TKIXLZWFH-1,73.04,REDRUTH ROAD-OPERATIONAL MAINTENANCE,DISCOUNT STORES,GPC
WALSALL COUNCIL,HTTP://OPENDATACOMMUNITIES.ORG/ID/METROPOLITAN-DISTRICT-COUNCIL/WALSALL,30/06/2020,ECONOMY & ENVIRONMENT,DVLA VEHICLE TAX,08/04/2020,H59620200409TUQGBTKTA-1,267.50,FLEET-LICENCES FOR VEHICLES,TAX PAYMENTS,GPC
WALSALL COUNCIL,HTTP://OPENDATACOMMUNITIES.ORG/ID/METROPOLITAN-DISTRICT-COUNCIL/WALSALL,30/06/2020,CHILDRENS SERVICES,POUNDLAND,08/04/2020,H59620200409USWDJVUHY-1,3.00,ADOLESCENT SERVICE-FOOD & DRINK SUPPLIES,DISCOUNT STORES,GPC
WALSALL COUNCIL,HTTP://OPENDATACOMMUNITIES.ORG/ID/METROPOLITAN-DISTRICT-COUNCIL/WALSALL,30/06/2020,CHILDRENS SERVICES,AMZNMKTPLACE,08/04/2020,H59620200409VFFJCTXRV-1,54.99,VIRTUAL SCHOOL - CENTRAL PUPIL-OTHER EXPENSES,MISCELLANEOUS AND SPECIALTY RETAIL STORES,GPC
WALSALL COUNCIL,HTTP://OPENDATACOMMUNITIES.ORG/ID/METROPOLITAN-DISTRICT-COUNCIL/WALSALL,30/06/2020,CHILDRENS SERVICES - SCHOOLS,BUZZ CONNECT,08/04/2020,H59620200409VHBSTGSEP-1,12.96,CADMUS FEDERATION-MATERIALS,TELECOMMUNICATION SERVICES,GPC
WALSALL COUNCIL,HTTP://OPENDATACOMMUNITIES.ORG/ID/METROPOLITAN-DISTRICT-COUNCIL/WALSALL,30/06/2020,CHILDRENS SERVICES,ARGOS LTD,08/04/2020,H59620200409VHDTXQVCD-1,343.93,VIRTUAL SCHOOL - CENTRAL PUPIL-COMPUTER EQUIPMENT,DISCOUNT STORES,GPC
WALSALL COUNCIL,HTTP://OPENDATACOMMUNITIES.ORG/ID/METROPOLITAN-DISTRICT-COUNCIL/WALSALL,30/06/2020,CHILDRENS SERVICES,ARGOS LTD,08/04/2020,H59620200409VPNUWROBK-1,343.93,VIRTUAL SCHOOL - CENTRAL PUPIL-OTHER EXPENSES,DISCOUNT STORES,GPC
WALSALL COUNCIL,HTTP://OPENDATACOMMUNITIES.ORG/ID/METROPOLITAN-DISTRICT-COUNCIL/WALSALL,30/06/2020,RESOURCES & TRANSFORMATION,AMZNMKTPLACE AMAZON.CO.UK,08/04/2020,H59620200409WCWPQPGDP-1,71.71,AREA PARTNERSHIPS-STATIONERY & GENERAL OFFICE SU,MISCELLANEOUS AND SPECIALTY RETAIL STORES,GPC
WALSALL COUNCIL,HTTP://OPENDATACOMMUNITIES.ORG/ID/METROPOLITAN-DISTRICT-COUNCIL/WALSALL,30/06/2020,ECONOMY & ENVIRONMENT,CO-OPERATIVE FOOD,08/04/2020,H59620200409XGYPKSZTA-1,3.90,BLOXWICH LEISURE CENTRE-MATERIALS,GROCERY STORES AND SUPERMARKETS,GPC
WALSALL COUNCIL,HTTP://OPENDATACOMMUNITIES.ORG/ID/METROPOLITAN-DISTRICT-COUNCIL/WALSALL,30/06/2020,ECONOMY & ENVIRONMENT,CO-OPERATIVE FOOD,08/04/2020,H59620200409XGYPKSZTA-2,3.90,OAK PARK-MATERIALS,GROCERY STORES AND SUPERMARKETS,GPC
WALSALL COUNCIL,HTTP://OPENDATACOMMUNITIES.ORG/ID/METROPOLITAN-DISTRICT-COUNCIL/WALSALL,30/06/2020,CHILDRENS SERVICES,CURRYS ONLINE,08/04/2020,H59620200409XXMNNXORJ-1,199.00,VIRTUAL SCHOOL - CENTRAL PUPIL-OTHER EXPENSES,ELECTRONIC SALES,GPC
WALSALL COUNCIL,HTTP://OPENDATACOMMUNITIES.ORG/ID/METROPOLITAN-DISTRICT-COUNCIL/WALSALL,30/06/2020,RESOURCES & TRANSFORMATION,WICKES BUILDING,08/04/2020,H59620200409YAKQYMNOG-1,78.00,CATERING - MANAGEMENT-MATERIALS,LUMBER & BUILDING MATERIALS STORES,GPC
WALSALL COUNCIL,HTTP://OPENDATACOMMUNITIES.ORG/ID/METROPOLITAN-DISTRICT-COUNCIL/WALSALL,30/06/2020,CHILDRENS SERVICES,AMAZON.CO.UK*MZ02L4Q25,08/04/2020,H59620200409YBYUMAFSM-1,399.00,VIRTUAL SCHOOL - CENTRAL PUPIL-OTHER EXPENSES,OTHER DIRECT MARKETING-OTHER DIRECT MARKETERS,GPC
WALSALL COUNCIL,HTTP://OPENDATACOMMUNITIES.ORG/ID/METROPOLITAN-DISTRICT-COUNCIL/WALSALL,30/06/2020,CHILDRENS SERVICES,POST OFFICE COUNTER,09/04/2020,H59620200410BLPUSOIWH-1,213.20,FAMILY PLACEMENTS-POSTAGES & COURIER SERVICES,POSTAL SERVICES - GOVERNMENT ONLY,GPC
WALSALL COUNCIL,HTTP://OPENDATACOMMUNITIES.ORG/ID/METROPOLITAN-DISTRICT-COUNCIL/WALSALL,30/06/2020,CHILDRENS SERVICES,POST OFFICE COUNTER,09/04/2020,H59620200410BNXRXDVWM-1,5.57,FAMILY PLACEMENTS-POSTAGES & COURIER SERVICES,POSTAL SERVICES - GOVERNMENT ONLY,GPC
WALSALL COUNCIL,HTTP://OPENDATACOMMUNITIES.ORG/ID/METROPOLITAN-DISTRICT-COUNCIL/WALSALL,30/06/2020,CHILDRENS SERVICES,B&M RETAIL LTD,09/04/2020,H59620200410EDSZBREMX-1,102.68,"43A HILTON ROAD, WILLENHALL-RESIDENTS PERSONAL EXPENSES-AL",DISCOUNT STORES,GPC
WALSALL COUNCIL,HTTP://OPENDATACOMMUNITIES.ORG/ID/METROPOLITAN-DISTRICT-COUNCIL/WALSALL,30/06/2020,RESOURCES & TRANSFORMATION,KAPLAN FINANCIAL LTD,09/04/2020,H59620200410FPKUSVNJV-1,275.00,FINANCE TRAINING-EXTERNAL TRAINING,"SCHOOLS, BUSINESS AND SECRETARIAL",GPC
WALSALL COUNCIL,HTTP://OPENDATACOMMUNITIES.ORG/ID/METROPOLITAN-DISTRICT-COUNCIL/WALSALL,30/06/2020,ADULT SOCIAL CARE,SIM-MAYOU HARDWARE,09/04/2020,H59620200410GGFYTVYNV-1,800.00,GOSCOTE-MATERIALS,HARDWARE STORES,GPC
WALSALL COUNCIL,HTTP://OPENDATACOMMUNITIES.ORG/ID/METROPOLITAN-DISTRICT-COUNCIL/WALSALL,30/06/2020,CHILDRENS SERVICES,SAINSBURYS SMKT,09/04/2020,H59620200410HDHZIBKLW-1,0.50,"43A HILTON ROAD, WILLENHALL-FOOD & DRINK SUPPLIES",GROCERY STORES AND SUPERMARKETS,GPC
WALSALL COUNCIL,HTTP://OPENDATACOMMUNITIES.ORG/ID/METROPOLITAN-DISTRICT-COUNCIL/WALSALL,30/06/2020,CHILDRENS SERVICES,SAINSBURYS SMKT,09/04/2020,H59620200410HDHZIBKLW-2,3.20,"43A HILTON ROAD, WILLENHALL-FOOD & DRINK SUPPLIES",GROCERY STORES AND SUPERMARKETS,GPC
WALSALL COUNCIL,HTTP://OPENDATACOMMUNITIES.ORG/ID/METROPOLITAN-DISTRICT-COUNCIL/WALSALL,30/06/2020,CHILDRENS SERVICES,AMAZON.CO.UK*R71KA09E5 AM,09/04/2020,H59620200410HFTOIVGEY-1,15.42,VIRTUAL SCHOOL - CENTRAL PUPIL-OTHER EXPENSES,MISCELLANEOUS AND SPECIALTY RETAIL STORES,GPC
WALSALL COUNCIL,HTTP://OPENDATACOMMUNITIES.ORG/ID/METROPOLITAN-DISTRICT-COUNCIL/WALSALL,30/06/2020,CHILDRENS SERVICES,WALSALL COUNCIL,09/04/2020,H59620200410JHHCVBNPQ-1,42.34,ST FRANCIS OF ASSISI CATHOLIC -POLICE CHECKS,GOVERNMENT SERVICES,GPC
WALSALL COUNCIL,HTTP://OPENDATACOMMUNITIES.ORG/ID/METROPOLITAN-DISTRICT-COUNCIL/WALSALL,30/06/2020,RESOURCES & TRANSFORMATION,ALDI 78 772,09/04/2020,H59620200410KNHOBGXYN-1,1.90,ACCOMMODATION SERVICES MANAGEM-CLEANING MATERIALS,GROCERY STORES AND SUPERMARKETS,GPC
WALSALL COUNCIL,HTTP://OPENDATACOMMUNITIES.ORG/ID/METROPOLITAN-DISTRICT-COUNCIL/WALSALL,30/06/2020,ECONOMY & ENVIRONMENT,DVLA VEHICLE TAX,09/04/2020,H59620200410KTKUREKRT-1,142.50,FLEET-LICENCES FOR VEHICLES,TAX PAYMENTS,GPC
WALSALL COUNCIL,HTTP://OPENDATACOMMUNITIES.ORG/ID/METROPOLITAN-DISTRICT-COUNCIL/WALSALL,30/06/2020,RESOURCES & TRANSFORMATION,METRO INNS WALSALL,09/04/2020,H59620200410LTYFCLKXR-1,266.00,BED & BREAKFAST PAYMENTS-HOTEL ACCOMMODATION-EMPLOYEES,"HOTELS, MOTELS, RESORTS",GPC
WALSALL COUNCIL,HTTP://OPENDATACOMMUNITIES.ORG/ID/METROPOLITAN-DISTRICT-COUNCIL/WALSALL,30/06/2020,CHILDRENS SERVICES,AMAZON.CO.UK*7J3B44H15,09/04/2020,H59620200410MJKFNGJPT-1,393.87,VIRTUAL SCHOOL - CENTRAL PUPIL-OTHER EXPENSES,OTHER DIRECT MARKETING-OTHER DIRECT MARKETERS,GPC
WALSALL COUNCIL,HTTP://OPENDATACOMMUNITIES.ORG/ID/METROPOLITAN-DISTRICT-COUNCIL/WALSALL,30/06/2020,ADULT SOCIAL CARE,REMOVALS.CO.UK,09/04/2020,H59620200410MPEPHBWMI-1,1147.42,HOLLYBANK-TRANSPORTATION-PRIV CONTRACTOR,MOTOR FREIGHT CARRIERS,GPC
WALSALL COUNCIL,HTTP://OPENDATACOMMUNITIES.ORG/ID/METROPOLITAN-DISTRICT-COUNCIL/WALSALL,30/06/2020,ECONOMY & ENVIRONMENT,MIDLANDNEWS.COM,09/04/2020,H59620200410MRTFDFHER-1,249.84,DEVELOPMENT MANAGEMENT-SUBSCRIPTIONS,NEWS DEALERS AND NEWSSTANDS,GPC
WALSALL COUNCIL,HTTP://OPENDATACOMMUNITIES.ORG/ID/METROPOLITAN-DISTRICT-COUNCIL/WALSALL,30/06/2020,CHILDRENS SERVICES,THETRAINLINE.COM,09/04/2020,H59620200410OFNDVJMSU-1,-105.40,TRANSITION AND LEAVING CARE PL-OFFICERS & STAFF PUBLIC TRANSP,PASSENGER RAILWAYS,GPC
WALSALL COUNCIL,HTTP://OPENDATACOMMUNITIES.ORG/ID/METROPOLITAN-DISTRICT-COUNCIL/WALSALL,30/06/2020,RESOURCES & TRANSFORMATION,METRO INNS WALSALL,09/04/2020,H59620200410OJHXQCMSO-1,266.00,BED & BREAKFAST PAYMENTS-HOTEL ACCOMMODATION-EMPLOYEES,"HOTELS, MOTELS, RESORTS",GPC
WALSALL COUNCIL,HTTP://OPENDATACOMMUNITIES.ORG/ID/METROPOLITAN-DISTRICT-COUNCIL/WALSALL,30/06/2020,CHILDRENS SERVICES,ARGOS LTD,09/04/2020,H59620200410PQRGHKQGC-1,49.98,REDRUTH ROAD-RESIDENTS PERSONAL EXPENSES-AL,DISCOUNT STORES,GPC
WALSALL COUNCIL,HTTP://OPENDATACOMMUNITIES.ORG/ID/METROPOLITAN-DISTRICT-COUNCIL/WALSALL,30/06/2020,ECONOMY & ENVIRONMENT,SCREWFIX DIRECT,09/04/2020,H59620200410QNXADVWQS-1,23.98,INFRASTRUCTURE MAINTENANCE-MATERIALS,HOME SUPPLY WAREHOUSE STORES,GPC
WALSALL COUNCIL,HTTP://OPENDATACOMMUNITIES.ORG/ID/METROPOLITAN-DISTRICT-COUNCIL/WALSALL,30/06/2020,CHILDRENS SERVICES,BESTWAY WALSALL,09/04/2020,H59620200410RJZCXRJCB-1,67.20,SALISBURY PRIMARY SCHOOL-MATERIALS,DAIRY PRODUCTS STORES,GPC
WALSALL COUNCIL,HTTP://OPENDATACOMMUNITIES.ORG/ID/METROPOLITAN-DISTRICT-COUNCIL/WALSALL,30/06/2020,RESOURCES & TRANSFORMATION,J9 ACCOMODATION,09/04/2020,H59620200410SLIZRXPPT-1,282.00,YOUNG PERSONS HOMELESS SERVICE-OTHER EMPLOYEES FEES & EXPENSE,REAL ESTATE MANAGERS - RENTALS,GPC
WALSALL COUNCIL,HTTP://OPENDATACOMMUNITIES.ORG/ID/METROPOLITAN-DISTRICT-COUNCIL/WALSALL,30/06/2020,RESOURCES & TRANSFORMATION,AMZNMKTPLACE,09/04/2020,H59620200410SRMCIXPNR-1,62.97,AREA PARTNERSHIPS-STATIONERY & GENERAL OFFICE SU,MISCELLANEOUS AND SPECIALTY RETAIL STORES,GPC
WALSALL COUNCIL,HTTP://OPENDATACOMMUNITIES.ORG/ID/METROPOLITAN-DISTRICT-COUNCIL/WALSALL,30/06/2020,RESOURCES & TRANSFORMATION,COBDEN HOTEL LIMITED,09/04/2020,H59620200410SZRXMVNKF-1,385.00,ACCOMMODATION SERVICES MANAGEM-BED & BREAKFAST PAYMENTS,"HOTELS, MOTELS, RESORTS",GPC
WALSALL COUNCIL,HTTP://OPENDATACOMMUNITIES.ORG/ID/METROPOLITAN-DISTRICT-COUNCIL/WALSALL,30/06/2020,RESOURCES & TRANSFORMATION,METRO INNS WALSALL,09/04/2020,H59620200410UBIFDIMXE-1,532.00,BED & BREAKFAST PAYMENTS-ACCOMMODATION AND RELATED COST,"HOTELS, MOTELS, RESORTS",GPC
WALSALL COUNCIL,HTTP://OPENDATACOMMUNITIES.ORG/ID/METROPOLITAN-DISTRICT-COUNCIL/WALSALL,30/06/2020,RESOURCES & TRANSFORMATION,AMZNMKTPLACE,09/04/2020,H59620200410ULILNXBGI-1,95.95,AREA PARTNERSHIPS-STATIONERY & GENERAL OFFICE SU,MISCELLANEOUS AND SPECIALTY RETAIL STORES,GPC
WALSALL COUNCIL,HTTP://OPENDATACOMMUNITIES.ORG/ID/METROPOLITAN-DISTRICT-COUNCIL/WALSALL,30/06/2020,CHILDRENS SERVICES,ARGOS LTD,09/04/2020,H59620200410UOMKRUEDV-1,29.99,SAFEGUARDING & FAMILY SUPPORT-PURCHASE OF FURNITURE & EQUIPM,DISCOUNT STORES,GPC
WALSALL COUNCIL,HTTP://OPENDATACOMMUNITIES.ORG/ID/METROPOLITAN-DISTRICT-COUNCIL/WALSALL,30/06/2020,ADULT SOCIAL CARE,TESCO STORES 6876,09/04/2020,H59620200410UWQFCBLSD-1,3.25,GOSCOTE-FOOD & DRINK SUPPLIES,GROCERY STORES AND SUPERMARKETS,GPC
WALSALL COUNCIL,HTTP://OPENDATACOMMUNITIES.ORG/ID/METROPOLITAN-DISTRICT-COUNCIL/WALSALL,30/06/2020,CHILDRENS SERVICES,ASDA GEORGE COM LEEDS,09/04/2020,H59620200410VXRSHCQQP-1,56.00,TRANSITION AND LEAVING CARE PL-CARE LEAVERS MTCE PAYMENTS,GROCERY STORES AND SUPERMARKETS,GPC
WALSALL COUNCIL,HTTP://OPENDATACOMMUNITIES.ORG/ID/METROPOLITAN-DISTRICT-COUNCIL/WALSALL,30/06/2020,RESOURCES & TRANSFORMATION,AMZNMKTPLACE AMAZON.CO.UK,09/04/2020,H59620200410XUIOUKCYJ-1,58.50,AREA PARTNERSHIPS-STATIONERY & GENERAL OFFICE SU,MISCELLANEOUS AND SPECIALTY RETAIL STORES,GPC
WALSALL COUNCIL,HTTP://OPENDATACOMMUNITIES.ORG/ID/METROPOLITAN-DISTRICT-COUNCIL/WALSALL,30/06/2020,CHILDRENS SERVICES,ALDI 73 772,09/04/2020,H59620200410XVLIKNFWT-1,1.49,"43A HILTON ROAD, WILLENHALL-RESIDENTS PERSONAL EXPENSES-AL",GROCERY STORES AND SUPERMARKETS,GPC
WALSALL COUNCIL,HTTP://OPENDATACOMMUNITIES.ORG/ID/METROPOLITAN-DISTRICT-COUNCIL/WALSALL,30/06/2020,CHILDRENS SERVICES,ALDI 73 772,09/04/2020,H59620200410XVLIKNFWT-2,14.28,"43A HILTON ROAD, WILLENHALL-RESIDENTS PERSONAL EXPENSES-AL",GROCERY STORES AND SUPERMARKETS,GPC
WALSALL COUNCIL,HTTP://OPENDATACOMMUNITIES.ORG/ID/METROPOLITAN-DISTRICT-COUNCIL/WALSALL,30/06/2020,RESOURCES & TRANSFORMATION,SHS HANDLING SOLUTIONS,09/04/2020,H59620200410XVMWHCHQA-1,6348.48,REVENUES-MATERIALS,HARDWARE EQUIPMENT AND SUPPLIES,GPC
WALSALL COUNCIL,HTTP://OPENDATACOMMUNITIES.ORG/ID/METROPOLITAN-DISTRICT-COUNCIL/WALSALL,30/06/2020,CHILDRENS SERVICES,W M MORRISONS.COM,14/04/2020,H59620200415BCQTSNTTL-1,8.00,57 LICHFIELD ROAD-FOOD & DRINK SUPPLIES,GROCERY STORES AND SUPERMARKETS,GPC
WALSALL COUNCIL,HTTP://OPENDATACOMMUNITIES.ORG/ID/METROPOLITAN-DISTRICT-COUNCIL/WALSALL,30/06/2020,RESOURCES & TRANSFORMATION,CO-OPERATIVE FOOD,14/04/2020,H59620200415BDTGMOEXZ-1,15.60,ACCOMMODATION SERVICES MANAGEM-FOOD & DRINK SUPPLIES,GROCERY STORES AND SUPERMARKETS,GPC
WALSALL COUNCIL,HTTP://OPENDATACOMMUNITIES.ORG/ID/METROPOLITAN-DISTRICT-COUNCIL/WALSALL,30/06/2020,ECONOMY & ENVIRONMENT,AMZNMKTPLACE,14/04/2020,H59620200415BKBFRLXIV-1,274.00,ENGINEERING MANAGEMENT-CLOTHING & LAUNDRY,MISCELLANEOUS AND SPECIALTY RETAIL STORES,GPC
WALSALL COUNCIL,HTTP://OPENDATACOMMUNITIES.ORG/ID/METROPOLITAN-DISTRICT-COUNCIL/WALSALL,30/06/2020,RESOURCES & TRANSFORMATION,METRO INNS WALSALL,14/04/2020,H59620200415CWFLIJPGN-1,266.00,BED & BREAKFAST PAYMENTS-HOTEL ACCOMMODATION-EMPLOYEES,"HOTELS, MOTELS, RESORTS",GPC
WALSALL COUNCIL,HTTP://OPENDATACOMMUNITIES.ORG/ID/METROPOLITAN-DISTRICT-COUNCIL/WALSALL,30/06/2020,RESOURCES & TRANSFORMATION,METRO INNS WALSALL,14/04/2020,H59620200415DCLFELXET-1,266.00,BED & BREAKFAST PAYMENTS-HOTEL ACCOMMODATION-EMPLOYEES,"HOTELS, MOTELS, RESORTS",GPC
WALSALL COUNCIL,HTTP://OPENDATACOMMUNITIES.ORG/ID/METROPOLITAN-DISTRICT-COUNCIL/WALSALL,30/06/2020,CHILDRENS SERVICES,HOME BARGAINS,14/04/2020,H59620200415DEQNXALQL-1,15.38,LOCALITY FAMILY SUPPORT-NORTH-EVENTS & VISUAL ARTS,HARDWARE STORES,GPC
WALSALL COUNCIL,HTTP://OPENDATACOMMUNITIES.ORG/ID/METROPOLITAN-DISTRICT-COUNCIL/WALSALL,30/06/2020,ADULT SOCIAL CARE,ONE STOP 5038,14/04/2020,H59620200415DEVOLKTEX-1,0.80,GOSCOTE-FOOD & DRINK SUPPLIES,GROCERY STORES AND SUPERMARKETS,GPC
WALSALL COUNCIL,HTTP://OPENDATACOMMUNITIES.ORG/ID/METROPOLITAN-DISTRICT-COUNCIL/WALSALL,30/06/2020,ADULT SOCIAL CARE,AMZNMKTPLACE,14/04/2020,H59620200415DRBPTSRTI-1,92.99,"STRATEGY, COMMISSIONING, AND D-PURCHASE OF FURNITURE & EQUIPM",MISCELLANEOUS AND SPECIALTY RETAIL STORES,GPC
WALSALL COUNCIL,HTTP://OPENDATACOMMUNITIES.ORG/ID/METROPOLITAN-DISTRICT-COUNCIL/WALSALL,30/06/2020,ADULT SOCIAL CARE,WM MORRISONS STORE,14/04/2020,H59620200415ETFOLORUY-1,68.57,GOSCOTE-FOOD & DRINK SUPPLIES,GROCERY STORES AND SUPERMARKETS,GPC
WALSALL COUNCIL,HTTP://OPENDATACOMMUNITIES.ORG/ID/METROPOLITAN-DISTRICT-COUNCIL/WALSALL,30/06/2020,ECONOMY & ENVIRONMENT,B & Q 1309,14/04/2020,H59620200415FNRNCHJSQ-1,52.25,INFRASTRUCTURE MAINTENANCE-MATERIALS,HOME SUPPLY WAREHOUSE STORES,GPC
WALSALL COUNCIL,HTTP://OPENDATACOMMUNITIES.ORG/ID/METROPOLITAN-DISTRICT-COUNCIL/WALSALL,30/06/2020,CHILDRENS SERVICES - SCHOOLS,HP INC UK LIMITED,14/04/2020,H59620200415FXFHOWCUM-1,7.99,ADMINISTRATIVE SUPPLIES-MATERIALS,"COMPUTERS, COMPUTER PERIPHERAL EQUIPMENT, SOFTWARE",GPC
WALSALL COUNCIL,HTTP://OPENDATACOMMUNITIES.ORG/ID/METROPOLITAN-DISTRICT-COUNCIL/WALSALL,30/06/2020,ECONOMY & ENVIRONMENT,AMZNMKTPLACE,14/04/2020,H59620200415FZFUXOQSO-1,8.97,YEI ESF FUNDING-PROFESSIONAL FEES & SERVICES,MISCELLANEOUS AND SPECIALTY RETAIL STORES,GPC
WALSALL COUNCIL,HTTP://OPENDATACOMMUNITIES.ORG/ID/METROPOLITAN-DISTRICT-COUNCIL/WALSALL,30/06/2020,ECONOMY & ENVIRONMENT,AMZNMKTPLACE,14/04/2020,H59620200415FZFUXOQSO-2,8.97,YEI (IMPACT) PROGRAMME-PROFESSIONAL FEES & SERVICES,MISCELLANEOUS AND SPECIALTY RETAIL STORES,GPC
WALSALL COUNCIL,HTTP://OPENDATACOMMUNITIES.ORG/ID/METROPOLITAN-DISTRICT-COUNCIL/WALSALL,30/06/2020,RESOURCES & TRANSFORMATION,AMZNMKTPLACE AMAZON.CO.UK,14/04/2020,H59620200415GOTTOXKDN-1,48.88,AREA PARTNERSHIPS-STATIONERY & GENERAL OFFICE SU,MISCELLANEOUS AND SPECIALTY RETAIL STORES,GPC
WALSALL COUNCIL,HTTP://OPENDATACOMMUNITIES.ORG/ID/METROPOLITAN-DISTRICT-COUNCIL/WALSALL,30/06/2020,CHILDRENS SERVICES,AMAZON.CO.UK*T277950N5 AM,14/04/2020,H59620200415GUAKZEYQY-1,9.90,VIRTUAL SCHOOL - CENTRAL PUPIL-OTHER EXPENSES,MISCELLANEOUS AND SPECIALTY RETAIL STORES,GPC
WALSALL COUNCIL,HTTP://OPENDATACOMMUNITIES.ORG/ID/METROPOLITAN-DISTRICT-COUNCIL/WALSALL,30/06/2020,CHILDRENS SERVICES,AMAZON.CO.UK*6W6XP87I5,14/04/2020,H59620200415HUNJDKYTQ-1,9.99,VIRTUAL SCHOOL - CENTRAL PUPIL-OTHER EXPENSES,OTHER DIRECT MARKETING-OTHER DIRECT MARKETERS,GPC
WALSALL COUNCIL,HTTP://OPENDATACOMMUNITIES.ORG/ID/METROPOLITAN-DISTRICT-COUNCIL/WALSALL,30/06/2020,CHILDRENS SERVICES - SCHOOLS,DFR*MAPLIN.CO.UK,14/04/2020,H59620200415HXMJFURYC-1,59.99,ADMINISTRATIVE SUPPLIES-MATERIALS,ELECTRONIC SALES,GPC
WALSALL COUNCIL,HTTP://OPENDATACOMMUNITIES.ORG/ID/METROPOLITAN-DISTRICT-COUNCIL/WALSALL,30/06/2020,RESOURCES & TRANSFORMATION,METRO INNS WALSALL,14/04/2020,H59620200415IHNTPYLKR-1,266.00,BED & BREAKFAST PAYMENTS-HOTEL ACCOMMODATION-EMPLOYEES,"HOTELS, MOTELS, RESORTS",GPC
WALSALL COUNCIL,HTTP://OPENDATACOMMUNITIES.ORG/ID/METROPOLITAN-DISTRICT-COUNCIL/WALSALL,30/06/2020,ECONOMY & ENVIRONMENT,AMZNMKTPLACE,14/04/2020,H59620200415IIADRXVKK-1,11.35,YEI ESF FUNDING-PROFESSIONAL FEES & SERVICES,MISCELLANEOUS AND SPECIALTY RETAIL STORES,GPC
WALSALL COUNCIL,HTTP://OPENDATACOMMUNITIES.ORG/ID/METROPOLITAN-DISTRICT-COUNCIL/WALSALL,30/06/2020,ECONOMY & ENVIRONMENT,AMZNMKTPLACE,14/04/2020,H59620200415IIADRXVKK-2,11.35,YEI (IMPACT) PROGRAMME-PROFESSIONAL FEES & SERVICES,MISCELLANEOUS AND SPECIALTY RETAIL STORES,GPC
WALSALL COUNCIL,HTTP://OPENDATACOMMUNITIES.ORG/ID/METROPOLITAN-DISTRICT-COUNCIL/WALSALL,30/06/2020,CHILDRENS SERVICES,WWW.ICO.ORG.UK,14/04/2020,H59620200415JHRGVCKSY-1,60.00,ADMINISTRATIVE SUPPLIES-MATERIALS,GOVERNMENT SERVICES,GPC
WALSALL COUNCIL,HTTP://OPENDATACOMMUNITIES.ORG/ID/METROPOLITAN-DISTRICT-COUNCIL/WALSALL,30/06/2020,CHILDRENS SERVICES,ASDA,14/04/2020,H59620200415KRFTCJPPW-1,25.00,REDRUTH ROAD-RESIDENTS PERSONAL EXPENSES-AL,GROCERY STORES AND SUPERMARKETS,GPC
WALSALL COUNCIL,HTTP://OPENDATACOMMUNITIES.ORG/ID/METROPOLITAN-DISTRICT-COUNCIL/WALSALL,30/06/2020,CHILDRENS SERVICES,ASDA,14/04/2020,H59620200415KRFTCJPPW-2,60.70,REDRUTH ROAD-FOOD & DRINK SUPPLIES,GROCERY STORES AND SUPERMARKETS,GPC
WALSALL COUNCIL,HTTP://OPENDATACOMMUNITIES.ORG/ID/METROPOLITAN-DISTRICT-COUNCIL/WALSALL,30/06/2020,CHILDRENS SERVICES,WM MORRISONS STORE,14/04/2020,H59620200415KTTTGNRRK-1,4.50,"43A HILTON ROAD, WILLENHALL-FOOD & DRINK SUPPLIES",GROCERY STORES AND SUPERMARKETS,GPC
WALSALL COUNCIL,HTTP://OPENDATACOMMUNITIES.ORG/ID/METROPOLITAN-DISTRICT-COUNCIL/WALSALL,30/06/2020,CHILDRENS SERVICES,WM MORRISONS STORE,14/04/2020,H59620200415KTTTGNRRK-2,62.67,"43A HILTON ROAD, WILLENHALL-FOOD & DRINK SUPPLIES",GROCERY STORES AND SUPERMARKETS,GPC
WALSALL COUNCIL,HTTP://OPENDATACOMMUNITIES.ORG/ID/METROPOLITAN-DISTRICT-COUNCIL/WALSALL,30/06/2020,RESOURCES & TRANSFORMATION,ASDA,14/04/2020,H59620200415LFDOUEWKO-1,90.00,WALSALL CRISIS SUPPORT SCHEME-CRISIS SUPPORT PAYMENTS,GROCERY STORES AND SUPERMARKETS,GPC
WALSALL COUNCIL,HTTP://OPENDATACOMMUNITIES.ORG/ID/METROPOLITAN-DISTRICT-COUNCIL/WALSALL,30/06/2020,ADULT SOCIAL CARE,FIRST ENTERPRISE,14/04/2020,H59620200415LLKYJOGPQ-1,39.00,GOSCOTE-PAYMENT TO CONTRACTORS,ELECTRICAL CONTRACTORS,GPC
WALSALL COUNCIL,HTTP://OPENDATACOMMUNITIES.ORG/ID/METROPOLITAN-DISTRICT-COUNCIL/WALSALL,30/06/2020,ECONOMY & ENVIRONMENT,AMZNMKTPLACE AMAZON.CO.UK,14/04/2020,H59620200415LSJETDNPE-1,48.99,FLEET-MATERIALS,MISCELLANEOUS AND SPECIALTY RETAIL STORES,GPC
WALSALL COUNCIL,HTTP://OPENDATACOMMUNITIES.ORG/ID/METROPOLITAN-DISTRICT-COUNCIL/WALSALL,30/06/2020,RESOURCES & TRANSFORMATION,METRO INNS WALSALL,14/04/2020,H59620200415LUMJPCPTM-1,266.00,BED & BREAKFAST PAYMENTS-HOTEL ACCOMMODATION-EMPLOYEES,"HOTELS, MOTELS, RESORTS",GPC
WALSALL COUNCIL,HTTP://OPENDATACOMMUNITIES.ORG/ID/METROPOLITAN-DISTRICT-COUNCIL/WALSALL,30/06/2020,CHILDRENS SERVICES,SP * PROSAFEDIRECT.COM,14/04/2020,H59620200415MBDATUJQU-1,82.74,PELSALL EDC-COMPUTER EQUIPMENT,COMPUTER SOFTWARE STORES,GPC
WALSALL COUNCIL,HTTP://OPENDATACOMMUNITIES.ORG/ID/METROPOLITAN-DISTRICT-COUNCIL/WALSALL,30/06/2020,CHILDRENS SERVICES,ASDA GROCERIES ONLINE,14/04/2020,H59620200415MGODLPXDM-1,149.81,ADOLESCENT SERVICE-OUTINGS-ALLOWANCES TO S/S CLIE,GROCERY STORES AND SUPERMARKETS,GPC
WALSALL COUNCIL,HTTP://OPENDATACOMMUNITIES.ORG/ID/METROPOLITAN-DISTRICT-COUNCIL/WALSALL,30/06/2020,CHILDRENS SERVICES,ARGOS LTD,14/04/2020,H59620200415NEMXDTVHI-1,-49.98,REDRUTH ROAD-RESIDENTS PERSONAL EXPENSES-AL,DISCOUNT STORES,GPC
WALSALL COUNCIL,HTTP://OPENDATACOMMUNITIES.ORG/ID/METROPOLITAN-DISTRICT-COUNCIL/WALSALL,30/06/2020,RESOURCES & TRANSFORMATION,METRO INNS WALSALL,14/04/2020,H59620200415NQRVXEVST-1,266.00,BED & BREAKFAST PAYMENTS-HOTEL ACCOMMODATION-EMPLOYEES,"HOTELS, MOTELS, RESORTS",GPC
WALSALL COUNCIL,HTTP://OPENDATACOMMUNITIES.ORG/ID/METROPOLITAN-DISTRICT-COUNCIL/WALSALL,30/06/2020,ADULT SOCIAL CARE,AMZNMKTPLACE AMAZON.CO.UK,14/04/2020,H59620200415NXPMUOEEJ-1,92.99,"STRATEGY, COMMISSIONING, AND D-PURCHASE OF FURNITURE & EQUIPM",MISCELLANEOUS AND SPECIALTY RETAIL STORES,GPC
WALSALL COUNCIL,HTTP://OPENDATACOMMUNITIES.ORG/ID/METROPOLITAN-DISTRICT-COUNCIL/WALSALL,30/06/2020,CHILDRENS SERVICES,GEN REGISTER OFFICE,14/04/2020,H59620200415OEURJROSK-1,11.00,SAFEGUARDING & FAMILY SUPPORT-FEES & LICENCES,GOVERNMENT SERVICES,GPC
WALSALL COUNCIL,HTTP://OPENDATACOMMUNITIES.ORG/ID/METROPOLITAN-DISTRICT-COUNCIL/WALSALL,30/06/2020,RESOURCES & TRANSFORMATION,NEW INVENTION SERV,14/04/2020,H59620200415PCULMIEIP-1,3.27,WALSALL CRISIS SUPPORT SCHEME-FOOD & DRINK SUPPLIES,SERVICE STATIONS,GPC
WALSALL COUNCIL,HTTP://OPENDATACOMMUNITIES.ORG/ID/METROPOLITAN-DISTRICT-COUNCIL/WALSALL,30/06/2020,RESOURCES & TRANSFORMATION,NEW INVENTION SERV,14/04/2020,H59620200415PCULMIEIP-2,0.41,WALSALL CRISIS SUPPORT SCHEME-OTHER EMPLOYEES FEES & EXPENSE,SERVICE STATIONS,GPC
WALSALL COUNCIL,HTTP://OPENDATACOMMUNITIES.ORG/ID/METROPOLITAN-DISTRICT-COUNCIL/WALSALL,30/06/2020,CHILDRENS SERVICES,TRAINLINE,14/04/2020,H59620200415QHOELOZOX-1,-38.50,WALSALL WOOD PRIMARY SCHOOL-EXTERNAL TRAINING,PASSENGER RAILWAYS,GPC
WALSALL COUNCIL,HTTP://OPENDATACOMMUNITIES.ORG/ID/METROPOLITAN-DISTRICT-COUNCIL/WALSALL,30/06/2020,RESOURCES & TRANSFORMATION,CO-OPERATIVE FOOD,14/04/2020,H59620200415RDDVKGGLF-1,4.36,CATERING - MANAGEMENT-FOOD & DRINK SUPPLIES,GROCERY STORES AND SUPERMARKETS,GPC
WALSALL COUNCIL,HTTP://OPENDATACOMMUNITIES.ORG/ID/METROPOLITAN-DISTRICT-COUNCIL/WALSALL,30/06/2020,RESOURCES & TRANSFORMATION,FACEBK 5FY4SQEN22,14/04/2020,H59620200415RRKIVUAJX-1,12.00,AREA PARTNERSHIPS-PUBLICITY & ADVERTISING (NON S,ADVERTISING SERVICES,GPC
WALSALL COUNCIL,HTTP://OPENDATACOMMUNITIES.ORG/ID/METROPOLITAN-DISTRICT-COUNCIL/WALSALL,30/06/2020,ECONOMY & ENVIRONMENT,AMZNMKTPLACE AMAZON.CO.UK,14/04/2020,H59620200415RWMIFWEAF-1,34.95,CENTRALISED STATIONARY-PURCHASE OF FURNITURE & EQUIPM,MISCELLANEOUS AND SPECIALTY RETAIL STORES,GPC
WALSALL COUNCIL,HTTP://OPENDATACOMMUNITIES.ORG/ID/METROPOLITAN-DISTRICT-COUNCIL/WALSALL,30/06/2020,CHILDRENS SERVICES,NEST.COM,14/04/2020,H59620200415SCMNEIWNK-1,-4.00,ST FRANCIS OF ASSISI CATHOLIC -OPERATIONAL MAINTENANCE,ELECTRICAL PARTS AND EQUIPMENT,GPC
WALSALL COUNCIL,HTTP://OPENDATACOMMUNITIES.ORG/ID/METROPOLITAN-DISTRICT-COUNCIL/WALSALL,30/06/2020,ADULT SOCIAL CARE,AMZNMKTPLACE,14/04/2020,H59620200415SHNAKCLTY-1,92.99,"STRATEGY, COMMISSIONING, AND D-PURCHASE OF FURNITURE & EQUIPM",MISCELLANEOUS AND SPECIALTY RETAIL STORES,GPC
WALSALL COUNCIL,HTTP://OPENDATACOMMUNITIES.ORG/ID/METROPOLITAN-DISTRICT-COUNCIL/WALSALL,30/06/2020,ECONOMY & ENVIRONMENT,FLEXTRONICS,14/04/2020,H59620200415SQZOTOFRH-1,289.80,CENTRALISED STATIONARY-COMPUTER EQUIPMENT,"OTHER COMPUTER MAINTENANCE, REPAIR",GPC
WALSALL COUNCIL,HTTP://OPENDATACOMMUNITIES.ORG/ID/METROPOLITAN-DISTRICT-COUNCIL/WALSALL,30/06/2020,ECONOMY & ENVIRONMENT,WWW FACEBOOK COM ADSMA,14/04/2020,H59620200415TYYWOVHFJ-1,0.03,RES-WALSALL WORKS-PUBLICITY & ADVERTISING (NON S,ADVERTISING SERVICES,GPC
WALSALL COUNCIL,HTTP://OPENDATACOMMUNITIES.ORG/ID/METROPOLITAN-DISTRICT-COUNCIL/WALSALL,30/06/2020,CHILDRENS SERVICES,AMZNMKTPLACE AMAZON.CO.UK,14/04/2020,H59620200415UAWTICYWF-1,22.99,VIRTUAL SCHOOL - CENTRAL PUPIL-OTHER EXPENSES,MISCELLANEOUS AND SPECIALTY RETAIL STORES,GPC
WALSALL COUNCIL,HTTP://OPENDATACOMMUNITIES.ORG/ID/METROPOLITAN-DISTRICT-COUNCIL/WALSALL,30/06/2020,RESOURCES & TRANSFORMATION,HOTEL ON BOOKING.COM,14/04/2020,H59620200415UECMDVMHC-1,135.00,BED & BREAKFAST PAYMENTS-HOTEL ACCOMMODATION-EMPLOYEES,"HOTELS, MOTELS, RESORTS",GPC
WALSALL COUNCIL,HTTP://OPENDATACOMMUNITIES.ORG/ID/METROPOLITAN-DISTRICT-COUNCIL/WALSALL,30/06/2020,ECONOMY & ENVIRONMENT,WWW.BANNERUK.COM,14/04/2020,H59620200415ULVDJEGWR-1,87.00,CENTRALISED STATIONARY-STATIONERY & GENERAL OFFICE SU,"STATIONERY, OFFICE SUPPLIES AND WRITING PAPER",GPC
WALSALL COUNCIL,HTTP://OPENDATACOMMUNITIES.ORG/ID/METROPOLITAN-DISTRICT-COUNCIL/WALSALL,30/06/2020,RESOURCES & TRANSFORMATION,HOTEL ON BOOKING.COM,14/04/2020,H59620200415UNPMXBPYE-1,36.00,BED & BREAKFAST PAYMENTS-HOTEL ACCOMMODATION-EMPLOYEES,"HOTELS, MOTELS, RESORTS",GPC
WALSALL COUNCIL,HTTP://OPENDATACOMMUNITIES.ORG/ID/METROPOLITAN-DISTRICT-COUNCIL/WALSALL,30/06/2020,ADULT SOCIAL CARE,AMZNMKTPLACE,14/04/2020,H59620200415VIBNQVBMK-1,92.99,"STRATEGY, COMMISSIONING, AND D-STATIONERY & GENERAL OFFICE SU",MISCELLANEOUS AND SPECIALTY RETAIL STORES,GPC
WALSALL COUNCIL,HTTP://OPENDATACOMMUNITIES.ORG/ID/METROPOLITAN-DISTRICT-COUNCIL/WALSALL,30/06/2020,CHILDRENS SERVICES,AMAZON.CO.UK*2A51P8V85 AM,14/04/2020,H59620200415WEUHTJNLT-1,3.95,VIRTUAL SCHOOL - CENTRAL PUPIL-COMPUTER EQUIPMENT,MISCELLANEOUS AND SPECIALTY RETAIL STORES,GPC
WALSALL COUNCIL,HTTP://OPENDATACOMMUNITIES.ORG/ID/METROPOLITAN-DISTRICT-COUNCIL/WALSALL,30/06/2020,ADULT SOCIAL CARE,AMZNMKTPLACE AMAZON.CO.UK,14/04/2020,H59620200415WHXSDBWFH-1,79.99,"STRATEGY, COMMISSIONING, AND D-PURCHASE OF FURNITURE & EQUIPM",MISCELLANEOUS AND SPECIALTY RETAIL STORES,GPC
WALSALL COUNCIL,HTTP://OPENDATACOMMUNITIES.ORG/ID/METROPOLITAN-DISTRICT-COUNCIL/WALSALL,30/06/2020,ECONOMY & ENVIRONMENT,THE TEFL ACADEMY-GBP,14/04/2020,H59620200415WNAOHKUUJ-1,117.00,YEI ESF FUNDING-PROFESSIONAL FEES & SERVICES,MISCELLANEOUS AND SPECIALTY RETAIL STORES,GPC
WALSALL COUNCIL,HTTP://OPENDATACOMMUNITIES.ORG/ID/METROPOLITAN-DISTRICT-COUNCIL/WALSALL,30/06/2020,ECONOMY & ENVIRONMENT,THE TEFL ACADEMY-GBP,14/04/2020,H59620200415WNAOHKUUJ-2,117.00,YEI (IMPACT) PROGRAMME-PROFESSIONAL FEES & SERVICES,MISCELLANEOUS AND SPECIALTY RETAIL STORES,GPC
WALSALL COUNCIL,HTTP://OPENDATACOMMUNITIES.ORG/ID/METROPOLITAN-DISTRICT-COUNCIL/WALSALL,30/06/2020,RESOURCES & TRANSFORMATION,J9 ACCOMODATION,14/04/2020,H59620200415WREPTLGQC-1,282.00,YOUNG PERSONS HOMELESS SERVICE-OTHER EMPLOYEES FEES & EXPENSE,REAL ESTATE MANAGERS - RENTALS,GPC
WALSALL COUNCIL,HTTP://OPENDATACOMMUNITIES.ORG/ID/METROPOLITAN-DISTRICT-COUNCIL/WALSALL,30/06/2020,RESOURCES & TRANSFORMATION,HOTEL ON BOOKING.COM,14/04/2020,H59620200415WTWPKLOUB-1,92.00,BED & BREAKFAST PAYMENTS-HOTEL ACCOMMODATION-EMPLOYEES,"HOTELS, MOTELS, RESORTS",GPC
WALSALL COUNCIL,HTTP://OPENDATACOMMUNITIES.ORG/ID/METROPOLITAN-DISTRICT-COUNCIL/WALSALL,30/06/2020,ADULT SOCIAL CARE,METRO INNS WALSALL,14/04/2020,H59620200415WZFLNEZIL-1,76.00,ASC PARTNERSHIPS-ACCOMMODATION AND RELATED COST,"HOTELS, MOTELS, RESORTS",GPC
WALSALL COUNCIL,HTTP://OPENDATACOMMUNITIES.ORG/ID/METROPOLITAN-DISTRICT-COUNCIL/WALSALL,30/06/2020,RESOURCES & TRANSFORMATION,METRO INNS WALSALL,14/04/2020,H59620200415XNFLKEEIF-1,266.00,BED & BREAKFAST PAYMENTS-BED & BREAKFAST PAYMENTS,"HOTELS, MOTELS, RESORTS",GPC
WALSALL COUNCIL,HTTP://OPENDATACOMMUNITIES.ORG/ID/METROPOLITAN-DISTRICT-COUNCIL/WALSALL,30/06/2020,RESOURCES & TRANSFORMATION,WIX.COM,14/04/2020,H59620200415XVVTLZLHB-1,100.08,INTEGRATED COMMUNITIES PROGRAM-OTHER EMPLOYEES FEES & EXPENSE,DIGITAL GOODS - APPLICATIONS (EXCLUDES GAMES),GPC
WALSALL COUNCIL,HTTP://OPENDATACOMMUNITIES.ORG/ID/METROPOLITAN-DISTRICT-COUNCIL/WALSALL,30/06/2020,CHILDRENS SERVICES,ASDA GROCERIES ONLINE,14/04/2020,H59620200415XZDYJJBYY-1,-19.21,ADOLESCENT SERVICE-FOOD & DRINK SUPPLIES,GROCERY STORES AND SUPERMARKETS,GPC
WALSALL COUNCIL,HTTP://OPENDATACOMMUNITIES.ORG/ID/METROPOLITAN-DISTRICT-COUNCIL/WALSALL,30/06/2020,CHILDRENS SERVICES,MKG FOODS,14/04/2020,H59620200415YOKLDDLWL-1,-21.92,ADOLESCENT SERVICE-FOOD & DRINK SUPPLIES,MISCELLANEOUS FOOD STORES & CONVENIENCE STORES,GPC
WALSALL COUNCIL,HTTP://OPENDATACOMMUNITIES.ORG/ID/METROPOLITAN-DISTRICT-COUNCIL/WALSALL,30/06/2020,RESOURCES & TRANSFORMATION,247 CARS WILLENHALL LTD,14/04/2020,H59620200415YZRUBVMVC-1,11.90,HOMELESSNESS PREVENTION STRATE-TAXI FARES,TAXI SERVICES,GPC
WALSALL COUNCIL,HTTP://OPENDATACOMMUNITIES.ORG/ID/METROPOLITAN-DISTRICT-COUNCIL/WALSALL,30/06/2020,CHILDRENS SERVICES,WM MORRISONS STORE,14/04/2020,H59620200415ZULHFHRSY-1,5.00,ADOLESCENT SERVICE-FOOD & DRINK SUPPLIES,GROCERY STORES AND SUPERMARKETS,GPC
WALSALL COUNCIL,HTTP://OPENDATACOMMUNITIES.ORG/ID/METROPOLITAN-DISTRICT-COUNCIL/WALSALL,30/06/2020,ADULT SOCIAL CARE,WWW.BARGAINWHOLESALERS,14/04/2020,H59620200415ZXGYFQKJP-1,900.00,ASC PARTNERSHIPS-CLEANING MATERIALS,"CARD, GIFT, NOVELTY, AND SOUVENIR SHOPS",GPC
WALSALL COUNCIL,HTTP://OPENDATACOMMUNITIES.ORG/ID/METROPOLITAN-DISTRICT-COUNCIL/WALSALL,30/06/2020,RESOURCES & TRANSFORMATION,METRO INNS WALSALL,14/04/2020,H59620200415ZZUMERDLD-1,266.00,BED & BREAKFAST PAYMENTS-HOTEL ACCOMMODATION-EMPLOYEES,"HOTELS, MOTELS, RESORTS",GPC
WALSALL COUNCIL,HTTP://OPENDATACOMMUNITIES.ORG/ID/METROPOLITAN-DISTRICT-COUNCIL/WALSALL,30/06/2020,ADULT SOCIAL CARE,BAINS CONVENIENCE STORE,15/04/2020,H59620200416AGFBAYLMW-1,7.80,GOSCOTE-FOOD & DRINK SUPPLIES,GROCERY STORES AND SUPERMARKETS,GPC
WALSALL COUNCIL,HTTP://OPENDATACOMMUNITIES.ORG/ID/METROPOLITAN-DISTRICT-COUNCIL/WALSALL,30/06/2020,RESOURCES & TRANSFORMATION,JOHAL DAIRIES LTD,15/04/2020,H59620200416AIWPFFBDO-1,13.16,CA KINGSHILL SCHOOL-FOOD & DRINK SUPPLIES,OTHER NONDURABLE GOODS,GPC
WALSALL COUNCIL,HTTP://OPENDATACOMMUNITIES.ORG/ID/METROPOLITAN-DISTRICT-COUNCIL/WALSALL,30/06/2020,RESOURCES & TRANSFORMATION,WILKO.COM,15/04/2020,H59620200416CREPTIMUY-1,89.25,WALSALL CRISIS SUPPORT SCHEME-CRISIS SUPPORT PAYMENTS,MISCELLANEOUS GENERAL MERCHANDISE,GPC
WALSALL COUNCIL,HTTP://OPENDATACOMMUNITIES.ORG/ID/METROPOLITAN-DISTRICT-COUNCIL/WALSALL,30/06/2020,RESOURCES & TRANSFORMATION,JOHAL DAIRIES LTD,15/04/2020,H59620200416DQVWOLBKG-1,32.24,CA COOPER JORDAN CE PRIMARY SC-FOOD & DRINK SUPPLIES,OTHER NONDURABLE GOODS,GPC
WALSALL COUNCIL,HTTP://OPENDATACOMMUNITIES.ORG/ID/METROPOLITAN-DISTRICT-COUNCIL/WALSALL,30/06/2020,ADULT SOCIAL CARE,HMCOURTS-SERVICE.G,15/04/2020,H59620200416ENDETUWUA-1,75.00,AMPH SERVICE-EXTERNAL LEGAL FEES,FINES,GPC
WALSALL COUNCIL,HTTP://OPENDATACOMMUNITIES.ORG/ID/METROPOLITAN-DISTRICT-COUNCIL/WALSALL,30/06/2020,RESOURCES & TRANSFORMATION,MAILCHIMP *MONTHLY,15/04/2020,H59620200416EPRKVVSDY-1,481.03,APPLICATIONS-COMPUTER EQUIPMENT,DIRECT MARKETING CONTINUITY SUBSCRIPTION MERCHANTS,GPC
WALSALL COUNCIL,HTTP://OPENDATACOMMUNITIES.ORG/ID/METROPOLITAN-DISTRICT-COUNCIL/WALSALL,30/06/2020,ECONOMY & ENVIRONMENT,SQ *T.MORGAN & SONS(LOCK,15/04/2020,H59620200416GJCFLSIFZ-1,56.40,GROUNDS-MATERIALS,"GENERAL CONTRACTORS, RESIDENTIAL AND COMMERCIAL",GPC
WALSALL COUNCIL,HTTP://OPENDATACOMMUNITIES.ORG/ID/METROPOLITAN-DISTRICT-COUNCIL/WALSALL,30/06/2020,CHILDRENS SERVICES,HOME BARGAINS,15/04/2020,H59620200416GLQBMMNDH-1,27.54,LOCALITY FAMILY SUPPORT-NORTH-EVENTS & VISUAL ARTS,HARDWARE STORES,GPC
WALSALL COUNCIL,HTTP://OPENDATACOMMUNITIES.ORG/ID/METROPOLITAN-DISTRICT-COUNCIL/WALSALL,30/06/2020,CHILDRENS SERVICES,HOME BARGAINS,15/04/2020,H59620200416GLQBMMNDH-2,2.97,LOCALITY FAMILY SUPPORT-NORTH-EVENTS & VISUAL ARTS,HARDWARE STORES,GPC
WALSALL COUNCIL,HTTP://OPENDATACOMMUNITIES.ORG/ID/METROPOLITAN-DISTRICT-COUNCIL/WALSALL,30/06/2020,CHILDRENS SERVICES,VOUCHER EXPRESS B2B MO,15/04/2020,H59620200416GSWKUWTWW-1,1560.00,SALISBURY PRIMARY SCHOOL-MATERIALS,"CARD, GIFT, NOVELTY, AND SOUVENIR SHOPS",GPC
WALSALL COUNCIL,HTTP://OPENDATACOMMUNITIES.ORG/ID/METROPOLITAN-DISTRICT-COUNCIL/WALSALL,30/06/2020,RESOURCES & TRANSFORMATION,JOHAL DAIRIES LTD,15/04/2020,H59620200416HFBSZXUIY-1,56.16,CA ELMWOOD SPECIAL SCHOOL-FOOD & DRINK SUPPLIES,OTHER NONDURABLE GOODS,GPC
WALSALL COUNCIL,HTTP://OPENDATACOMMUNITIES.ORG/ID/METROPOLITAN-DISTRICT-COUNCIL/WALSALL,30/06/2020,RESOURCES & TRANSFORMATION,JOHAL DAIRIES LTD,15/04/2020,H59620200416ISDHHTKVO-1,17.20,CA ST JOHNS C.E. PRIMARY SCHOO-FOOD & DRINK SUPPLIES,OTHER NONDURABLE GOODS,GPC
WALSALL COUNCIL,HTTP://OPENDATACOMMUNITIES.ORG/ID/METROPOLITAN-DISTRICT-COUNCIL/WALSALL,30/06/2020,ECONOMY & ENVIRONMENT,SCREWFIX DIRECT,15/04/2020,H59620200416KZEELXHTF-1,26.92,WALSALL GALA CENTRE-PURCHASE OF FURNITURE & EQUIPM,HOME SUPPLY WAREHOUSE STORES,GPC
WALSALL COUNCIL,HTTP://OPENDATACOMMUNITIES.ORG/ID/METROPOLITAN-DISTRICT-COUNCIL/WALSALL,30/06/2020,RESOURCES & TRANSFORMATION,JOHAL DAIRIES LTD,15/04/2020,H59620200416LCDFNCCOK-1,8.38,CA JANE LANE SPECIAL SCHOOL-FOOD & DRINK SUPPLIES,OTHER NONDURABLE GOODS,GPC
WALSALL COUNCIL,HTTP://OPENDATACOMMUNITIES.ORG/ID/METROPOLITAN-DISTRICT-COUNCIL/WALSALL,30/06/2020,CHILDRENS SERVICES,WM MORRISONS STORE,15/04/2020,H59620200416LHNXTYLJR-1,12.50,"43A HILTON ROAD, WILLENHALL-FOOD & DRINK SUPPLIES",GROCERY STORES AND SUPERMARKETS,GPC
WALSALL COUNCIL,HTTP://OPENDATACOMMUNITIES.ORG/ID/METROPOLITAN-DISTRICT-COUNCIL/WALSALL,30/06/2020,CHILDRENS SERVICES,WM MORRISONS STORE,15/04/2020,H59620200416LHNXTYLJR-2,51.39,"43A HILTON ROAD, WILLENHALL-FOOD & DRINK SUPPLIES",GROCERY STORES AND SUPERMARKETS,GPC
WALSALL COUNCIL,HTTP://OPENDATACOMMUNITIES.ORG/ID/METROPOLITAN-DISTRICT-COUNCIL/WALSALL,30/06/2020,RESOURCES & TRANSFORMATION,JOHAL DAIRIES LTD,15/04/2020,H59620200416MUCAYXSWO-1,3.76,CA ST GILES C.E. PRIMARY SCHOO-FOOD & DRINK SUPPLIES,OTHER NONDURABLE GOODS,GPC
WALSALL COUNCIL,HTTP://OPENDATACOMMUNITIES.ORG/ID/METROPOLITAN-DISTRICT-COUNCIL/WALSALL,30/06/2020,CHILDRENS SERVICES,POST OFFICE COUNTER,15/04/2020,H59620200416MYYZIUEKM-1,6.70,FAMILY PLACEMENTS-POSTAGES & COURIER SERVICES,POSTAL SERVICES - GOVERNMENT ONLY,GPC
WALSALL COUNCIL,HTTP://OPENDATACOMMUNITIES.ORG/ID/METROPOLITAN-DISTRICT-COUNCIL/WALSALL,30/06/2020,RESOURCES & TRANSFORMATION,JOHAL DAIRIES LTD,15/04/2020,H59620200416NVUXKQJOG-1,19.66,CA MOORCROFT WOOD-FOOD & DRINK SUPPLIES,OTHER NONDURABLE GOODS,GPC
WALSALL COUNCIL,HTTP://OPENDATACOMMUNITIES.ORG/ID/METROPOLITAN-DISTRICT-COUNCIL/WALSALL,30/06/2020,RESOURCES & TRANSFORMATION,JOHAL DAIRIES LTD,15/04/2020,H59620200416OPYFHDGRA-1,35.20,CA CASTLEFORT JMI SCHOOL-FOOD & DRINK SUPPLIES,OTHER NONDURABLE GOODS,GPC
WALSALL COUNCIL,HTTP://OPENDATACOMMUNITIES.ORG/ID/METROPOLITAN-DISTRICT-COUNCIL/WALSALL,30/06/2020,RESOURCES & TRANSFORMATION,JOHAL DAIRIES LTD,15/04/2020,H59620200416PAUPALTCQ-1,3.76,CA CROFT COMMUNITY PRIMARY SCH-FOOD & DRINK SUPPLIES,OTHER NONDURABLE GOODS,GPC
WALSALL COUNCIL,HTTP://OPENDATACOMMUNITIES.ORG/ID/METROPOLITAN-DISTRICT-COUNCIL/WALSALL,30/06/2020,RESOURCES & TRANSFORMATION,JOHAL DAIRIES LTD,15/04/2020,H59620200416PCJISXBVE-1,13.84,CA WALSALL WOOD PRIMARY SCHOOL-FOOD & DRINK SUPPLIES,OTHER NONDURABLE GOODS,GPC
WALSALL COUNCIL,HTTP://OPENDATACOMMUNITIES.ORG/ID/METROPOLITAN-DISTRICT-COUNCIL/WALSALL,30/06/2020,RESOURCES & TRANSFORMATION,TRAINLINE,15/04/2020,H59620200416PKEXJTWQU-1,-184.00,INVESTIGATIONS-OFFICERS & STAFF PUBLIC TRANSP,PASSENGER RAILWAYS,GPC
WALSALL COUNCIL,HTTP://OPENDATACOMMUNITIES.ORG/ID/METROPOLITAN-DISTRICT-COUNCIL/WALSALL,30/06/2020,CHILDRENS SERVICES,ARGOS LTD,15/04/2020,H59620200416PLNHBFOYD-1,179.99,EARLY YEARS AND DISABILITIES S-PURCHASE OF FURNITURE & EQUIPM,DISCOUNT STORES,GPC
WALSALL COUNCIL,HTTP://OPENDATACOMMUNITIES.ORG/ID/METROPOLITAN-DISTRICT-COUNCIL/WALSALL,30/06/2020,ECONOMY & ENVIRONMENT,SQ *T.MORGAN & SONS(LOCK,15/04/2020,H59620200416QCLKHNAIA-1,91.20,INFRASTRUCTURE MAINTENANCE-MATERIALS,"GENERAL CONTRACTORS, RESIDENTIAL AND COMMERCIAL",GPC
WALSALL COUNCIL,HTTP://OPENDATACOMMUNITIES.ORG/ID/METROPOLITAN-DISTRICT-COUNCIL/WALSALL,30/06/2020,RESOURCES & TRANSFORMATION,METRO INNS WALSALL,15/04/2020,H59620200416QIYQPCGGA-1,266.00,BED & BREAKFAST PAYMENTS-HOTEL ACCOMMODATION-EMPLOYEES,"HOTELS, MOTELS, RESORTS",GPC
WALSALL COUNCIL,HTTP://OPENDATACOMMUNITIES.ORG/ID/METROPOLITAN-DISTRICT-COUNCIL/WALSALL,30/06/2020,ECONOMY & ENVIRONMENT,AMZNMKTPLACE AMAZON.CO.UK,15/04/2020,H59620200416RHJJFGEQC-1,16.99,ENGINEERING MANAGEMENT-CLOTHING & LAUNDRY,MISCELLANEOUS AND SPECIALTY RETAIL STORES,GPC
WALSALL COUNCIL,HTTP://OPENDATACOMMUNITIES.ORG/ID/METROPOLITAN-DISTRICT-COUNCIL/WALSALL,30/06/2020,RESOURCES & TRANSFORMATION,JOHAL DAIRIES LTD,15/04/2020,H59620200416SIMCEPBVE-1,36.28,CA RADLEYS PRIMARY SCHOOL-FOOD & DRINK SUPPLIES,OTHER NONDURABLE GOODS,GPC
WALSALL COUNCIL,HTTP://OPENDATACOMMUNITIES.ORG/ID/METROPOLITAN-DISTRICT-COUNCIL/WALSALL,30/06/2020,RESOURCES & TRANSFORMATION,JOHAL DAIRIES LTD,15/04/2020,H59620200416SQXFRLWJO-1,3.76,CA ABBEY PRIMARY SCHOOL-FOOD & DRINK SUPPLIES,OTHER NONDURABLE GOODS,GPC
WALSALL COUNCIL,HTTP://OPENDATACOMMUNITIES.ORG/ID/METROPOLITAN-DISTRICT-COUNCIL/WALSALL,30/06/2020,RESOURCES & TRANSFORMATION,TRAINLINE,15/04/2020,H59620200416VUWTPEMXV-1,-188.00,INVESTIGATIONS-OFFICERS & STAFF PUBLIC TRANSP,PASSENGER RAILWAYS,GPC
WALSALL COUNCIL,HTTP://OPENDATACOMMUNITIES.ORG/ID/METROPOLITAN-DISTRICT-COUNCIL/WALSALL,30/06/2020,CHILDRENS SERVICES,W M MORRISON STORE,15/04/2020,H59620200416WEPTYGNTV-1,12.00,REDRUTH ROAD-RESIDENTS PERSONAL EXPENSES-AL,GROCERY STORES AND SUPERMARKETS,GPC
WALSALL COUNCIL,HTTP://OPENDATACOMMUNITIES.ORG/ID/METROPOLITAN-DISTRICT-COUNCIL/WALSALL,30/06/2020,RESOURCES & TRANSFORMATION,JOHAL DAIRIES LTD,15/04/2020,H59620200416YCGKZIBQL-1,3.76,CA WHITEHALL JUNIOR COMMUNITY -FOOD & DRINK SUPPLIES,OTHER NONDURABLE GOODS,GPC
WALSALL COUNCIL,HTTP://OPENDATACOMMUNITIES.ORG/ID/METROPOLITAN-DISTRICT-COUNCIL/WALSALL,30/06/2020,RESOURCES & TRANSFORMATION,WILKO RETAIL LIMITED,15/04/2020,H59620200416YZMDDCXPM-1,54.10,HOMELESSNESS PREVENTION STRATE-PURCHASE OF FURNITURE & EQUIPM,MISCELLANEOUS GENERAL MERCHANDISE,GPC
WALSALL COUNCIL,HTTP://OPENDATACOMMUNITIES.ORG/ID/METROPOLITAN-DISTRICT-COUNCIL/WALSALL,30/06/2020,CHILDRENS SERVICES,W M MORRISON STORE,15/04/2020,H59620200416ZGYQOGSGB-1,59.41,REDRUTH ROAD-FOOD & DRINK SUPPLIES,GROCERY STORES AND SUPERMARKETS,GPC
WALSALL COUNCIL,HTTP://OPENDATACOMMUNITIES.ORG/ID/METROPOLITAN-DISTRICT-COUNCIL/WALSALL,30/06/2020,ADULT SOCIAL CARE,WWW.BARGAINWHOLESALERS,16/04/2020,H59620200417BYDOWQUPB-1,2250.00,ASC PARTNERSHIPS-CLEANING MATERIALS,"CARD, GIFT, NOVELTY, AND SOUVENIR SHOPS",GPC
WALSALL COUNCIL,HTTP://OPENDATACOMMUNITIES.ORG/ID/METROPOLITAN-DISTRICT-COUNCIL/WALSALL,30/06/2020,ECONOMY & ENVIRONMENT,MMS.CARDSAVEONLINEPAYM,16/04/2020,H59620200417CKIPSFTTE-1,54.58,FLEET-MATERIALS,"NURSERIES, LAWN AND GARDEN SUPPLY STORES",GPC
WALSALL COUNCIL,HTTP://OPENDATACOMMUNITIES.ORG/ID/METROPOLITAN-DISTRICT-COUNCIL/WALSALL,30/06/2020,ADULT SOCIAL CARE,W M MORRISON STORE,16/04/2020,H59620200417DDCMRGFGC-1,23.52,ASC PARTNERSHIPS-FOOD & DRINK SUPPLIES,GROCERY STORES AND SUPERMARKETS,GPC
WALSALL COUNCIL,HTTP://OPENDATACOMMUNITIES.ORG/ID/METROPOLITAN-DISTRICT-COUNCIL/WALSALL,30/06/2020,CHILDRENS SERVICES,METRO INNS WALSALL,16/04/2020,H59620200417EHDIOQOYI-1,40.00,SAFEGUARDING & FAMILY SUPPORT-SECTION 1/17CHILD CARE ACT 198,"HOTELS, MOTELS, RESORTS",GPC
WALSALL COUNCIL,HTTP://OPENDATACOMMUNITIES.ORG/ID/METROPOLITAN-DISTRICT-COUNCIL/WALSALL,30/06/2020,RESOURCES & TRANSFORMATION,METRO INNS WALSALL,16/04/2020,H59620200417FCMHNVJCD-1,266.00,BED & BREAKFAST PAYMENTS-HOTEL ACCOMMODATION-EMPLOYEES,"HOTELS, MOTELS, RESORTS",GPC
WALSALL COUNCIL,HTTP://OPENDATACOMMUNITIES.ORG/ID/METROPOLITAN-DISTRICT-COUNCIL/WALSALL,30/06/2020,RESOURCES & TRANSFORMATION,WWW.CARPHONEWAREHO,16/04/2020,H59620200417FOOJUXSKR-1,129.90,WALSALL CRISIS SUPPORT SCHEME-CRISIS SUPPORT PAYMENTS,TELECOMMUNICATION EQUIPMENT & SALES,GPC
WALSALL COUNCIL,HTTP://OPENDATACOMMUNITIES.ORG/ID/METROPOLITAN-DISTRICT-COUNCIL/WALSALL,30/06/2020,ECONOMY & ENVIRONMENT,CARTRIDGE SAVE,16/04/2020,H59620200417GBSYWFMDT-1,41.06,GROUNDS MAINTENANCE-CEMETERIES-MATERIALS,"STATIONERY, OFFICE SUPPLIES AND WRITING PAPER",GPC
WALSALL COUNCIL,HTTP://OPENDATACOMMUNITIES.ORG/ID/METROPOLITAN-DISTRICT-COUNCIL/WALSALL,30/06/2020,CHILDRENS SERVICES - SCHOOLS,WAITROSE DIRECT,16/04/2020,H59620200417GRNHJKAUJ-1,34.95,CADMUS FEDERATION-FREE STAFF MEALS,GROCERY STORES AND SUPERMARKETS,GPC
WALSALL COUNCIL,HTTP://OPENDATACOMMUNITIES.ORG/ID/METROPOLITAN-DISTRICT-COUNCIL/WALSALL,30/06/2020,RESOURCES & TRANSFORMATION,J2 EFAX PLUS SERVICE,16/04/2020,H59620200417HBCFDGLAT-1,7.20,RECHARGEABLE EQUIPMENT-COMPUTER EQUIPMENT,DIRECT MARKETING CONTINUITY SUBSCRIPTION MERCHANTS,GPC
WALSALL COUNCIL,HTTP://OPENDATACOMMUNITIES.ORG/ID/METROPOLITAN-DISTRICT-COUNCIL/WALSALL,30/06/2020,RESOURCES & TRANSFORMATION,METRO INNS WALSALL,16/04/2020,H59620200417HXFSSNFQD-1,266.00,BED & BREAKFAST PAYMENTS-HOTEL ACCOMMODATION-EMPLOYEES,"HOTELS, MOTELS, RESORTS",GPC
WALSALL COUNCIL,HTTP://OPENDATACOMMUNITIES.ORG/ID/METROPOLITAN-DISTRICT-COUNCIL/WALSALL,30/06/2020,CHILDRENS SERVICES,POST OFFICE COUNTER,16/04/2020,H59620200417HYRUTGTMS-1,7.40,FAMILY PLACEMENTS-POSTAGES & COURIER SERVICES,POSTAL SERVICES - GOVERNMENT ONLY,GPC
WALSALL COUNCIL,HTTP://OPENDATACOMMUNITIES.ORG/ID/METROPOLITAN-DISTRICT-COUNCIL/WALSALL,30/06/2020,RESOURCES & TRANSFORMATION,METRO INNS WALSALL,16/04/2020,H59620200417IQLSQGCOT-1,266.00,BED & BREAKFAST PAYMENTS-HOTEL ACCOMMODATION-EMPLOYEES,"HOTELS, MOTELS, RESORTS",GPC
WALSALL COUNCIL,HTTP://OPENDATACOMMUNITIES.ORG/ID/METROPOLITAN-DISTRICT-COUNCIL/WALSALL,30/06/2020,ECONOMY & ENVIRONMENT,WWW.BANNERUK.COM,16/04/2020,H59620200417KQMNSQBLT-1,86.83,CIVIC LEADERSHIP AND MOBILISIN-STATIONERY & GENERAL OFFICE SU,"STATIONERY, OFFICE SUPPLIES AND WRITING PAPER",GPC
WALSALL COUNCIL,HTTP://OPENDATACOMMUNITIES.ORG/ID/METROPOLITAN-DISTRICT-COUNCIL/WALSALL,30/06/2020,CHILDRENS SERVICES,ARGOS LTD,16/04/2020,H59620200417MYDRYJMCB-1,255.95,SUPPORT UNDER SECT 23 OF THE C-PURCHASE OF FURNITURE & EQUIPM,DISCOUNT STORES,GPC
WALSALL COUNCIL,HTTP://OPENDATACOMMUNITIES.ORG/ID/METROPOLITAN-DISTRICT-COUNCIL/WALSALL,30/06/2020,RESOURCES & TRANSFORMATION,WM MORRISONS STORE,16/04/2020,H59620200417NBPPTHCYL-1,3.69,CATERING - MANAGEMENT-FOOD & DRINK SUPPLIES,GROCERY STORES AND SUPERMARKETS,GPC
WALSALL COUNCIL,HTTP://OPENDATACOMMUNITIES.ORG/ID/METROPOLITAN-DISTRICT-COUNCIL/WALSALL,30/06/2020,CHILDRENS SERVICES,ARGOS LTD,16/04/2020,H59620200417PRQGYIPZQ-1,59.99,SAFEGUARDING & FAMILY SUPPORT-SECTION 1/17CHILD CARE ACT 198,DISCOUNT STORES,GPC
WALSALL COUNCIL,HTTP://OPENDATACOMMUNITIES.ORG/ID/METROPOLITAN-DISTRICT-COUNCIL/WALSALL,30/06/2020,ECONOMY & ENVIRONMENT,WWW.BANNERUK.COM,16/04/2020,H59620200417PXVEVBEVG-1,29.11,CENTRALISED STATIONARY-STATIONERY & GENERAL OFFICE SU,"STATIONERY, OFFICE SUPPLIES AND WRITING PAPER",GPC
WALSALL COUNCIL,HTTP://OPENDATACOMMUNITIES.ORG/ID/METROPOLITAN-DISTRICT-COUNCIL/WALSALL,30/06/2020,CHILDRENS SERVICES,AMZNMKTPLACE AMAZON.CO.UK,16/04/2020,H59620200417RDPJMUZQO-1,15.87,VIRTUAL SCHOOL - CENTRAL PUPIL-STATIONERY & GENERAL OFFICE SU,MISCELLANEOUS AND SPECIALTY RETAIL STORES,GPC
WALSALL COUNCIL,HTTP://OPENDATACOMMUNITIES.ORG/ID/METROPOLITAN-DISTRICT-COUNCIL/WALSALL,30/06/2020,CHILDRENS SERVICES,ARGOS LTD,16/04/2020,H59620200417RIKZHYOOZ-1,43.90,SUPPORT UNDER SECT 23 OF THE C-SUPPORT UNDER SECTION 23 OF TH,DISCOUNT STORES,GPC
WALSALL COUNCIL,HTTP://OPENDATACOMMUNITIES.ORG/ID/METROPOLITAN-DISTRICT-COUNCIL/WALSALL,30/06/2020,ADULT SOCIAL CARE,CMT EQUIPMENT LIMITED,16/04/2020,H59620200417ROZSUYIBW-1,6900.00,ASC PARTNERSHIPS-CLEANING MATERIALS,HARDWARE EQUIPMENT AND SUPPLIES,GPC
WALSALL COUNCIL,HTTP://OPENDATACOMMUNITIES.ORG/ID/METROPOLITAN-DISTRICT-COUNCIL/WALSALL,30/06/2020,ECONOMY & ENVIRONMENT,SCREWFIX DIRECT,16/04/2020,H59620200417SVYNPREVM-1,13.99,WALSALL GALA CENTRE-PURCHASE OF FURNITURE & EQUIPM,HOME SUPPLY WAREHOUSE STORES,GPC
WALSALL COUNCIL,HTTP://OPENDATACOMMUNITIES.ORG/ID/METROPOLITAN-DISTRICT-COUNCIL/WALSALL,30/06/2020,CHILDRENS SERVICES,WM MORRISONS STORE,16/04/2020,H59620200417TQYNEAMRC-1,7000.00,SPECIAL FACILITIES - BEFORE/AF-MATERIALS,GROCERY STORES AND SUPERMARKETS,GPC
WALSALL COUNCIL,HTTP://OPENDATACOMMUNITIES.ORG/ID/METROPOLITAN-DISTRICT-COUNCIL/WALSALL,30/06/2020,CHILDRENS SERVICES,BRIGHTMINDS,16/04/2020,H59620200417UCJYPZEJL-1,16.94,VIRTUAL SCHOOL - CENTRAL PUPIL-OTHER EXPENSES,"GAME, TOY, AND HOBBY SHOPS",GPC
WALSALL COUNCIL,HTTP://OPENDATACOMMUNITIES.ORG/ID/METROPOLITAN-DISTRICT-COUNCIL/WALSALL,30/06/2020,RESOURCES & TRANSFORMATION,B&M RETAIL LTD,16/04/2020,H59620200417VGDBONWMZ-1,171.40,HOMELESSNESS PREVENTION STRATE-PURCHASE OF FURNITURE & EQUIPM,DISCOUNT STORES,GPC
WALSALL COUNCIL,HTTP://OPENDATACOMMUNITIES.ORG/ID/METROPOLITAN-DISTRICT-COUNCIL/WALSALL,30/06/2020,CHILDRENS SERVICES,ARGOS LTD,16/04/2020,H59620200417VXBDXIVHY-1,35.99,SAFEGUARDING & FAMILY SUPPORT-SECTION 1/17CHILD CARE ACT 198,DISCOUNT STORES,GPC
WALSALL COUNCIL,HTTP://OPENDATACOMMUNITIES.ORG/ID/METROPOLITAN-DISTRICT-COUNCIL/WALSALL,30/06/2020,CHILDRENS SERVICES,WWW.ROMPALIMITED.COM,16/04/2020,H59620200417XHTVPMQKH-1,350.92,VIRTUAL SCHOOL - CENTRAL PUPIL-STATIONERY & GENERAL OFFICE SU,MISCELLANEOUS AND SPECIALTY RETAIL STORES,GPC
WALSALL COUNCIL,HTTP://OPENDATACOMMUNITIES.ORG/ID/METROPOLITAN-DISTRICT-COUNCIL/WALSALL,30/06/2020,CHILDRENS SERVICES,PAYPAL *ROMPA LTD,16/04/2020,H59620200417XOMIEMFDA-1,986.44,VIRTUAL SCHOOL - CENTRAL PUPIL-OTHER EXPENSES,"HEALTH PRACTITIONERS, MEDICAL SERVICES",GPC
WALSALL COUNCIL,HTTP://OPENDATACOMMUNITIES.ORG/ID/METROPOLITAN-DISTRICT-COUNCIL/WALSALL,30/06/2020,RESOURCES & TRANSFORMATION,WILKO RETAIL LIMITED,16/04/2020,H59620200417XVPHIFVKG-1,101.20,HOMELESSNESS PREVENTION STRATE-PURCHASE OF FURNITURE & EQUIPM,MISCELLANEOUS GENERAL MERCHANDISE,GPC
WALSALL COUNCIL,HTTP://OPENDATACOMMUNITIES.ORG/ID/METROPOLITAN-DISTRICT-COUNCIL/WALSALL,30/06/2020,ECONOMY & ENVIRONMENT,WLY*COMPLETESAVE.CO.UK,16/04/2020,H59620200417YHJAQOHLP-1,15.00,NEW ART GALLERY - ADMIN-SUBSCRIPTIONS,DIRECT MARKETING CONTINUITY SUBSCRIPTION MERCHANTS,GPC
WALSALL COUNCIL,HTTP://OPENDATACOMMUNITIES.ORG/ID/METROPOLITAN-DISTRICT-COUNCIL/WALSALL,30/06/2020,RESOURCES & TRANSFORMATION,FACEBK BDP8VQWN22,16/04/2020,H59620200417YPSFWUFSR-1,11.26,AREA PARTNERSHIPS-PUBLICITY & ADVERTISING (NON S,ADVERTISING SERVICES,GPC
WALSALL COUNCIL,HTTP://OPENDATACOMMUNITIES.ORG/ID/METROPOLITAN-DISTRICT-COUNCIL/WALSALL,30/06/2020,ECONOMY & ENVIRONMENT,B & Q 1309,16/04/2020,H59620200417YUTFVGSLQ-1,187.28,DEPOT-MATERIALS,HOME SUPPLY WAREHOUSE STORES,GPC
WALSALL COUNCIL,HTTP://OPENDATACOMMUNITIES.ORG/ID/METROPOLITAN-DISTRICT-COUNCIL/WALSALL,30/06/2020,ECONOMY & ENVIRONMENT,FACEBK *33L28Q2X82,17/04/2020,H59620200418BJTHSYJCP-1,10.00,RES-WALSALL WORKS-PUBLICITY & ADVERTISING (NON S,ADVERTISING SERVICES,GPC
WALSALL COUNCIL,HTTP://OPENDATACOMMUNITIES.ORG/ID/METROPOLITAN-DISTRICT-COUNCIL/WALSALL,30/06/2020,RESOURCES & TRANSFORMATION,METRO INNS WALSALL,17/04/2020,H59620200418BNNBUUWGV-1,266.00,BED & BREAKFAST PAYMENTS-HOTEL ACCOMMODATION-EMPLOYEES,"HOTELS, MOTELS, RESORTS",GPC
WALSALL COUNCIL,HTTP://OPENDATACOMMUNITIES.ORG/ID/METROPOLITAN-DISTRICT-COUNCIL/WALSALL,30/06/2020,RESOURCES & TRANSFORMATION,AMZNMKTPLACE,17/04/2020,H59620200418CWPGVEGLN-1,24.93,AREA PARTNERSHIPS-STATIONERY & GENERAL OFFICE SU,MISCELLANEOUS AND SPECIALTY RETAIL STORES,GPC
WALSALL COUNCIL,HTTP://OPENDATACOMMUNITIES.ORG/ID/METROPOLITAN-DISTRICT-COUNCIL/WALSALL,30/06/2020,CHILDRENS SERVICES,WEST MID TRAVEL,17/04/2020,H59620200418DEHYGQTVR-1,489.35,SAFEGUARDING & FAMILY SUPPORT-OFFICERS & STAFF PUBLIC TRANSP,BUS LINES,GPC
WALSALL COUNCIL,HTTP://OPENDATACOMMUNITIES.ORG/ID/METROPOLITAN-DISTRICT-COUNCIL/WALSALL,30/06/2020,ADULT SOCIAL CARE,TRAINLINE,17/04/2020,H59620200418GRMHIIYTP-1,-26.00,"STRATEGY, COMMISSIONING, AND D-OFFICERS & STAFF PUBLIC TRANSP",PASSENGER RAILWAYS,GPC
WALSALL COUNCIL,HTTP://OPENDATACOMMUNITIES.ORG/ID/METROPOLITAN-DISTRICT-COUNCIL/WALSALL,30/06/2020,CHILDRENS SERVICES,AMAZON.CO.UK*TS9NC5A05 AM,17/04/2020,H59620200418HARPSYCNM-1,17.48,VIRTUAL SCHOOL - CENTRAL PUPIL-OTHER EXPENSES,MISCELLANEOUS AND SPECIALTY RETAIL STORES,GPC
WALSALL COUNCIL,HTTP://OPENDATACOMMUNITIES.ORG/ID/METROPOLITAN-DISTRICT-COUNCIL/WALSALL,30/06/2020,CHILDRENS SERVICES,AMZNMKTPLACE AMAZON.CO.UK,17/04/2020,H59620200418IKPKIRCPN-1,16.99,VIRTUAL SCHOOL - CENTRAL PUPIL-OTHER EXPENSES,MISCELLANEOUS AND SPECIALTY RETAIL STORES,GPC
WALSALL COUNCIL,HTTP://OPENDATACOMMUNITIES.ORG/ID/METROPOLITAN-DISTRICT-COUNCIL/WALSALL,30/06/2020,RESOURCES & TRANSFORMATION,METRO INNS WALSALL,17/04/2020,H59620200418IWFQEQXFE-1,266.00,BED & BREAKFAST PAYMENTS-HOTEL ACCOMMODATION-EMPLOYEES,"HOTELS, MOTELS, RESORTS",GPC
WALSALL COUNCIL,HTTP://OPENDATACOMMUNITIES.ORG/ID/METROPOLITAN-DISTRICT-COUNCIL/WALSALL,30/06/2020,CHILDRENS SERVICES,VIRGIN MEDIA PYMTS,17/04/2020,H59620200418JBSSGSMKK-1,112.50,"43A HILTON ROAD, WILLENHALL-RESIDENTS PERSONAL EXPENSES-AL",TELECOMMUNICATION SERVICES,GPC
WALSALL COUNCIL,HTTP://OPENDATACOMMUNITIES.ORG/ID/METROPOLITAN-DISTRICT-COUNCIL/WALSALL,30/06/2020,CHILDRENS SERVICES,POST OFFICE COUNTER,17/04/2020,H59620200418KFYKIPXSC-1,17.60,FAMILY PLACEMENTS-POSTAGES & COURIER SERVICES,POSTAL SERVICES - GOVERNMENT ONLY,GPC
WALSALL COUNCIL,HTTP://OPENDATACOMMUNITIES.ORG/ID/METROPOLITAN-DISTRICT-COUNCIL/WALSALL,30/06/2020,RESOURCES & TRANSFORMATION,METRO INNS WALSALL,17/04/2020,H59620200418KKHGJKBJQ-1,266.00,BED & BREAKFAST PAYMENTS-HOTEL ACCOMMODATION-EMPLOYEES,"HOTELS, MOTELS, RESORTS",GPC
WALSALL COUNCIL,HTTP://OPENDATACOMMUNITIES.ORG/ID/METROPOLITAN-DISTRICT-COUNCIL/WALSALL,30/06/2020,RESOURCES & TRANSFORMATION,UTILITA ENERGY LTD,17/04/2020,H59620200418KQNSDTKHU-1,40.00,WALSALL CRISIS SUPPORT SCHEME-CRISIS SUPPORT PAYMENTS,"UTILITIES - ELECTRIC, GAS, SANITARY & WATER",GPC
WALSALL COUNCIL,HTTP://OPENDATACOMMUNITIES.ORG/ID/METROPOLITAN-DISTRICT-COUNCIL/WALSALL,30/06/2020,RESOURCES & TRANSFORMATION,METRO INNS WALSALL,17/04/2020,H59620200418KXAPHMXXT-1,266.00,BED & BREAKFAST PAYMENTS-HOTEL ACCOMMODATION-EMPLOYEES,"HOTELS, MOTELS, RESORTS",GPC
WALSALL COUNCIL,HTTP://OPENDATACOMMUNITIES.ORG/ID/METROPOLITAN-DISTRICT-COUNCIL/WALSALL,30/06/2020,CHILDRENS SERVICES,METRO INNS WALSALL,17/04/2020,H59620200418LFAJZPWFT-1,40.00,SAFEGUARDING & FAMILY SUPPORT-SECTION 1/17CHILD CARE ACT 198,"HOTELS, MOTELS, RESORTS",GPC
WALSALL COUNCIL,HTTP://OPENDATACOMMUNITIES.ORG/ID/METROPOLITAN-DISTRICT-COUNCIL/WALSALL,30/06/2020,ECONOMY & ENVIRONMENT,HUGHIE WILLETT MACH,17/04/2020,H59620200418LGWTPYSQJ-1,89.95,FLEET-MATERIALS,"OTHER AUTOMOTIVE, AIRCRAFT, AND FARM EQUIPMENT",GPC
WALSALL COUNCIL,HTTP://OPENDATACOMMUNITIES.ORG/ID/METROPOLITAN-DISTRICT-COUNCIL/WALSALL,30/06/2020,CHILDRENS SERVICES,POST OFFICE COUNTER,17/04/2020,H59620200418LHNNXWBHU-1,3.70,FAMILY PLACEMENTS-POSTAGES & COURIER SERVICES,POSTAL SERVICES - GOVERNMENT ONLY,GPC
WALSALL COUNCIL,HTTP://OPENDATACOMMUNITIES.ORG/ID/METROPOLITAN-DISTRICT-COUNCIL/WALSALL,30/06/2020,CHILDRENS SERVICES,WWW.INFORMA.COM,17/04/2020,H59620200418NNEGWTFWS-1,13.59,VIRTUAL SCHOOL - CENTRAL PUPIL-OTHER EXPENSES,MISCELLANEOUS PUBLISHING AND PRINTING,GPC
WALSALL COUNCIL,HTTP://OPENDATACOMMUNITIES.ORG/ID/METROPOLITAN-DISTRICT-COUNCIL/WALSALL,30/06/2020,RESOURCES & TRANSFORMATION,WWW.CARPHONEWAREHO,17/04/2020,H59620200418NRSLUUXUI-1,402.69,WALSALL CRISIS SUPPORT SCHEME-CRISIS SUPPORT PAYMENTS,TELECOMMUNICATION EQUIPMENT & SALES,GPC
WALSALL COUNCIL,HTTP://OPENDATACOMMUNITIES.ORG/ID/METROPOLITAN-DISTRICT-COUNCIL/WALSALL,30/06/2020,ECONOMY & ENVIRONMENT,AMAZON.CO.UK*1W8HQ8WT5,17/04/2020,H59620200418NWDRTJEWO-1,43.90,CENTRALISED STATIONARY-PURCHASE OF FURNITURE & EQUIPM,OTHER DIRECT MARKETING-OTHER DIRECT MARKETERS,GPC
WALSALL COUNCIL,HTTP://OPENDATACOMMUNITIES.ORG/ID/METROPOLITAN-DISTRICT-COUNCIL/WALSALL,30/06/2020,CHILDRENS SERVICES,AMZNMKTPLACE AMAZON.CO.UK,17/04/2020,H59620200418QQYOIWDXV-1,21.48,VIRTUAL SCHOOL - CENTRAL PUPIL-OTHER EXPENSES,MISCELLANEOUS AND SPECIALTY RETAIL STORES,GPC
WALSALL COUNCIL,HTTP://OPENDATACOMMUNITIES.ORG/ID/METROPOLITAN-DISTRICT-COUNCIL/WALSALL,30/06/2020,RESOURCES & TRANSFORMATION,B&M RETAIL LTD,17/04/2020,H59620200418RLZXPSJGT-1,191.91,HOMELESSNESS PREVENTION STRATE-PURCHASE OF FURNITURE & EQUIPM,DISCOUNT STORES,GPC
WALSALL COUNCIL,HTTP://OPENDATACOMMUNITIES.ORG/ID/METROPOLITAN-DISTRICT-COUNCIL/WALSALL,30/06/2020,CHILDRENS SERVICES,AMAZON.CO.UK*K52TH1SC5,17/04/2020,H59620200418RWEWLQODF-1,242.75,"43A HILTON ROAD, WILLENHALL-PURCHASE OF FURNITURE & EQUIPM",OTHER DIRECT MARKETING-OTHER DIRECT MARKETERS,GPC
WALSALL COUNCIL,HTTP://OPENDATACOMMUNITIES.ORG/ID/METROPOLITAN-DISTRICT-COUNCIL/WALSALL,30/06/2020,RESOURCES & TRANSFORMATION,METRO INNS WALSALL,17/04/2020,H59620200418SHBPIVQSR-1,266.00,BED & BREAKFAST PAYMENTS-HOTEL ACCOMMODATION-EMPLOYEES,"HOTELS, MOTELS, RESORTS",GPC
WALSALL COUNCIL,HTTP://OPENDATACOMMUNITIES.ORG/ID/METROPOLITAN-DISTRICT-COUNCIL/WALSALL,30/06/2020,RESOURCES & TRANSFORMATION,AMZNMKTPLACE AMAZON.CO.UK,17/04/2020,H59620200418UXAQGJVXE-1,29.20,AREA PARTNERSHIPS-STATIONERY & GENERAL OFFICE SU,MISCELLANEOUS AND SPECIALTY RETAIL STORES,GPC
WALSALL COUNCIL,HTTP://OPENDATACOMMUNITIES.ORG/ID/METROPOLITAN-DISTRICT-COUNCIL/WALSALL,30/06/2020,CHILDRENS SERVICES,TVLICENSING.CO.UK,17/04/2020,H59620200418VILOHFIKK-1,157.50,"43A HILTON ROAD, WILLENHALL-FEES & LICENCES","CONSULTING, MANAGEMENT, AND PR SERVICES",GPC
WALSALL COUNCIL,HTTP://OPENDATACOMMUNITIES.ORG/ID/METROPOLITAN-DISTRICT-COUNCIL/WALSALL,30/06/2020,RESOURCES & TRANSFORMATION,METRO INNS WALSALL,17/04/2020,H59620200418YCSAOFIHQ-1,266.00,BED & BREAKFAST PAYMENTS-HOTEL ACCOMMODATION-EMPLOYEES,"HOTELS, MOTELS, RESORTS",GPC
WALSALL COUNCIL,HTTP://OPENDATACOMMUNITIES.ORG/ID/METROPOLITAN-DISTRICT-COUNCIL/WALSALL,30/06/2020,CHILDRENS SERVICES,WWW.BANNERUK.COM,17/04/2020,H59620200418ZVMMCOVFI-1,247.44,SAFEGUARDING & FAMILY SUPPORT-STATIONERY & GENERAL OFFICE SU,"STATIONERY, OFFICE SUPPLIES AND WRITING PAPER",GPC
WALSALL COUNCIL,HTTP://OPENDATACOMMUNITIES.ORG/ID/METROPOLITAN-DISTRICT-COUNCIL/WALSALL,30/06/2020,ECONOMY & ENVIRONMENT,SCREWFIX DIRECT,20/04/2020,H59620200421BBPULQOMT-1,59.99,DEPOT-MATERIALS,HOME SUPPLY WAREHOUSE STORES,GPC
WALSALL COUNCIL,HTTP://OPENDATACOMMUNITIES.ORG/ID/METROPOLITAN-DISTRICT-COUNCIL/WALSALL,30/06/2020,ADULT SOCIAL CARE,WWW.PAY.UKCRS.COM,20/04/2020,H59620200421BCWVSJNKW-1,150.00,ASC PARTNERSHIPS-ACCOMMODATION AND RELATED COST,OTHER BUSINESS SERVICES,GPC
WALSALL COUNCIL,HTTP://OPENDATACOMMUNITIES.ORG/ID/METROPOLITAN-DISTRICT-COUNCIL/WALSALL,30/06/2020,CHILDRENS SERVICES,ARGOS LTD,20/04/2020,H59620200421BPKBSTVHC-1,343.93,VIRTUAL SCHOOL - CENTRAL PUPIL-OTHER EXPENSES,DISCOUNT STORES,GPC
WALSALL COUNCIL,HTTP://OPENDATACOMMUNITIES.ORG/ID/METROPOLITAN-DISTRICT-COUNCIL/WALSALL,30/06/2020,ADULT SOCIAL CARE,WM MORRISONS STORE,20/04/2020,H59620200421CPGEUDLVE-1,28.49,GOSCOTE-FOOD & DRINK SUPPLIES,GROCERY STORES AND SUPERMARKETS,GPC
WALSALL COUNCIL,HTTP://OPENDATACOMMUNITIES.ORG/ID/METROPOLITAN-DISTRICT-COUNCIL/WALSALL,30/06/2020,ECONOMY & ENVIRONMENT,WP-LEIGH PARK GARD,20/04/2020,H59620200421CYJXLGLRT-1,38.38,FLEET-MATERIALS,"NURSERIES, LAWN AND GARDEN SUPPLY STORES",GPC
WALSALL COUNCIL,HTTP://OPENDATACOMMUNITIES.ORG/ID/METROPOLITAN-DISTRICT-COUNCIL/WALSALL,30/06/2020,CHILDRENS SERVICES,POUNDLAND LTD 1088,20/04/2020,H59620200421EDUZUXMLP-1,5.00,LOCALITY FAMILY SUPPORT-NORTH-EVENTS & VISUAL ARTS,DISCOUNT STORES,GPC
WALSALL COUNCIL,HTTP://OPENDATACOMMUNITIES.ORG/ID/METROPOLITAN-DISTRICT-COUNCIL/WALSALL,30/06/2020,CHILDRENS SERVICES,METRO INNS WALSALL,20/04/2020,H59620200421EQOSRJDBL-1,114.00,SAFEGUARDING & FAMILY SUPPORT-ACCOMMODATION AND RELATED COST,"HOTELS, MOTELS, RESORTS",GPC
WALSALL COUNCIL,HTTP://OPENDATACOMMUNITIES.ORG/ID/METROPOLITAN-DISTRICT-COUNCIL/WALSALL,30/06/2020,RESOURCES & TRANSFORMATION,METRO INNS WALSALL,20/04/2020,H59620200421ESMFEENEU-1,266.00,BED & BREAKFAST PAYMENTS-BED & BREAKFAST PAYMENTS,"HOTELS, MOTELS, RESORTS",GPC
WALSALL COUNCIL,HTTP://OPENDATACOMMUNITIES.ORG/ID/METROPOLITAN-DISTRICT-COUNCIL/WALSALL,30/06/2020,ECONOMY & ENVIRONMENT,SIM-MAYOU HARDWARE,20/04/2020,H59620200421FANPOLUYB-1,4.50,INFRASTRUCTURE MAINTENANCE-MATERIALS,HARDWARE STORES,GPC
WALSALL COUNCIL,HTTP://OPENDATACOMMUNITIES.ORG/ID/METROPOLITAN-DISTRICT-COUNCIL/WALSALL,30/06/2020,ADULT SOCIAL CARE,ASDA STORES,20/04/2020,H59620200421FEXOOBYNX-1,90.45,GOSCOTE-FOOD & DRINK SUPPLIES,GROCERY STORES AND SUPERMARKETS,GPC
WALSALL COUNCIL,HTTP://OPENDATACOMMUNITIES.ORG/ID/METROPOLITAN-DISTRICT-COUNCIL/WALSALL,30/06/2020,RESOURCES & TRANSFORMATION,B&M RETAIL,20/04/2020,H59620200421FSFLXLHHX-1,84.96,HOMELESSNESS PREVENTION STRATE-PURCHASE OF FURNITURE & EQUIPM,DISCOUNT STORES,GPC
WALSALL COUNCIL,HTTP://OPENDATACOMMUNITIES.ORG/ID/METROPOLITAN-DISTRICT-COUNCIL/WALSALL,30/06/2020,CHILDRENS SERVICES,R DOWNES BROWNHILLS NEWSA,20/04/2020,H59620200421FVJCGAHRE-1,1.50,ADOLESCENT SERVICE-FOOD & DRINK SUPPLIES,NEWS DEALERS AND NEWSSTANDS,GPC
WALSALL COUNCIL,HTTP://OPENDATACOMMUNITIES.ORG/ID/METROPOLITAN-DISTRICT-COUNCIL/WALSALL,30/06/2020,ADULT SOCIAL CARE,WWW.BARGAINWHOLESALERS,20/04/2020,H59620200421GKYQPDJXB-1,9000.00,GOSCOTE-STATIONERY & GENERAL OFFICE SU,"CARD, GIFT, NOVELTY, AND SOUVENIR SHOPS",GPC
WALSALL COUNCIL,HTTP://OPENDATACOMMUNITIES.ORG/ID/METROPOLITAN-DISTRICT-COUNCIL/WALSALL,30/06/2020,CHILDRENS SERVICES,WM MORRISONS STORE,20/04/2020,H59620200421GRISFCTVV-1,5.00,TRANSITION AND LEAVING CARE PL-CARE LEAVERS MTCE PAYMENTS,GROCERY STORES AND SUPERMARKETS,GPC
WALSALL COUNCIL,HTTP://OPENDATACOMMUNITIES.ORG/ID/METROPOLITAN-DISTRICT-COUNCIL/WALSALL,30/06/2020,RESOURCES & TRANSFORMATION,SETON,20/04/2020,H59620200421HFYHJXJHY-1,115.06,ASSET MANAGEMENT-STATIONERY & GENERAL OFFICE SU,OTHER DURABLE GOODS,GPC
WALSALL COUNCIL,HTTP://OPENDATACOMMUNITIES.ORG/ID/METROPOLITAN-DISTRICT-COUNCIL/WALSALL,30/06/2020,CHILDRENS SERVICES,WM MORRISONS STORE,20/04/2020,H59620200421IOXBHALRK-1,11.15,TRANSITION AND LEAVING CARE PL-FOOD & DRINK SUPPLIES,GROCERY STORES AND SUPERMARKETS,GPC
WALSALL COUNCIL,HTTP://OPENDATACOMMUNITIES.ORG/ID/METROPOLITAN-DISTRICT-COUNCIL/WALSALL,30/06/2020,CHILDRENS SERVICES,WM MORRISONS STORE,20/04/2020,H59620200421IOXBHALRK-2,46.37,TRANSITION AND LEAVING CARE PL-FOOD & DRINK SUPPLIES,GROCERY STORES AND SUPERMARKETS,GPC
WALSALL COUNCIL,HTTP://OPENDATACOMMUNITIES.ORG/ID/METROPOLITAN-DISTRICT-COUNCIL/WALSALL,30/06/2020,CHILDRENS SERVICES,ARGOS LTD,20/04/2020,H59620200421JBXDIBMYJ-1,363.93,VIRTUAL SCHOOL - CENTRAL PUPIL-OTHER EXPENSES,DISCOUNT STORES,GPC
WALSALL COUNCIL,HTTP://OPENDATACOMMUNITIES.ORG/ID/METROPOLITAN-DISTRICT-COUNCIL/WALSALL,30/06/2020,CHILDRENS SERVICES,AMZNMKTPLACE AMAZON.CO.UK,20/04/2020,H59620200421JCRIVEASE-1,59.99,SAFEGUARDING & FAMILY SUPPORT-SECTION 1/17CHILD CARE ACT 198,MISCELLANEOUS AND SPECIALTY RETAIL STORES,GPC
WALSALL COUNCIL,HTTP://OPENDATACOMMUNITIES.ORG/ID/METROPOLITAN-DISTRICT-COUNCIL/WALSALL,30/06/2020,CHILDRENS SERVICES,B&M RETAIL,20/04/2020,H59620200421JUKGCCPGT-1,5.97,LOCALITY FAMILY SUPPORT-NORTH-EVENTS & VISUAL ARTS,DISCOUNT STORES,GPC
WALSALL COUNCIL,HTTP://OPENDATACOMMUNITIES.ORG/ID/METROPOLITAN-DISTRICT-COUNCIL/WALSALL,30/06/2020,CHILDRENS SERVICES,ARGOS LTD,20/04/2020,H59620200421KRLPWSPIN-1,343.93,VIRTUAL SCHOOL - CENTRAL PUPIL-OTHER EXPENSES,DISCOUNT STORES,GPC
WALSALL COUNCIL,HTTP://OPENDATACOMMUNITIES.ORG/ID/METROPOLITAN-DISTRICT-COUNCIL/WALSALL,30/06/2020,ADULT SOCIAL CARE,WURTH UK LTD,20/04/2020,H59620200421KSGMTFEBS-1,-7768.61,SHARED LIVES-MATERIALS,HARDWARE EQUIPMENT AND SUPPLIES,GPC
WALSALL COUNCIL,HTTP://OPENDATACOMMUNITIES.ORG/ID/METROPOLITAN-DISTRICT-COUNCIL/WALSALL,30/06/2020,CHILDRENS SERVICES,AMZNMKTPLACE,20/04/2020,H59620200421LAVILFCNV-1,122.57,SALISBURY PRIMARY SCHOOL-MATERIALS,MISCELLANEOUS AND SPECIALTY RETAIL STORES,GPC
WALSALL COUNCIL,HTTP://OPENDATACOMMUNITIES.ORG/ID/METROPOLITAN-DISTRICT-COUNCIL/WALSALL,30/06/2020,CHILDRENS SERVICES,ARGOS LTD,20/04/2020,H59620200421LRAKMWGGT-1,203.94,SUPPORT UNDER SECT 23 OF THE C-SUPPORT UNDER SECTION 23 OF TH,DISCOUNT STORES,GPC
WALSALL COUNCIL,HTTP://OPENDATACOMMUNITIES.ORG/ID/METROPOLITAN-DISTRICT-COUNCIL/WALSALL,30/06/2020,CHILDRENS SERVICES,GEN REGISTER OFFICE,20/04/2020,H59620200421LTVXEKYDG-1,56.00,SAFEGUARDING & FAMILY SUPPORT-FEES & LICENCES,GOVERNMENT SERVICES,GPC
WALSALL COUNCIL,HTTP://OPENDATACOMMUNITIES.ORG/ID/METROPOLITAN-DISTRICT-COUNCIL/WALSALL,30/06/2020,CHILDRENS SERVICES,WM MORRISONS STORE,20/04/2020,H59620200421MYADKZSUM-1,5.40,TRANSITION AND LEAVING CARE PL-FOOD & DRINK SUPPLIES,GROCERY STORES AND SUPERMARKETS,GPC
WALSALL COUNCIL,HTTP://OPENDATACOMMUNITIES.ORG/ID/METROPOLITAN-DISTRICT-COUNCIL/WALSALL,30/06/2020,CHILDRENS SERVICES,WM MORRISONS STORE,20/04/2020,H59620200421MYADKZSUM-2,30.17,TRANSITION AND LEAVING CARE PL-FOOD & DRINK SUPPLIES,GROCERY STORES AND SUPERMARKETS,GPC
WALSALL COUNCIL,HTTP://OPENDATACOMMUNITIES.ORG/ID/METROPOLITAN-DISTRICT-COUNCIL/WALSALL,30/06/2020,CHILDRENS SERVICES,CO-OPERATIVE FOOD,20/04/2020,H59620200421NUBIQYQNS-1,1.10,ADOLESCENT SERVICE-FOOD & DRINK SUPPLIES,GROCERY STORES AND SUPERMARKETS,GPC
WALSALL COUNCIL,HTTP://OPENDATACOMMUNITIES.ORG/ID/METROPOLITAN-DISTRICT-COUNCIL/WALSALL,30/06/2020,RESOURCES & TRANSFORMATION,COBDEN HOTEL LIMITED,20/04/2020,H59620200421QJFZUBKXX-1,385.00,ACCOMMODATION SERVICES MANAGEM-BED & BREAKFAST PAYMENTS,"HOTELS, MOTELS, RESORTS",GPC
WALSALL COUNCIL,HTTP://OPENDATACOMMUNITIES.ORG/ID/METROPOLITAN-DISTRICT-COUNCIL/WALSALL,30/06/2020,ADULT SOCIAL CARE,BOOZE LAND - 17913,20/04/2020,H59620200421QYIIQKRIK-1,8.00,ASC PARTNERSHIPS-FOOD & DRINK SUPPLIES,GROCERY STORES AND SUPERMARKETS,GPC
WALSALL COUNCIL,HTTP://OPENDATACOMMUNITIES.ORG/ID/METROPOLITAN-DISTRICT-COUNCIL/WALSALL,30/06/2020,CHILDRENS SERVICES,AMZNMKTPLACE AMAZON.CO.UK,20/04/2020,H59620200421RKNKBVUFN-1,59.99,SAFEGUARDING & FAMILY SUPPORT-SECTION 1/17CHILD CARE ACT 198,MISCELLANEOUS AND SPECIALTY RETAIL STORES,GPC
WALSALL COUNCIL,HTTP://OPENDATACOMMUNITIES.ORG/ID/METROPOLITAN-DISTRICT-COUNCIL/WALSALL,30/06/2020,CHILDRENS SERVICES - SCHOOLS,AMZ*INSECT LORE EURO,20/04/2020,H59620200421RWBFKSXGK-1,2.99,ADMINISTRATIVE SUPPLIES-STATIONERY & GENERAL OFFICE SU,ADVERTISING SERVICES,GPC
WALSALL COUNCIL,HTTP://OPENDATACOMMUNITIES.ORG/ID/METROPOLITAN-DISTRICT-COUNCIL/WALSALL,30/06/2020,CHILDRENS SERVICES - SCHOOLS,AMZNMKTPLACE,20/04/2020,H59620200421TNLIBKUUT-1,53.98,CHUCKERY PRIMARY SCHOOL-GROUNDS MAINTENANCE,MISCELLANEOUS AND SPECIALTY RETAIL STORES,GPC
WALSALL COUNCIL,HTTP://OPENDATACOMMUNITIES.ORG/ID/METROPOLITAN-DISTRICT-COUNCIL/WALSALL,30/06/2020,CHILDRENS SERVICES,AMAZON.CO.UK*D35N50WS5 AM,20/04/2020,H59620200421ULWGFRMSL-1,395.69,SALISBURY PRIMARY SCHOOL-MATERIALS,MISCELLANEOUS AND SPECIALTY RETAIL STORES,GPC
WALSALL COUNCIL,HTTP://OPENDATACOMMUNITIES.ORG/ID/METROPOLITAN-DISTRICT-COUNCIL/WALSALL,30/06/2020,CHILDRENS SERVICES,TESCO STORES 6161,20/04/2020,H59620200421UNIIGDHJY-1,120.00,REDRUTH ROAD-RESIDENTS PERSONAL EXPENSES-AL,GROCERY STORES AND SUPERMARKETS,GPC
WALSALL COUNCIL,HTTP://OPENDATACOMMUNITIES.ORG/ID/METROPOLITAN-DISTRICT-COUNCIL/WALSALL,30/06/2020,CHILDRENS SERVICES,ARGOS LTD,20/04/2020,H59620200421UQKUXHIFS-1,35.99,SAFEGUARDING & FAMILY SUPPORT-SECTION 1/17CHILD CARE ACT 198,DISCOUNT STORES,GPC
WALSALL COUNCIL,HTTP://OPENDATACOMMUNITIES.ORG/ID/METROPOLITAN-DISTRICT-COUNCIL/WALSALL,30/06/2020,CHILDRENS SERVICES,CURRYS ONLINE,20/04/2020,H59620200421VMNTSYEGW-1,178.00,"43A HILTON ROAD, WILLENHALL-RESIDENTS PERSONAL EXPENSES-AL",ELECTRONIC SALES,GPC
WALSALL COUNCIL,HTTP://OPENDATACOMMUNITIES.ORG/ID/METROPOLITAN-DISTRICT-COUNCIL/WALSALL,30/06/2020,RESOURCES & TRANSFORMATION,FACEBK BZQ2NS6P22,20/04/2020,H59620200421VSHDZDSPN-1,17.00,AREA PARTNERSHIPS-PUBLICITY & ADVERTISING (NON S,ADVERTISING SERVICES,GPC
WALSALL COUNCIL,HTTP://OPENDATACOMMUNITIES.ORG/ID/METROPOLITAN-DISTRICT-COUNCIL/WALSALL,30/06/2020,CHILDRENS SERVICES - SCHOOLS,PAYPAL *TRAININGSPA,20/04/2020,H59620200421VZTQMTIXV-1,186.10,E19-MATERIALS,"SCHOOLS, ELEMENTARY AND SECONDARY",GPC
WALSALL COUNCIL,HTTP://OPENDATACOMMUNITIES.ORG/ID/METROPOLITAN-DISTRICT-COUNCIL/WALSALL,30/06/2020,CHILDRENS SERVICES,ARGOS LTD,20/04/2020,H59620200421ZBBXVEMRR-1,343.93,VIRTUAL SCHOOL - CENTRAL PUPIL-OTHER EXPENSES,DISCOUNT STORES,GPC
WALSALL COUNCIL,HTTP://OPENDATACOMMUNITIES.ORG/ID/METROPOLITAN-DISTRICT-COUNCIL/WALSALL,30/06/2020,CHILDRENS SERVICES - SCHOOLS,PAYPAL *TRAININGSPA,20/04/2020,H59620200421ZCWKBCWGU-1,223.89,E19-MATERIALS,"SCHOOLS, ELEMENTARY AND SECONDARY",GPC
WALSALL COUNCIL,HTTP://OPENDATACOMMUNITIES.ORG/ID/METROPOLITAN-DISTRICT-COUNCIL/WALSALL,30/06/2020,CHILDRENS SERVICES,METRO INNS WALSALL,21/04/2020,H59620200422BCKGDAJUV-1,76.00,SAFEGUARDING & FAMILY SUPPORT-ACCOMMODATION AND RELATED COST,"HOTELS, MOTELS, RESORTS",GPC
WALSALL COUNCIL,HTTP://OPENDATACOMMUNITIES.ORG/ID/METROPOLITAN-DISTRICT-COUNCIL/WALSALL,30/06/2020,RESOURCES & TRANSFORMATION,ARTHUR BRETT CATER,21/04/2020,H59620200422BTBGBBHTO-1,29.30,CA KINGSHILL SCHOOL-FOOD & DRINK SUPPLIES,MISCELLANEOUS FOOD STORES & CONVENIENCE STORES,GPC
WALSALL COUNCIL,HTTP://OPENDATACOMMUNITIES.ORG/ID/METROPOLITAN-DISTRICT-COUNCIL/WALSALL,30/06/2020,CHILDRENS SERVICES,TESCO STORES 6161,21/04/2020,H59620200422CXEYXBXNQ-1,4.50,BLUEBELLS-CLEANING MATERIALS,GROCERY STORES AND SUPERMARKETS,GPC
WALSALL COUNCIL,HTTP://OPENDATACOMMUNITIES.ORG/ID/METROPOLITAN-DISTRICT-COUNCIL/WALSALL,30/06/2020,ADULT SOCIAL CARE,POST OFFICE COUNTER,21/04/2020,H59620200422DJJIBEOPI-1,2.06,GOSCOTE-POSTAGES & COURIER SERVICES,POSTAL SERVICES - GOVERNMENT ONLY,GPC
WALSALL COUNCIL,HTTP://OPENDATACOMMUNITIES.ORG/ID/METROPOLITAN-DISTRICT-COUNCIL/WALSALL,30/06/2020,RESOURCES & TRANSFORMATION,POST OFFICE COUNTER,21/04/2020,H59620200422DNFLRIUWX-1,40.32,ACCOMMODATION SERVICES MANAGEM-MATERIALS,POSTAL SERVICES - GOVERNMENT ONLY,GPC
WALSALL COUNCIL,HTTP://OPENDATACOMMUNITIES.ORG/ID/METROPOLITAN-DISTRICT-COUNCIL/WALSALL,30/06/2020,RESOURCES & TRANSFORMATION,PMD MAGNETICS,21/04/2020,H59620200422EJTYTIXTZ-1,214.80,RECHARGEABLE EQUIPMENT-COMPUTER EQUIPMENT,"STATIONERY, OFFICE SUPPLIES AND WRITING PAPER",GPC
WALSALL COUNCIL,HTTP://OPENDATACOMMUNITIES.ORG/ID/METROPOLITAN-DISTRICT-COUNCIL/WALSALL,30/06/2020,CHILDRENS SERVICES - SCHOOLS,SCREWFIX DIRECT,21/04/2020,H59620200422GHIVBDTGZ-1,7.14,PALFREY JUNIOR SCHOOL-PURCHASE OF FURNITURE & EQUIPM,HOME SUPPLY WAREHOUSE STORES,GPC
WALSALL COUNCIL,HTTP://OPENDATACOMMUNITIES.ORG/ID/METROPOLITAN-DISTRICT-COUNCIL/WALSALL,30/06/2020,CHILDRENS SERVICES,ARGOS LTD,21/04/2020,H59620200422HIYVWDAGQ-1,33.94,SAFEGUARDING & FAMILY SUPPORT-SECTION 1/17CHILD CARE ACT 198,DISCOUNT STORES,GPC
WALSALL COUNCIL,HTTP://OPENDATACOMMUNITIES.ORG/ID/METROPOLITAN-DISTRICT-COUNCIL/WALSALL,30/06/2020,ECONOMY & ENVIRONMENT,TIPPERS RUGELEY,21/04/2020,H59620200422NGFJSEJNS-1,101.07,WALSALL GALA CENTRE-MATERIALS,HARDWARE EQUIPMENT AND SUPPLIES,GPC
WALSALL COUNCIL,HTTP://OPENDATACOMMUNITIES.ORG/ID/METROPOLITAN-DISTRICT-COUNCIL/WALSALL,30/06/2020,CHILDRENS SERVICES,ARGOS LTD,21/04/2020,H59620200422NZWSONCMJ-1,123.94,VIRTUAL SCHOOL - CENTRAL PUPIL-OTHER EXPENSES,DISCOUNT STORES,GPC
WALSALL COUNCIL,HTTP://OPENDATACOMMUNITIES.ORG/ID/METROPOLITAN-DISTRICT-COUNCIL/WALSALL,30/06/2020,CHILDRENS SERVICES,TRAINLINE,21/04/2020,H59620200422OGNLMBDYN-1,10.83,SAFEGUARDING & FAMILY SUPPORT-SECTION 34 (CONTACT),PASSENGER RAILWAYS,GPC
WALSALL COUNCIL,HTTP://OPENDATACOMMUNITIES.ORG/ID/METROPOLITAN-DISTRICT-COUNCIL/WALSALL,30/06/2020,RESOURCES & TRANSFORMATION,J2 EFAX PLUS SERVICE,21/04/2020,H59620200422OTWBQRKDP-1,7.20,RECHARGEABLE EQUIPMENT-COMPUTER EQUIPMENT,DIRECT MARKETING CONTINUITY SUBSCRIPTION MERCHANTS,GPC
WALSALL COUNCIL,HTTP://OPENDATACOMMUNITIES.ORG/ID/METROPOLITAN-DISTRICT-COUNCIL/WALSALL,30/06/2020,RESOURCES & TRANSFORMATION,AMAZON.CO.UK*Z462O8JK5,21/04/2020,H59620200422PUSYHTLQU-1,60.99,ADMIN SUPPORT-STATIONERY & GENERAL OFFICE SU,OTHER DIRECT MARKETING-OTHER DIRECT MARKETERS,GPC
WALSALL COUNCIL,HTTP://OPENDATACOMMUNITIES.ORG/ID/METROPOLITAN-DISTRICT-COUNCIL/WALSALL,30/06/2020,CHILDRENS SERVICES,BESTWAY WALSALL,21/04/2020,H59620200422QNIIIOSXJ-1,196.81,SALISBURY PRIMARY SCHOOL-MATERIALS,DAIRY PRODUCTS STORES,GPC
WALSALL COUNCIL,HTTP://OPENDATACOMMUNITIES.ORG/ID/METROPOLITAN-DISTRICT-COUNCIL/WALSALL,30/06/2020,CHILDRENS SERVICES,WALSALL COUNCIL,21/04/2020,H59620200422RKINCCOIC-1,2.34,ST FRANCIS OF ASSISI CATHOLIC -POLICE CHECKS,GOVERNMENT SERVICES,GPC
WALSALL COUNCIL,HTTP://OPENDATACOMMUNITIES.ORG/ID/METROPOLITAN-DISTRICT-COUNCIL/WALSALL,30/06/2020,RESOURCES & TRANSFORMATION,ALDI 78 772,21/04/2020,H59620200422RLFOBEJYN-1,2.36,ACCOMMODATION SERVICES MANAGEM-MATERIALS,GROCERY STORES AND SUPERMARKETS,GPC
WALSALL COUNCIL,HTTP://OPENDATACOMMUNITIES.ORG/ID/METROPOLITAN-DISTRICT-COUNCIL/WALSALL,30/06/2020,CHILDRENS SERVICES,B&M RETAIL,21/04/2020,H59620200422RMKGHNVGP-1,5.97,CONTACT SESSIONAL STAFF-CLEANING MATERIALS,DISCOUNT STORES,GPC
WALSALL COUNCIL,HTTP://OPENDATACOMMUNITIES.ORG/ID/METROPOLITAN-DISTRICT-COUNCIL/WALSALL,30/06/2020,ADULT SOCIAL CARE,ASDA SUPERSTORE,21/04/2020,H59620200422RTJYZMFXE-1,90.00,ASC PARTNERSHIPS-FOOD & DRINK SUPPLIES,GROCERY STORES AND SUPERMARKETS,GPC
WALSALL COUNCIL,HTTP://OPENDATACOMMUNITIES.ORG/ID/METROPOLITAN-DISTRICT-COUNCIL/WALSALL,30/06/2020,CHILDRENS SERVICES - SCHOOLS,WWW.SWWBUSINESS.CO.UK,21/04/2020,H59620200422SGFYKLUYY-1,673.03,CHUCKERY PRIMARY SCHOOL-WATER CHARGES,"AIR CONDITIONING, HEATING, PLUMBING CONTRACTORS",GPC
WALSALL COUNCIL,HTTP://OPENDATACOMMUNITIES.ORG/ID/METROPOLITAN-DISTRICT-COUNCIL/WALSALL,30/06/2020,CHILDRENS SERVICES,O2,21/04/2020,H59620200422TKVXOPIOI-1,33.80,ADMIN-MOBILE PHONES,TELECOMMUNICATION SERVICES,GPC
WALSALL COUNCIL,HTTP://OPENDATACOMMUNITIES.ORG/ID/METROPOLITAN-DISTRICT-COUNCIL/WALSALL,30/06/2020,RESOURCES & TRANSFORMATION,ARTHUR BRETT CATER,21/04/2020,H59620200422TRJIGSIEQ-1,12.00,CA ELMWOOD SPECIAL SCHOOL-FOOD & DRINK SUPPLIES,MISCELLANEOUS FOOD STORES & CONVENIENCE STORES,GPC
WALSALL COUNCIL,HTTP://OPENDATACOMMUNITIES.ORG/ID/METROPOLITAN-DISTRICT-COUNCIL/WALSALL,30/06/2020,ADULT SOCIAL CARE,WWW.BANNERUK.COM,21/04/2020,H59620200422UBSVTUMKQ-1,186.67,GOSCOTE-STATIONERY & GENERAL OFFICE SU,"STATIONERY, OFFICE SUPPLIES AND WRITING PAPER",GPC
WALSALL COUNCIL,HTTP://OPENDATACOMMUNITIES.ORG/ID/METROPOLITAN-DISTRICT-COUNCIL/WALSALL,30/06/2020,ECONOMY & ENVIRONMENT,WWW.TOOLSTATION.COM,21/04/2020,H59620200422ULRSUQMAS-1,14.98,WALSALL GALA CENTRE-MATERIALS,HARDWARE STORES,GPC
WALSALL COUNCIL,HTTP://OPENDATACOMMUNITIES.ORG/ID/METROPOLITAN-DISTRICT-COUNCIL/WALSALL,30/06/2020,CHILDRENS SERVICES,AMZNMKTPLACE AMAZON.CO.UK,21/04/2020,H59620200422VCGWCNYVO-1,49.43,SALISBURY PRIMARY SCHOOL-MATERIALS,MISCELLANEOUS AND SPECIALTY RETAIL STORES,GPC
WALSALL COUNCIL,HTTP://OPENDATACOMMUNITIES.ORG/ID/METROPOLITAN-DISTRICT-COUNCIL/WALSALL,30/06/2020,CHILDRENS SERVICES - SCHOOLS,AMZNMKTPLACE,21/04/2020,H59620200422VIPIJSYUG-1,33.99,PALFREY JUNIOR SCHOOL-OPERATIONAL MAINTENANCE,MISCELLANEOUS AND SPECIALTY RETAIL STORES,GPC
WALSALL COUNCIL,HTTP://OPENDATACOMMUNITIES.ORG/ID/METROPOLITAN-DISTRICT-COUNCIL/WALSALL,30/06/2020,CHILDRENS SERVICES,ALDI 42 772,21/04/2020,H59620200422XSDHLUPUS-1,10.23,REDRUTH ROAD-FOOD & DRINK SUPPLIES,GROCERY STORES AND SUPERMARKETS,GPC
WALSALL COUNCIL,HTTP://OPENDATACOMMUNITIES.ORG/ID/METROPOLITAN-DISTRICT-COUNCIL/WALSALL,30/06/2020,CHILDRENS SERVICES,ALDI 42 772,21/04/2020,H59620200422XSDHLUPUS-2,113.24,REDRUTH ROAD-FOOD & DRINK SUPPLIES,GROCERY STORES AND SUPERMARKETS,GPC
WALSALL COUNCIL,HTTP://OPENDATACOMMUNITIES.ORG/ID/METROPOLITAN-DISTRICT-COUNCIL/WALSALL,30/06/2020,RESOURCES & TRANSFORMATION,AMZNMKTPLACE,21/04/2020,H59620200422XZWWOJYUJ-1,14.99,AREA PARTNERSHIPS-STATIONERY & GENERAL OFFICE SU,MISCELLANEOUS AND SPECIALTY RETAIL STORES,GPC
WALSALL COUNCIL,HTTP://OPENDATACOMMUNITIES.ORG/ID/METROPOLITAN-DISTRICT-COUNCIL/WALSALL,30/06/2020,CHILDRENS SERVICES,WWW.POSTOFFICESHOP.CO.UK,21/04/2020,H59620200422YLOZQQOTD-1,212.49,LOOKED AFTER CHILDRENS SOCIAL -STATIONERY & GENERAL OFFICE SU,"STATIONERY, OFFICE SUPPLIES AND WRITING PAPER",GPC
WALSALL COUNCIL,HTTP://OPENDATACOMMUNITIES.ORG/ID/METROPOLITAN-DISTRICT-COUNCIL/WALSALL,30/06/2020,ECONOMY & ENVIRONMENT,VESTA VODAFONE,21/04/2020,H59620200422ZBGCKRNNF-1,72.36,POLLUTION DIVISION-LANDLINE PHONES,TELECOMMUNICATION SERVICES,GPC
WALSALL COUNCIL,HTTP://OPENDATACOMMUNITIES.ORG/ID/METROPOLITAN-DISTRICT-COUNCIL/WALSALL,30/06/2020,CHILDRENS SERVICES,GEN REGISTER OFFICE,21/04/2020,H59620200422ZZXIBHESI-1,53.00,SAFEGUARDING & FAMILY SUPPORT-FEES & LICENCES,GOVERNMENT SERVICES,GPC
WALSALL COUNCIL,HTTP://OPENDATACOMMUNITIES.ORG/ID/METROPOLITAN-DISTRICT-COUNCIL/WALSALL,30/06/2020,RESOURCES & TRANSFORMATION,ARTHUR BRETT CATER,22/04/2020,H59620200423BAXLNYDEL-1,178.82,FINANCE ADMIN-FOOD & DRINK SUPPLIES,MISCELLANEOUS FOOD STORES & CONVENIENCE STORES,GPC
WALSALL COUNCIL,HTTP://OPENDATACOMMUNITIES.ORG/ID/METROPOLITAN-DISTRICT-COUNCIL/WALSALL,30/06/2020,CHILDRENS SERVICES,KINDLE SVCS*DB9TO6GG5,22/04/2020,H59620200423BHYFTBUMM-1,8.00,ST FRANCIS OF ASSISI CATHOLIC -EXTERNAL TRAINING,"DIGITAL GOODS - MEDIA, BOOKS, MOVIES, MUSIC",GPC
WALSALL COUNCIL,HTTP://OPENDATACOMMUNITIES.ORG/ID/METROPOLITAN-DISTRICT-COUNCIL/WALSALL,30/06/2020,CHILDRENS SERVICES,NISA LOCAL,22/04/2020,H59620200423BJNKXFZTL-1,7.71,REDRUTH ROAD-FOOD & DRINK SUPPLIES,MISCELLANEOUS FOOD STORES & CONVENIENCE STORES,GPC
WALSALL COUNCIL,HTTP://OPENDATACOMMUNITIES.ORG/ID/METROPOLITAN-DISTRICT-COUNCIL/WALSALL,30/06/2020,RESOURCES & TRANSFORMATION,ARTHUR BRETT CATER,22/04/2020,H59620200423BRIIVZCGH-1,5.00,CA ELMWOOD SPECIAL SCHOOL-FOOD & DRINK SUPPLIES,MISCELLANEOUS FOOD STORES & CONVENIENCE STORES,GPC
WALSALL COUNCIL,HTTP://OPENDATACOMMUNITIES.ORG/ID/METROPOLITAN-DISTRICT-COUNCIL/WALSALL,30/06/2020,CHILDRENS SERVICES,WWW.DATA.ORG.UK,22/04/2020,H59620200423BSIYHMENJ-1,90.00,GENERAL-MATERIALS,"ORGANIZATIONS, MEMBERSHIP",GPC
WALSALL COUNCIL,HTTP://OPENDATACOMMUNITIES.ORG/ID/METROPOLITAN-DISTRICT-COUNCIL/WALSALL,30/06/2020,CHILDRENS SERVICES,WALSALL COUNCIL,22/04/2020,H59620200423BWENSVEHW-1,42.34,ADMINISTRATIVE SUPPLIES-MATERIALS,GOVERNMENT SERVICES,GPC
WALSALL COUNCIL,HTTP://OPENDATACOMMUNITIES.ORG/ID/METROPOLITAN-DISTRICT-COUNCIL/WALSALL,30/06/2020,CHILDRENS SERVICES,WALSALL COUNCIL,22/04/2020,H59620200423CYMKAVWFP-1,42.34,ST FRANCIS OF ASSISI CATHOLIC -POLICE CHECKS,GOVERNMENT SERVICES,GPC
WALSALL COUNCIL,HTTP://OPENDATACOMMUNITIES.ORG/ID/METROPOLITAN-DISTRICT-COUNCIL/WALSALL,30/06/2020,CHILDRENS SERVICES,TESCO STORE 3351,22/04/2020,H59620200423DHBVFNJIC-1,49.56,ADOLESCENT SERVICE-FOOD & DRINK SUPPLIES,GROCERY STORES AND SUPERMARKETS,GPC
WALSALL COUNCIL,HTTP://OPENDATACOMMUNITIES.ORG/ID/METROPOLITAN-DISTRICT-COUNCIL/WALSALL,30/06/2020,ECONOMY & ENVIRONMENT,AMZNMKTPLACE AMAZON.CO.UK,22/04/2020,H59620200423DTYROZZFF-1,6.90,BLOXWICH LEISURE CENTRE-REPAIR & MAINTENANCE OF FURNIT,MISCELLANEOUS AND SPECIALTY RETAIL STORES,GPC
WALSALL COUNCIL,HTTP://OPENDATACOMMUNITIES.ORG/ID/METROPOLITAN-DISTRICT-COUNCIL/WALSALL,30/06/2020,CHILDRENS SERVICES,AMZNMKTPLACE AMAZON.CO.UK,22/04/2020,H59620200423DUTHUSAQG-1,296.97,SPECIAL FACILITIES - BEFORE/AF-MATERIALS,MISCELLANEOUS AND SPECIALTY RETAIL STORES,GPC
WALSALL COUNCIL,HTTP://OPENDATACOMMUNITIES.ORG/ID/METROPOLITAN-DISTRICT-COUNCIL/WALSALL,30/06/2020,CHILDRENS SERVICES,AMZNMKTPLACE AMAZON.CO.UK,22/04/2020,H59620200423DYYUGXWEQ-1,19.48,REDRUTH ROAD-RESIDENTS PERSONAL EXPENSES-AL,MISCELLANEOUS AND SPECIALTY RETAIL STORES,GPC
WALSALL COUNCIL,HTTP://OPENDATACOMMUNITIES.ORG/ID/METROPOLITAN-DISTRICT-COUNCIL/WALSALL,30/06/2020,RESOURCES & TRANSFORMATION,WATCHMX OFFICE PAC,22/04/2020,H59620200423FMCSIOWPU-1,23.34,AREA PARTNERSHIPS-OTHER EXPENSES,"PRECIOUS STONES AND METALS, WATCHES AND JEWELRY",GPC
WALSALL COUNCIL,HTTP://OPENDATACOMMUNITIES.ORG/ID/METROPOLITAN-DISTRICT-COUNCIL/WALSALL,30/06/2020,CHILDRENS SERVICES,AMZNMKTPLACE,22/04/2020,H59620200423GLBQPXPWE-1,109.00,REDRUTH ROAD-RESIDENTS PERSONAL EXPENSES-AL,MISCELLANEOUS AND SPECIALTY RETAIL STORES,GPC
WALSALL COUNCIL,HTTP://OPENDATACOMMUNITIES.ORG/ID/METROPOLITAN-DISTRICT-COUNCIL/WALSALL,30/06/2020,CHILDRENS SERVICES,WALSALL BUILDERS & TIM,22/04/2020,H59620200423HUHIKZRNJ-1,22.50,ADOLESCENT SERVICE-MATERIALS,LUMBER & BUILDING MATERIALS STORES,GPC
WALSALL COUNCIL,HTTP://OPENDATACOMMUNITIES.ORG/ID/METROPOLITAN-DISTRICT-COUNCIL/WALSALL,30/06/2020,CHILDRENS SERVICES,NISA LOCAL,22/04/2020,H59620200423IKEHGVRVS-1,17.48,REDRUTH ROAD-FOOD & DRINK SUPPLIES,MISCELLANEOUS FOOD STORES & CONVENIENCE STORES,GPC
WALSALL COUNCIL,HTTP://OPENDATACOMMUNITIES.ORG/ID/METROPOLITAN-DISTRICT-COUNCIL/WALSALL,30/06/2020,ECONOMY & ENVIRONMENT,PAYPAL *YUJISHIYEYO EB,22/04/2020,H59620200423ILEEMGQBZ-1,20.66,FLEET-MATERIALS,CLOTHING STORES,GPC
WALSALL COUNCIL,HTTP://OPENDATACOMMUNITIES.ORG/ID/METROPOLITAN-DISTRICT-COUNCIL/WALSALL,30/06/2020,CHILDRENS SERVICES,TESCO STORE 3351,22/04/2020,H59620200423KCEAOTDIM-1,6.00,ADOLESCENT SERVICE-FOOD & DRINK SUPPLIES,GROCERY STORES AND SUPERMARKETS,GPC
WALSALL COUNCIL,HTTP://OPENDATACOMMUNITIES.ORG/ID/METROPOLITAN-DISTRICT-COUNCIL/WALSALL,30/06/2020,CHILDRENS SERVICES,POST OFFICE COUNTER,22/04/2020,H59620200423KECODFDAD-1,8.80,LOOKED AFTER CHILDRENS SOCIAL -POSTAGES & COURIER SERVICES,POSTAL SERVICES - GOVERNMENT ONLY,GPC
WALSALL COUNCIL,HTTP://OPENDATACOMMUNITIES.ORG/ID/METROPOLITAN-DISTRICT-COUNCIL/WALSALL,30/06/2020,RESOURCES & TRANSFORMATION,AMZNMKTPLACE AMAZON.CO.UK,22/04/2020,H59620200423KWPXDOUFJ-1,42.80,AREA PARTNERSHIPS-STATIONERY & GENERAL OFFICE SU,MISCELLANEOUS AND SPECIALTY RETAIL STORES,GPC
WALSALL COUNCIL,HTTP://OPENDATACOMMUNITIES.ORG/ID/METROPOLITAN-DISTRICT-COUNCIL/WALSALL,30/06/2020,CHILDRENS SERVICES,VIRGIN MEDIA PYMTS,22/04/2020,H59620200423LQLFDQVWK-1,47.69,57 LICHFIELD ROAD-PROFESSIONAL FEES & SERVICES,TELECOMMUNICATION SERVICES,GPC
WALSALL COUNCIL,HTTP://OPENDATACOMMUNITIES.ORG/ID/METROPOLITAN-DISTRICT-COUNCIL/WALSALL,30/06/2020,CHILDRENS SERVICES,WILKO.COM,22/04/2020,H59620200423PINHLWHZL-1,305.00,"43A HILTON ROAD, WILLENHALL-PURCHASE OF FURNITURE & EQUIPM",MISCELLANEOUS GENERAL MERCHANDISE,GPC
WALSALL COUNCIL,HTTP://OPENDATACOMMUNITIES.ORG/ID/METROPOLITAN-DISTRICT-COUNCIL/WALSALL,30/06/2020,RESOURCES & TRANSFORMATION,ARTHUR BRETT CATER,22/04/2020,H59620200423QMKFKTEHQ-1,36.09,CA LINDENS PRIMARY SCHOOL-FOOD & DRINK SUPPLIES,MISCELLANEOUS FOOD STORES & CONVENIENCE STORES,GPC
WALSALL COUNCIL,HTTP://OPENDATACOMMUNITIES.ORG/ID/METROPOLITAN-DISTRICT-COUNCIL/WALSALL,30/06/2020,ECONOMY & ENVIRONMENT,FACEBK *Z5TAJQ6X82,22/04/2020,H59620200423RLUPTIYXX-1,10.00,RES-WALSALL WORKS-PUBLICITY & ADVERTISING (NON S,ADVERTISING SERVICES,GPC
WALSALL COUNCIL,HTTP://OPENDATACOMMUNITIES.ORG/ID/METROPOLITAN-DISTRICT-COUNCIL/WALSALL,30/06/2020,RESOURCES & TRANSFORMATION,ARTHUR BRETT CATER,22/04/2020,H59620200423SDUDLNQCX-1,15.74,CA ELMORE GREEN PRIMARY SCHOOL-FOOD & DRINK SUPPLIES,MISCELLANEOUS FOOD STORES & CONVENIENCE STORES,GPC
WALSALL COUNCIL,HTTP://OPENDATACOMMUNITIES.ORG/ID/METROPOLITAN-DISTRICT-COUNCIL/WALSALL,30/06/2020,CHILDRENS SERVICES,A F BLAKEMORE & SON LTD,22/04/2020,H59620200423TPXHZPKNC-1,126.18,INFORMATION SERVICES-FOOD & DRINK SUPPLIES,GROCERY STORES AND SUPERMARKETS,GPC
WALSALL COUNCIL,HTTP://OPENDATACOMMUNITIES.ORG/ID/METROPOLITAN-DISTRICT-COUNCIL/WALSALL,30/06/2020,RESOURCES & TRANSFORMATION,BESTWAY WALSALL,22/04/2020,H59620200423TWPRQVVSS-1,28.77,REDUNDANT BUILDINGS-CATERING & REFRESHMENTS,DAIRY PRODUCTS STORES,GPC
WALSALL COUNCIL,HTTP://OPENDATACOMMUNITIES.ORG/ID/METROPOLITAN-DISTRICT-COUNCIL/WALSALL,30/06/2020,RESOURCES & TRANSFORMATION,AMZNMKTPLACE AMAZON.CO.UK,22/04/2020,H59620200423VROQBYBQI-1,64.20,AREA PARTNERSHIPS-STATIONERY & GENERAL OFFICE SU,MISCELLANEOUS AND SPECIALTY RETAIL STORES,GPC
WALSALL COUNCIL,HTTP://OPENDATACOMMUNITIES.ORG/ID/METROPOLITAN-DISTRICT-COUNCIL/WALSALL,30/06/2020,CHILDRENS SERVICES,POST OFFICE COUNTER,22/04/2020,H59620200423WLMDGKVOP-1,18.54,SPECIAL FACILITIES-POSTAGES & COURIER SERVICES,POSTAL SERVICES - GOVERNMENT ONLY,GPC
WALSALL COUNCIL,HTTP://OPENDATACOMMUNITIES.ORG/ID/METROPOLITAN-DISTRICT-COUNCIL/WALSALL,30/06/2020,RESOURCES & TRANSFORMATION,AMAZON.CO.UK*NA9898XI5,22/04/2020,H59620200423WQGQCPJWA-1,15.84,ACCOMMODATION SERVICES MANAGEM-PURCHASE OF FURNITURE & EQUIPM,OTHER DIRECT MARKETING-OTHER DIRECT MARKETERS,GPC
WALSALL COUNCIL,HTTP://OPENDATACOMMUNITIES.ORG/ID/METROPOLITAN-DISTRICT-COUNCIL/WALSALL,30/06/2020,CHILDRENS SERVICES,ASDA SUPERSTORE,22/04/2020,H59620200423WRKWNXNFT-1,8.00,ADMIN-MATERIALS,GROCERY STORES AND SUPERMARKETS,GPC
WALSALL COUNCIL,HTTP://OPENDATACOMMUNITIES.ORG/ID/METROPOLITAN-DISTRICT-COUNCIL/WALSALL,30/06/2020,CHILDRENS SERVICES,WILKO.COM,22/04/2020,H59620200423XIQXZSGPI-1,189.00,"43A HILTON ROAD, WILLENHALL-PURCHASE OF FURNITURE & EQUIPM",MISCELLANEOUS GENERAL MERCHANDISE,GPC
WALSALL COUNCIL,HTTP://OPENDATACOMMUNITIES.ORG/ID/METROPOLITAN-DISTRICT-COUNCIL/WALSALL,30/06/2020,RESOURCES & TRANSFORMATION,METRO INNS WALSALL,22/04/2020,H59620200423XPFGAEUEV-1,266.00,BED & BREAKFAST PAYMENTS-HOTEL ACCOMMODATION-EMPLOYEES,"HOTELS, MOTELS, RESORTS",GPC
WALSALL COUNCIL,HTTP://OPENDATACOMMUNITIES.ORG/ID/METROPOLITAN-DISTRICT-COUNCIL/WALSALL,30/06/2020,ECONOMY & ENVIRONMENT,SCREWFIX DIRECT,22/04/2020,H59620200423XYWIVJENE-1,11.49,INFRASTRUCTURE MAINTENANCE-MATERIALS,HOME SUPPLY WAREHOUSE STORES,GPC
WALSALL COUNCIL,HTTP://OPENDATACOMMUNITIES.ORG/ID/METROPOLITAN-DISTRICT-COUNCIL/WALSALL,30/06/2020,RESOURCES & TRANSFORMATION,SS + JR JOHAL 31968,22/04/2020,H59620200423YYNNPJKXI-1,10.50,ACCOMMODATION SERVICES MANAGEM-FOOD & DRINK SUPPLIES,GROCERY STORES AND SUPERMARKETS,GPC
WALSALL COUNCIL,HTTP://OPENDATACOMMUNITIES.ORG/ID/METROPOLITAN-DISTRICT-COUNCIL/WALSALL,30/06/2020,CHILDRENS SERVICES - SCHOOLS,EAL HUB LIMITED,23/04/2020,H59620200424BARPHLNMQ-1,20.00,E19-MATERIALS,COMPUTER SOFTWARE STORES,GPC
WALSALL COUNCIL,HTTP://OPENDATACOMMUNITIES.ORG/ID/METROPOLITAN-DISTRICT-COUNCIL/WALSALL,30/06/2020,CHILDRENS SERVICES,ARGOS LTD,23/04/2020,H59620200424BXMVIFRKT-1,31.00,TRANSITION AND LEAVING CARE PL-CARE LEAVERS MTCE PAYMENTS,DISCOUNT STORES,GPC
WALSALL COUNCIL,HTTP://OPENDATACOMMUNITIES.ORG/ID/METROPOLITAN-DISTRICT-COUNCIL/WALSALL,30/06/2020,RESOURCES & TRANSFORMATION,AMZNMKTPLACE AMAZON.CO.UK,23/04/2020,H59620200424CHLEQDGFV-1,61.96,AREA PARTNERSHIPS-STATIONERY & GENERAL OFFICE SU,MISCELLANEOUS AND SPECIALTY RETAIL STORES,GPC
WALSALL COUNCIL,HTTP://OPENDATACOMMUNITIES.ORG/ID/METROPOLITAN-DISTRICT-COUNCIL/WALSALL,30/06/2020,RESOURCES & TRANSFORMATION,ALLPAY *WHG,23/04/2020,H59620200424COBUNJHRX-1,87.37,HOMELESSNESS PREVENTION STRATE-PROFESSIONAL FEES & SERVICES,"ORGANIZATIONS, CHARITABLE AND SOCIAL SERVICE",GPC
WALSALL COUNCIL,HTTP://OPENDATACOMMUNITIES.ORG/ID/METROPOLITAN-DISTRICT-COUNCIL/WALSALL,30/06/2020,ECONOMY & ENVIRONMENT,WWW.BANNERUK.COM,23/04/2020,H59620200424DBIDMIFNY-1,332.64,CIVIC LEADERSHIP AND MOBILISIN-STATIONERY & GENERAL OFFICE SU,"STATIONERY, OFFICE SUPPLIES AND WRITING PAPER",GPC
WALSALL COUNCIL,HTTP://OPENDATACOMMUNITIES.ORG/ID/METROPOLITAN-DISTRICT-COUNCIL/WALSALL,30/06/2020,CHILDRENS SERVICES,ARGOS LTD,23/04/2020,H59620200424FKITYHAFJ-1,373.93,VIRTUAL SCHOOL - CENTRAL PUPIL-OTHER EXPENSES,DISCOUNT STORES,GPC
WALSALL COUNCIL,HTTP://OPENDATACOMMUNITIES.ORG/ID/METROPOLITAN-DISTRICT-COUNCIL/WALSALL,30/06/2020,ECONOMY & ENVIRONMENT,L & S ENGINEERS LTD,23/04/2020,H59620200424FVEFMFRYO-1,14.11,COUNTRYSIDE MANAGEMENT - OTHER-MATERIALS,HARDWARE STORES,GPC
WALSALL COUNCIL,HTTP://OPENDATACOMMUNITIES.ORG/ID/METROPOLITAN-DISTRICT-COUNCIL/WALSALL,30/06/2020,CHILDRENS SERVICES,KINDLE SVCS,23/04/2020,H59620200424GFJVEJYSQ-1,-8.00,ST FRANCIS OF ASSISI CATHOLIC -EXTERNAL TRAINING,"DIGITAL GOODS - MEDIA, BOOKS, MOVIES, MUSIC",GPC
WALSALL COUNCIL,HTTP://OPENDATACOMMUNITIES.ORG/ID/METROPOLITAN-DISTRICT-COUNCIL/WALSALL,30/06/2020,CHILDRENS SERVICES,AMZNMKTPLACE,23/04/2020,H59620200424HEEDOLGIY-1,3.95,VIRTUAL SCHOOL - CENTRAL PUPIL-OTHER EXPENSES,MISCELLANEOUS AND SPECIALTY RETAIL STORES,GPC
WALSALL COUNCIL,HTTP://OPENDATACOMMUNITIES.ORG/ID/METROPOLITAN-DISTRICT-COUNCIL/WALSALL,30/06/2020,CHILDRENS SERVICES,CO-OPERATIVE FOOD,23/04/2020,H59620200424IQPBVAFDZ-1,3.09,LEARNING ENVIRONMENT-MATERIALS,GROCERY STORES AND SUPERMARKETS,GPC
WALSALL COUNCIL,HTTP://OPENDATACOMMUNITIES.ORG/ID/METROPOLITAN-DISTRICT-COUNCIL/WALSALL,30/06/2020,CHILDRENS SERVICES,CO-OPERATIVE FOOD,23/04/2020,H59620200424IQPBVAFDZ-2,24.17,LEARNING ENVIRONMENT-MATERIALS,GROCERY STORES AND SUPERMARKETS,GPC
WALSALL COUNCIL,HTTP://OPENDATACOMMUNITIES.ORG/ID/METROPOLITAN-DISTRICT-COUNCIL/WALSALL,30/06/2020,ECONOMY & ENVIRONMENT,MIDLANDNEWS.COM,23/04/2020,H59620200424IYASIQICO-1,416.40,DEVELOPMENT MANAGEMENT-SUBSCRIPTIONS,NEWS DEALERS AND NEWSSTANDS,GPC
WALSALL COUNCIL,HTTP://OPENDATACOMMUNITIES.ORG/ID/METROPOLITAN-DISTRICT-COUNCIL/WALSALL,30/06/2020,RESOURCES & TRANSFORMATION,BESTWAY WALSALL,23/04/2020,H59620200424JMWUHQVMI-1,128.67,REDUNDANT BUILDINGS-CATERING & REFRESHMENTS,DAIRY PRODUCTS STORES,GPC
WALSALL COUNCIL,HTTP://OPENDATACOMMUNITIES.ORG/ID/METROPOLITAN-DISTRICT-COUNCIL/WALSALL,30/06/2020,CHILDRENS SERVICES,AMAZON.CO.UK*IA9Z557Y5 AM,23/04/2020,H59620200424KPGPPJAPV-1,161.04,ST FRANCIS OF ASSISI CATHOLIC -EXTERNAL TRAINING,MISCELLANEOUS AND SPECIALTY RETAIL STORES,GPC
WALSALL COUNCIL,HTTP://OPENDATACOMMUNITIES.ORG/ID/METROPOLITAN-DISTRICT-COUNCIL/WALSALL,30/06/2020,RESOURCES & TRANSFORMATION,AMZNMKTPLACE AMAZON.CO.UK,23/04/2020,H59620200424KVSYIXVHJ-1,30.98,AREA PARTNERSHIPS-STATIONERY & GENERAL OFFICE SU,MISCELLANEOUS AND SPECIALTY RETAIL STORES,GPC
WALSALL COUNCIL,HTTP://OPENDATACOMMUNITIES.ORG/ID/METROPOLITAN-DISTRICT-COUNCIL/WALSALL,30/06/2020,CHILDRENS SERVICES,ALDI 772 129,23/04/2020,H59620200424NUGSBSMHN-1,93.03,"43A HILTON ROAD, WILLENHALL-FOOD & DRINK SUPPLIES",GROCERY STORES AND SUPERMARKETS,GPC
WALSALL COUNCIL,HTTP://OPENDATACOMMUNITIES.ORG/ID/METROPOLITAN-DISTRICT-COUNCIL/WALSALL,30/06/2020,CHILDRENS SERVICES,ALDI 772 129,23/04/2020,H59620200424NUGSBSMHN-2,7.73,"43A HILTON ROAD, WILLENHALL-FOOD & DRINK SUPPLIES",GROCERY STORES AND SUPERMARKETS,GPC
WALSALL COUNCIL,HTTP://OPENDATACOMMUNITIES.ORG/ID/METROPOLITAN-DISTRICT-COUNCIL/WALSALL,30/06/2020,ECONOMY & ENVIRONMENT,AMZNMKTPLACE AMAZON.CO.UK,23/04/2020,H59620200424OBXEBEBTO-1,2.84,BLOXWICH LEISURE CENTRE-STATIONERY & GENERAL OFFICE SU,MISCELLANEOUS AND SPECIALTY RETAIL STORES,GPC
WALSALL COUNCIL,HTTP://OPENDATACOMMUNITIES.ORG/ID/METROPOLITAN-DISTRICT-COUNCIL/WALSALL,30/06/2020,ECONOMY & ENVIRONMENT,SCREWFIX DIRECT,23/04/2020,H59620200424QBFVCPUAR-1,4.98,DEPOT-MATERIALS,HOME SUPPLY WAREHOUSE STORES,GPC
WALSALL COUNCIL,HTTP://OPENDATACOMMUNITIES.ORG/ID/METROPOLITAN-DISTRICT-COUNCIL/WALSALL,30/06/2020,ADULT SOCIAL CARE,BAINS CONVENIENCE STORE,23/04/2020,H59620200424QDSNMUMGS-1,10.72,GOSCOTE-FOOD & DRINK SUPPLIES,GROCERY STORES AND SUPERMARKETS,GPC
WALSALL COUNCIL,HTTP://OPENDATACOMMUNITIES.ORG/ID/METROPOLITAN-DISTRICT-COUNCIL/WALSALL,30/06/2020,RESOURCES & TRANSFORMATION,COBDEN HOTEL LIMITED,23/04/2020,H59620200424QXDNAQGCH-1,385.00,ACCOMMODATION SERVICES MANAGEM-BED & BREAKFAST PAYMENTS,"HOTELS, MOTELS, RESORTS",GPC
WALSALL COUNCIL,HTTP://OPENDATACOMMUNITIES.ORG/ID/METROPOLITAN-DISTRICT-COUNCIL/WALSALL,30/06/2020,RESOURCES & TRANSFORMATION,DROPBOX 89P5STXC6QZV,23/04/2020,H59620200424QYWYAKTPI-1,64.80,LAW LIBRARY-STATIONERY & GENERAL OFFICE SU,COMPUTER NETWORK/INFORMATION SERVICES,GPC
WALSALL COUNCIL,HTTP://OPENDATACOMMUNITIES.ORG/ID/METROPOLITAN-DISTRICT-COUNCIL/WALSALL,30/06/2020,RESOURCES & TRANSFORMATION,AMZNMKTPLACE AMAZON.CO.UK,23/04/2020,H59620200424RLYBGIQKX-1,61.95,AREA PARTNERSHIPS-STATIONERY & GENERAL OFFICE SU,MISCELLANEOUS AND SPECIALTY RETAIL STORES,GPC
WALSALL COUNCIL,HTTP://OPENDATACOMMUNITIES.ORG/ID/METROPOLITAN-DISTRICT-COUNCIL/WALSALL,30/06/2020,CHILDRENS SERVICES,METRO INNS WALSALL,23/04/2020,H59620200424RPFLFELPO-1,76.00,SAFEGUARDING & FAMILY SUPPORT-SECTION 1/17CHILD CARE ACT 198,"HOTELS, MOTELS, RESORTS",GPC
WALSALL COUNCIL,HTTP://OPENDATACOMMUNITIES.ORG/ID/METROPOLITAN-DISTRICT-COUNCIL/WALSALL,30/06/2020,CHILDRENS SERVICES,AMZNMKTPLACE,23/04/2020,H59620200424RXOKEUXFX-1,11.64,VIRTUAL SCHOOL - CENTRAL PUPIL-OTHER EXPENSES,MISCELLANEOUS AND SPECIALTY RETAIL STORES,GPC
WALSALL COUNCIL,HTTP://OPENDATACOMMUNITIES.ORG/ID/METROPOLITAN-DISTRICT-COUNCIL/WALSALL,30/06/2020,CHILDRENS SERVICES,AMZNMKTPLACE AMAZON.CO.UK,23/04/2020,H59620200424SFNPCDSNJ-1,-59.99,SAFEGUARDING & FAMILY SUPPORT-SECTION 1/17CHILD CARE ACT 198,MISCELLANEOUS AND SPECIALTY RETAIL STORES,GPC
WALSALL COUNCIL,HTTP://OPENDATACOMMUNITIES.ORG/ID/METROPOLITAN-DISTRICT-COUNCIL/WALSALL,30/06/2020,CHILDRENS SERVICES,ARGOS LTD,23/04/2020,H59620200424SHSHDMFYD-1,393.93,VIRTUAL SCHOOL - CENTRAL PUPIL-OTHER EXPENSES,DISCOUNT STORES,GPC
WALSALL COUNCIL,HTTP://OPENDATACOMMUNITIES.ORG/ID/METROPOLITAN-DISTRICT-COUNCIL/WALSALL,30/06/2020,CHILDRENS SERVICES,POST OFFICE COUNTER,23/04/2020,H59620200424SRFESVYOH-1,12.36,SPECIAL FACILITIES-POSTAGES & COURIER SERVICES,POSTAL SERVICES - GOVERNMENT ONLY,GPC
WALSALL COUNCIL,HTTP://OPENDATACOMMUNITIES.ORG/ID/METROPOLITAN-DISTRICT-COUNCIL/WALSALL,30/06/2020,CHILDRENS SERVICES,NISA LOCAL,23/04/2020,H59620200424TGTILVQRQ-1,6.16,REDRUTH ROAD-FOOD & DRINK SUPPLIES,MISCELLANEOUS FOOD STORES & CONVENIENCE STORES,GPC
WALSALL COUNCIL,HTTP://OPENDATACOMMUNITIES.ORG/ID/METROPOLITAN-DISTRICT-COUNCIL/WALSALL,30/06/2020,ECONOMY & ENVIRONMENT,SCREWFIX DIRECT,23/04/2020,H59620200424TNDGYSSYK-1,27.18,DEPOT-MATERIALS,HOME SUPPLY WAREHOUSE STORES,GPC
WALSALL COUNCIL,HTTP://OPENDATACOMMUNITIES.ORG/ID/METROPOLITAN-DISTRICT-COUNCIL/WALSALL,30/06/2020,CHILDRENS SERVICES,JOHN CATT EDUCATIONAL LIM,23/04/2020,H59620200424TYLRXEIRM-1,37.59,ST FRANCIS OF ASSISI CATHOLIC -EXTERNAL TRAINING,BOOK STORES,GPC
WALSALL COUNCIL,HTTP://OPENDATACOMMUNITIES.ORG/ID/METROPOLITAN-DISTRICT-COUNCIL/WALSALL,30/06/2020,ECONOMY & ENVIRONMENT,CURRYS ONLINE,23/04/2020,H59620200424VCLFGHCFV-1,64.99,RESOURCE MANAGEMENT-MATERIALS,ELECTRONIC SALES,GPC
WALSALL COUNCIL,HTTP://OPENDATACOMMUNITIES.ORG/ID/METROPOLITAN-DISTRICT-COUNCIL/WALSALL,30/06/2020,RESOURCES & TRANSFORMATION,B&M 262 - WILLENHALL,23/04/2020,H59620200424VCUAPYCJN-1,32.00,HOMELESSNESS PREVENTION STRATE-PURCHASE OF FURNITURE & EQUIPM,MISCELLANEOUS GENERAL MERCHANDISE,GPC
WALSALL COUNCIL,HTTP://OPENDATACOMMUNITIES.ORG/ID/METROPOLITAN-DISTRICT-COUNCIL/WALSALL,30/06/2020,CHILDRENS SERVICES,WEBBSLETTINGSLIMITED,23/04/2020,H59620200424XQGQDFBLM-1,91.15,SAFEGUARDING & FAMILY SUPPORT-RENTS,COMPUTER SOFTWARE STORES,GPC
WALSALL COUNCIL,HTTP://OPENDATACOMMUNITIES.ORG/ID/METROPOLITAN-DISTRICT-COUNCIL/WALSALL,30/06/2020,CHILDRENS SERVICES,AMZNMKTPLACE,23/04/2020,H59620200424YUHCUWVTY-1,6.95,VIRTUAL SCHOOL - CENTRAL PUPIL-OTHER EXPENSES,MISCELLANEOUS AND SPECIALTY RETAIL STORES,GPC
WALSALL COUNCIL,HTTP://OPENDATACOMMUNITIES.ORG/ID/METROPOLITAN-DISTRICT-COUNCIL/WALSALL,30/06/2020,RESOURCES & TRANSFORMATION,ARTHUR BRETT CATER,23/04/2020,H59620200424YVDFPQMWO-1,-178.82,FINANCE ADMIN-FOOD & DRINK SUPPLIES,MISCELLANEOUS FOOD STORES & CONVENIENCE STORES,GPC
WALSALL COUNCIL,HTTP://OPENDATACOMMUNITIES.ORG/ID/METROPOLITAN-DISTRICT-COUNCIL/WALSALL,30/06/2020,RESOURCES & TRANSFORMATION,METRO INNS WALSALL,24/04/2020,H59620200425ACMHNITEZ-1,266.00,BED & BREAKFAST PAYMENTS-HOTEL ACCOMMODATION-EMPLOYEES,"HOTELS, MOTELS, RESORTS",GPC
WALSALL COUNCIL,HTTP://OPENDATACOMMUNITIES.ORG/ID/METROPOLITAN-DISTRICT-COUNCIL/WALSALL,30/06/2020,CHILDRENS SERVICES,ASDA STORES,24/04/2020,H59620200425BBNKRSVLD-1,4.78,ADOLESCENT SERVICE-FOOD & DRINK SUPPLIES,GROCERY STORES AND SUPERMARKETS,GPC
WALSALL COUNCIL,HTTP://OPENDATACOMMUNITIES.ORG/ID/METROPOLITAN-DISTRICT-COUNCIL/WALSALL,30/06/2020,CHILDRENS SERVICES,ASDA STORES,24/04/2020,H59620200425BBNKRSVLD-2,4.00,ADOLESCENT SERVICE-MATERIALS,GROCERY STORES AND SUPERMARKETS,GPC
WALSALL COUNCIL,HTTP://OPENDATACOMMUNITIES.ORG/ID/METROPOLITAN-DISTRICT-COUNCIL/WALSALL,30/06/2020,CHILDRENS SERVICES,ASDA STORES,24/04/2020,H59620200425BBNKRSVLD-3,7.25,ADOLESCENT SERVICE-MATERIALS,GROCERY STORES AND SUPERMARKETS,GPC
WALSALL COUNCIL,HTTP://OPENDATACOMMUNITIES.ORG/ID/METROPOLITAN-DISTRICT-COUNCIL/WALSALL,30/06/2020,RESOURCES & TRANSFORMATION,METRO INNS WALSALL,24/04/2020,H59620200425BCLHLFHGC-1,266.00,BED & BREAKFAST PAYMENTS-HOTEL ACCOMMODATION-EMPLOYEES,"HOTELS, MOTELS, RESORTS",GPC
WALSALL COUNCIL,HTTP://OPENDATACOMMUNITIES.ORG/ID/METROPOLITAN-DISTRICT-COUNCIL/WALSALL,30/06/2020,CHILDRENS SERVICES,NISA LOCAL,24/04/2020,H59620200425CCIRXESRQ-1,4.16,REDRUTH ROAD-FOOD & DRINK SUPPLIES,MISCELLANEOUS FOOD STORES & CONVENIENCE STORES,GPC
WALSALL COUNCIL,HTTP://OPENDATACOMMUNITIES.ORG/ID/METROPOLITAN-DISTRICT-COUNCIL/WALSALL,30/06/2020,CHILDRENS SERVICES,AMAZON.CO.UK*V768M21L5,24/04/2020,H59620200425CMDRKIQFX-1,194.97,VIRTUAL SCHOOL - CENTRAL PUPIL-OTHER EXPENSES,OTHER DIRECT MARKETING-OTHER DIRECT MARKETERS,GPC
WALSALL COUNCIL,HTTP://OPENDATACOMMUNITIES.ORG/ID/METROPOLITAN-DISTRICT-COUNCIL/WALSALL,30/06/2020,ECONOMY & ENVIRONMENT,AMZNMKTPLACE AMAZON.CO.UK,24/04/2020,H59620200425CNYLPYPAX-1,31.47,BLOXWICH LEISURE CENTRE-REPAIR & MAINTENANCE OF FURNIT,MISCELLANEOUS AND SPECIALTY RETAIL STORES,GPC
WALSALL COUNCIL,HTTP://OPENDATACOMMUNITIES.ORG/ID/METROPOLITAN-DISTRICT-COUNCIL/WALSALL,30/06/2020,ECONOMY & ENVIRONMENT,AMZNMKTPLACE AMAZON.CO.UK,24/04/2020,H59620200425CNYLPYPAX-2,10.98,BLOXWICH LEISURE CENTRE-CLOTHING & LAUNDRY,MISCELLANEOUS AND SPECIALTY RETAIL STORES,GPC
WALSALL COUNCIL,HTTP://OPENDATACOMMUNITIES.ORG/ID/METROPOLITAN-DISTRICT-COUNCIL/WALSALL,30/06/2020,CHILDRENS SERVICES,AMAZON.CO.UK*NI16X24I5,24/04/2020,H59620200425DXTWBHDVD-1,36.93,ICT LEARNING RESOURCES-MATERIALS,OTHER DIRECT MARKETING-OTHER DIRECT MARKETERS,GPC
WALSALL COUNCIL,HTTP://OPENDATACOMMUNITIES.ORG/ID/METROPOLITAN-DISTRICT-COUNCIL/WALSALL,30/06/2020,CHILDRENS SERVICES - SCHOOLS,WWW.REALGROUP.CO.UK,24/04/2020,H59620200425ESEYHMNQA-1,-360.00,PALFREY JUNIOR SCHOOL-EXTERNAL TRAINING,"SCHOOLS, TRADE AND VOCATIONAL",GPC
WALSALL COUNCIL,HTTP://OPENDATACOMMUNITIES.ORG/ID/METROPOLITAN-DISTRICT-COUNCIL/WALSALL,30/06/2020,CHILDRENS SERVICES,TRAINLINE,24/04/2020,H59620200425ESLFAHYQU-1,-37.00,SAFEGUARDING & FAMILY SUPPORT-OFFICERS & STAFF PUBLIC TRANSP,PASSENGER RAILWAYS,GPC
WALSALL COUNCIL,HTTP://OPENDATACOMMUNITIES.ORG/ID/METROPOLITAN-DISTRICT-COUNCIL/WALSALL,30/06/2020,RESOURCES & TRANSFORMATION,METRO INNS WALSALL,24/04/2020,H59620200425GAEUHZRSD-1,266.00,BED & BREAKFAST PAYMENTS-HOTEL ACCOMMODATION-EMPLOYEES,"HOTELS, MOTELS, RESORTS",GPC
WALSALL COUNCIL,HTTP://OPENDATACOMMUNITIES.ORG/ID/METROPOLITAN-DISTRICT-COUNCIL/WALSALL,30/06/2020,CHILDRENS SERVICES,WALSALL COUNCIL,24/04/2020,H59620200425KERWXRVDQ-1,42.34,ST FRANCIS OF ASSISI CATHOLIC -POLICE CHECKS,GOVERNMENT SERVICES,GPC
WALSALL COUNCIL,HTTP://OPENDATACOMMUNITIES.ORG/ID/METROPOLITAN-DISTRICT-COUNCIL/WALSALL,30/06/2020,CHILDRENS SERVICES,NISA LOCAL,24/04/2020,H59620200425LBCORNWQE-1,9.72,REDRUTH ROAD-FOOD & DRINK SUPPLIES,MISCELLANEOUS FOOD STORES & CONVENIENCE STORES,GPC
WALSALL COUNCIL,HTTP://OPENDATACOMMUNITIES.ORG/ID/METROPOLITAN-DISTRICT-COUNCIL/WALSALL,30/06/2020,RESOURCES & TRANSFORMATION,ARTHUR BRETT CATER,24/04/2020,H59620200425LKQFEZKJU-1,21.09,CA ELMWOOD SPECIAL SCHOOL-FOOD & DRINK SUPPLIES,MISCELLANEOUS FOOD STORES & CONVENIENCE STORES,GPC
WALSALL COUNCIL,HTTP://OPENDATACOMMUNITIES.ORG/ID/METROPOLITAN-DISTRICT-COUNCIL/WALSALL,30/06/2020,CHILDRENS SERVICES,PAYPAL *WHITEROSEED,24/04/2020,H59620200425MFCUMCBXP-1,139.00,MATHEMATICS-MATERIALS,OTHER SCHOOLS AND EDUCATIONAL SERVICES,GPC
WALSALL COUNCIL,HTTP://OPENDATACOMMUNITIES.ORG/ID/METROPOLITAN-DISTRICT-COUNCIL/WALSALL,30/06/2020,CHILDRENS SERVICES,CENTRAL ENG COOP,24/04/2020,H59620200425MTPGHEFHU-1,6.95,ADOLESCENT SERVICE-FOOD & DRINK SUPPLIES,DEPARTMENT STORES,GPC
WALSALL COUNCIL,HTTP://OPENDATACOMMUNITIES.ORG/ID/METROPOLITAN-DISTRICT-COUNCIL/WALSALL,30/06/2020,CHILDRENS SERVICES,CENTRAL ENG COOP,24/04/2020,H59620200425MTPGHEFHU-2,2.15,ADOLESCENT SERVICE-FOOD & DRINK SUPPLIES,DEPARTMENT STORES,GPC
WALSALL COUNCIL,HTTP://OPENDATACOMMUNITIES.ORG/ID/METROPOLITAN-DISTRICT-COUNCIL/WALSALL,30/06/2020,CHILDRENS SERVICES,VOUCHER EXPRESS B2B MO,24/04/2020,H59620200425OBXSNASTG-1,60.00,GENERAL-MATERIALS,"CARD, GIFT, NOVELTY, AND SOUVENIR SHOPS",GPC
WALSALL COUNCIL,HTTP://OPENDATACOMMUNITIES.ORG/ID/METROPOLITAN-DISTRICT-COUNCIL/WALSALL,30/06/2020,CHILDRENS SERVICES - SCHOOLS,FIRST4ADMIN,24/04/2020,H59620200425ODHKGJRXQ-1,495.00,MILLFIELD PRIMARY SCHOOL-GOVERNOR SUPPORT-OTH AGENCY PR,COMPUTER SOFTWARE STORES,GPC
WALSALL COUNCIL,HTTP://OPENDATACOMMUNITIES.ORG/ID/METROPOLITAN-DISTRICT-COUNCIL/WALSALL,30/06/2020,CHILDRENS SERVICES,VIRTUAL COLLEGE LIMITE,24/04/2020,H59620200425OEIFBPOUN-1,144.00,57 LICHFIELD ROAD-EXTERNAL TRAINING,OTHER SCHOOLS AND EDUCATIONAL SERVICES,GPC
WALSALL COUNCIL,HTTP://OPENDATACOMMUNITIES.ORG/ID/METROPOLITAN-DISTRICT-COUNCIL/WALSALL,30/06/2020,RESOURCES & TRANSFORMATION,METRO INNS WALSALL,24/04/2020,H59620200425PLIANIRUX-1,266.00,BED & BREAKFAST PAYMENTS-HOTEL ACCOMMODATION-EMPLOYEES,"HOTELS, MOTELS, RESORTS",GPC
WALSALL COUNCIL,HTTP://OPENDATACOMMUNITIES.ORG/ID/METROPOLITAN-DISTRICT-COUNCIL/WALSALL,30/06/2020,CHILDRENS SERVICES,ALDI 42 772,24/04/2020,H59620200425PQLTZRXEW-1,15.48,REDRUTH ROAD-FOOD & DRINK SUPPLIES,GROCERY STORES AND SUPERMARKETS,GPC
WALSALL COUNCIL,HTTP://OPENDATACOMMUNITIES.ORG/ID/METROPOLITAN-DISTRICT-COUNCIL/WALSALL,30/06/2020,CHILDRENS SERVICES,GEN REGISTER OFFICE,24/04/2020,H59620200425PRYHVBTXO-1,11.00,LOOKED AFTER CHILDRENS SOCIAL -FEES & LICENCES,GOVERNMENT SERVICES,GPC
WALSALL COUNCIL,HTTP://OPENDATACOMMUNITIES.ORG/ID/METROPOLITAN-DISTRICT-COUNCIL/WALSALL,30/06/2020,RESOURCES & TRANSFORMATION,METRO INNS WALSALL,24/04/2020,H59620200425QKTXUTHCH-1,152.00,BED & BREAKFAST PAYMENTS-BED & BREAKFAST PAYMENTS,"HOTELS, MOTELS, RESORTS",GPC
WALSALL COUNCIL,HTTP://OPENDATACOMMUNITIES.ORG/ID/METROPOLITAN-DISTRICT-COUNCIL/WALSALL,30/06/2020,CHILDRENS SERVICES,GEN REGISTER OFFICE,24/04/2020,H59620200425QUYFQGCNM-1,36.00,SAFEGUARDING & FAMILY SUPPORT-FEES & LICENCES,GOVERNMENT SERVICES,GPC
WALSALL COUNCIL,HTTP://OPENDATACOMMUNITIES.ORG/ID/METROPOLITAN-DISTRICT-COUNCIL/WALSALL,30/06/2020,CHILDRENS SERVICES,WWW.BANNERUK.COM,24/04/2020,H59620200425TQTLYUVRN-1,89.88,SAFEGUARDING & FAMILY SUPPORT-STATIONERY & GENERAL OFFICE SU,"STATIONERY, OFFICE SUPPLIES AND WRITING PAPER",GPC
WALSALL COUNCIL,HTTP://OPENDATACOMMUNITIES.ORG/ID/METROPOLITAN-DISTRICT-COUNCIL/WALSALL,30/06/2020,RESOURCES & TRANSFORMATION,METRO INNS WALSALL,24/04/2020,H59620200425UXREWHEVW-1,-152.00,BED & BREAKFAST PAYMENTS-ACCOMMODATION AND RELATED COST,"HOTELS, MOTELS, RESORTS",GPC
WALSALL COUNCIL,HTTP://OPENDATACOMMUNITIES.ORG/ID/METROPOLITAN-DISTRICT-COUNCIL/WALSALL,30/06/2020,RESOURCES & TRANSFORMATION,FOREIGN EXCHANGE FEE,24/04/2020,H59620200425VJVZRIEZJ-1,0.30,WALSALL CRISIS SUPPORT SCHEME-FOOD & DRINK SUPPLIES,,GPC
WALSALL COUNCIL,HTTP://OPENDATACOMMUNITIES.ORG/ID/METROPOLITAN-DISTRICT-COUNCIL/WALSALL,30/06/2020,ECONOMY & ENVIRONMENT,WWW.TOOLSTATION.COM,24/04/2020,H59620200425VROMFECVW-1,44.98,DEPOT-MATERIALS,HARDWARE STORES,GPC
WALSALL COUNCIL,HTTP://OPENDATACOMMUNITIES.ORG/ID/METROPOLITAN-DISTRICT-COUNCIL/WALSALL,30/06/2020,RESOURCES & TRANSFORMATION,YOUGOTAGIFT.COM LTD,24/04/2020,H59620200425VTWGMMIFX-1,10.82,WALSALL CRISIS SUPPORT SCHEME-FOOD & DRINK SUPPLIES,MISCELLANEOUS GENERAL MERCHANDISE,GPC
WALSALL COUNCIL,HTTP://OPENDATACOMMUNITIES.ORG/ID/METROPOLITAN-DISTRICT-COUNCIL/WALSALL,30/06/2020,RESOURCES & TRANSFORMATION,B&M RETAIL LTD,24/04/2020,H59620200425VXFTPFGVJ-1,40.96,HOMELESSNESS PREVENTION STRATE-PURCHASE OF FURNITURE & EQUIPM,DISCOUNT STORES,GPC
WALSALL COUNCIL,HTTP://OPENDATACOMMUNITIES.ORG/ID/METROPOLITAN-DISTRICT-COUNCIL/WALSALL,30/06/2020,RESOURCES & TRANSFORMATION,METRO INNS WALSALL,24/04/2020,H59620200425WIDHZZFRU-1,266.00,BED & BREAKFAST PAYMENTS-HOTEL ACCOMMODATION-EMPLOYEES,"HOTELS, MOTELS, RESORTS",GPC
WALSALL COUNCIL,HTTP://OPENDATACOMMUNITIES.ORG/ID/METROPOLITAN-DISTRICT-COUNCIL/WALSALL,30/06/2020,RESOURCES & TRANSFORMATION,METRO INNS WALSALL,24/04/2020,H59620200425XDLGQJZON-1,266.00,BED & BREAKFAST PAYMENTS-HOTEL ACCOMMODATION-EMPLOYEES,"HOTELS, MOTELS, RESORTS",GPC
WALSALL COUNCIL,HTTP://OPENDATACOMMUNITIES.ORG/ID/METROPOLITAN-DISTRICT-COUNCIL/WALSALL,30/06/2020,ADULT SOCIAL CARE,WWW.BANNERUK.COM,24/04/2020,H59620200425XDPIOEQFL-1,48.35,GOSCOTE-STATIONERY & GENERAL OFFICE SU,"STATIONERY, OFFICE SUPPLIES AND WRITING PAPER",GPC
WALSALL COUNCIL,HTTP://OPENDATACOMMUNITIES.ORG/ID/METROPOLITAN-DISTRICT-COUNCIL/WALSALL,30/06/2020,RESOURCES & TRANSFORMATION,METRO INNS WALSALL,24/04/2020,H59620200425XSUUYNSKQ-1,266.00,BED & BREAKFAST PAYMENTS-HOTEL ACCOMMODATION-EMPLOYEES,"HOTELS, MOTELS, RESORTS",GPC
WALSALL COUNCIL,HTTP://OPENDATACOMMUNITIES.ORG/ID/METROPOLITAN-DISTRICT-COUNCIL/WALSALL,30/06/2020,RESOURCES & TRANSFORMATION,METRO INNS WALSALL,24/04/2020,H59620200425ZQWZTNLLL-1,266.00,BED & BREAKFAST PAYMENTS-HOTEL ACCOMMODATION-EMPLOYEES,"HOTELS, MOTELS, RESORTS",GPC
WALSALL COUNCIL,HTTP://OPENDATACOMMUNITIES.ORG/ID/METROPOLITAN-DISTRICT-COUNCIL/WALSALL,30/06/2020,CHILDRENS SERVICES,ARGOS LTD,27/04/2020,H59620200428ALWOUXSAM-1,-1.00,SAFEGUARDING & FAMILY SUPPORT-SECTION 1/17CHILD CARE ACT 198,DISCOUNT STORES,GPC
WALSALL COUNCIL,HTTP://OPENDATACOMMUNITIES.ORG/ID/METROPOLITAN-DISTRICT-COUNCIL/WALSALL,30/06/2020,ADULT SOCIAL CARE,WWW.BARGAINWHOLESALERS,27/04/2020,H59620200428BEIDGLIOJ-1,9840.00,GOSCOTE-STATIONERY & GENERAL OFFICE SU,"CARD, GIFT, NOVELTY, AND SOUVENIR SHOPS",GPC
WALSALL COUNCIL,HTTP://OPENDATACOMMUNITIES.ORG/ID/METROPOLITAN-DISTRICT-COUNCIL/WALSALL,30/06/2020,ECONOMY & ENVIRONMENT,AMZNMKTPLACE,27/04/2020,H59620200428BGHVCCADQ-1,49.50,GROUNDS-MATERIALS,MISCELLANEOUS AND SPECIALTY RETAIL STORES,GPC
WALSALL COUNCIL,HTTP://OPENDATACOMMUNITIES.ORG/ID/METROPOLITAN-DISTRICT-COUNCIL/WALSALL,30/06/2020,ECONOMY & ENVIRONMENT,AMZNMKTPLACE,27/04/2020,H59620200428BILXYPSAL-1,8.99,GROUNDS-MATERIALS,MISCELLANEOUS AND SPECIALTY RETAIL STORES,GPC
WALSALL COUNCIL,HTTP://OPENDATACOMMUNITIES.ORG/ID/METROPOLITAN-DISTRICT-COUNCIL/WALSALL,30/06/2020,CHILDRENS SERVICES,ALDI 772 129,27/04/2020,H59620200428CIQSOEPGJ-1,0.49,"43A HILTON ROAD, WILLENHALL-FOOD & DRINK SUPPLIES",GROCERY STORES AND SUPERMARKETS,GPC
WALSALL COUNCIL,HTTP://OPENDATACOMMUNITIES.ORG/ID/METROPOLITAN-DISTRICT-COUNCIL/WALSALL,30/06/2020,CHILDRENS SERVICES,ALDI 772 129,27/04/2020,H59620200428CIQSOEPGJ-2,4.79,"43A HILTON ROAD, WILLENHALL-FOOD & DRINK SUPPLIES",GROCERY STORES AND SUPERMARKETS,GPC
WALSALL COUNCIL,HTTP://OPENDATACOMMUNITIES.ORG/ID/METROPOLITAN-DISTRICT-COUNCIL/WALSALL,30/06/2020,ADULT SOCIAL CARE,BAINS CONVENIENCE STORE,27/04/2020,H59620200428CJSENXWIB-1,10.40,GOSCOTE-FOOD & DRINK SUPPLIES,GROCERY STORES AND SUPERMARKETS,GPC
WALSALL COUNCIL,HTTP://OPENDATACOMMUNITIES.ORG/ID/METROPOLITAN-DISTRICT-COUNCIL/WALSALL,30/06/2020,CHILDRENS SERVICES,INTER-CONTINENTAL HOTELS,27/04/2020,H59620200428CMOJNCFDV-1,-169.94,EDUCATIONAL PSYCHOLOGISTS-HOTEL ACCOMMODATION-EMPLOYEES,INTERCONTINENTAL HOTELS,GPC
WALSALL COUNCIL,HTTP://OPENDATACOMMUNITIES.ORG/ID/METROPOLITAN-DISTRICT-COUNCIL/WALSALL,30/06/2020,CHILDRENS SERVICES,THETRAINLINE.COM,27/04/2020,H59620200428COSGEMHTT-1,71.29,SAFEGUARDING & FAMILY SUPPORT-SECTION 1/17CHILD CARE ACT 198,PASSENGER RAILWAYS,GPC
WALSALL COUNCIL,HTTP://OPENDATACOMMUNITIES.ORG/ID/METROPOLITAN-DISTRICT-COUNCIL/WALSALL,30/06/2020,CHILDRENS SERVICES,AMZNMKTPLACE AMAZON.CO.UK,27/04/2020,H59620200428DMYSFTIDQ-1,59.99,SAFEGUARDING & FAMILY SUPPORT-SECTION 1/17CHILD CARE ACT 198,MISCELLANEOUS AND SPECIALTY RETAIL STORES,GPC
WALSALL COUNCIL,HTTP://OPENDATACOMMUNITIES.ORG/ID/METROPOLITAN-DISTRICT-COUNCIL/WALSALL,30/06/2020,ECONOMY & ENVIRONMENT,HUGHIE WILLETT MACH,27/04/2020,H59620200428DXMITLBHI-1,6.53,COUNTRYSIDE MANAGEMENT - OTHER-PURCHASE OF FURNITURE & EQUIPM,"OTHER AUTOMOTIVE, AIRCRAFT, AND FARM EQUIPMENT",GPC
WALSALL COUNCIL,HTTP://OPENDATACOMMUNITIES.ORG/ID/METROPOLITAN-DISTRICT-COUNCIL/WALSALL,30/06/2020,CHILDRENS SERVICES,M AND M DIRECT LTD,27/04/2020,H59620200428EFDEOTJQS-1,92.95,SUPPORT UNDER SECT 23 OF THE C-SUPPORT UNDER SECTION 23 OF TH,SPORTING GOODS STORES,GPC
WALSALL COUNCIL,HTTP://OPENDATACOMMUNITIES.ORG/ID/METROPOLITAN-DISTRICT-COUNCIL/WALSALL,30/06/2020,RESOURCES & TRANSFORMATION,METRO INNS WALSALL,27/04/2020,H59620200428FMSOODLRL-1,266.00,BED & BREAKFAST PAYMENTS-BED & BREAKFAST PAYMENTS,"HOTELS, MOTELS, RESORTS",GPC
WALSALL COUNCIL,HTTP://OPENDATACOMMUNITIES.ORG/ID/METROPOLITAN-DISTRICT-COUNCIL/WALSALL,30/06/2020,RESOURCES & TRANSFORMATION,J2 EFAX PLUS SERVICE,27/04/2020,H59620200428GCRGTNCIK-1,7.20,RECHARGEABLE EQUIPMENT-COMPUTER EQUIPMENT,DIRECT MARKETING CONTINUITY SUBSCRIPTION MERCHANTS,GPC
WALSALL COUNCIL,HTTP://OPENDATACOMMUNITIES.ORG/ID/METROPOLITAN-DISTRICT-COUNCIL/WALSALL,30/06/2020,CHILDRENS SERVICES,MIP*TESCO MOBILE TOPUP,27/04/2020,H59620200428GOPTFQGZN-1,20.00,ADMINISTRATIVE SUPPLIES-MOBILE PHONES,TELECOMMUNICATION SERVICES,GPC
WALSALL COUNCIL,HTTP://OPENDATACOMMUNITIES.ORG/ID/METROPOLITAN-DISTRICT-COUNCIL/WALSALL,30/06/2020,CHILDRENS SERVICES,THE RANGE,27/04/2020,H59620200428GPRUTRVUL-1,47.30,ADOLESCENT SERVICE-MATERIALS,DEPARTMENT STORES,GPC
WALSALL COUNCIL,HTTP://OPENDATACOMMUNITIES.ORG/ID/METROPOLITAN-DISTRICT-COUNCIL/WALSALL,30/06/2020,CHILDRENS SERVICES,THE RANGE,27/04/2020,H59620200428GPRUTRVUL-2,2.00,ADOLESCENT SERVICE-FOOD & DRINK SUPPLIES,DEPARTMENT STORES,GPC
WALSALL COUNCIL,HTTP://OPENDATACOMMUNITIES.ORG/ID/METROPOLITAN-DISTRICT-COUNCIL/WALSALL,30/06/2020,RESOURCES & TRANSFORMATION,UTILITA ENERGY LTD,27/04/2020,H59620200428IFJYLGMFT-1,20.00,WALSALL CRISIS SUPPORT SCHEME-CRISIS SUPPORT PAYMENTS,"UTILITIES - ELECTRIC, GAS, SANITARY & WATER",GPC
WALSALL COUNCIL,HTTP://OPENDATACOMMUNITIES.ORG/ID/METROPOLITAN-DISTRICT-COUNCIL/WALSALL,30/06/2020,RESOURCES & TRANSFORMATION,AMZNMKTPLACE AMAZON.CO.UK,27/04/2020,H59620200428IHQPOHRND-1,74.75,RECHARGEABLE EQUIPMENT-COMPUTER EQUIPMENT,MISCELLANEOUS AND SPECIALTY RETAIL STORES,GPC
WALSALL COUNCIL,HTTP://OPENDATACOMMUNITIES.ORG/ID/METROPOLITAN-DISTRICT-COUNCIL/WALSALL,30/06/2020,CHILDRENS SERVICES,AMZNMKTPLACE,27/04/2020,H59620200428JYFMENPMC-1,99.95,GENERAL-MATERIALS,MISCELLANEOUS AND SPECIALTY RETAIL STORES,GPC
WALSALL COUNCIL,HTTP://OPENDATACOMMUNITIES.ORG/ID/METROPOLITAN-DISTRICT-COUNCIL/WALSALL,30/06/2020,RESOURCES & TRANSFORMATION,WWW.SCC.COM,27/04/2020,H59620200428KEOFPAJWU-1,10356.00,RECHARGEABLE EQUIPMENT-COMPUTER EQUIPMENT,"COMPUTERS, COMPUTER PERIPHERAL EQUIPMENT, SOFTWARE",GPC
WALSALL COUNCIL,HTTP://OPENDATACOMMUNITIES.ORG/ID/METROPOLITAN-DISTRICT-COUNCIL/WALSALL,30/06/2020,ECONOMY & ENVIRONMENT,WWW.BANNERUK.COM,27/04/2020,H59620200428KFWCZMQJR-1,-8.34,CENTRALISED STATIONARY-STATIONERY & GENERAL OFFICE SU,"STATIONERY, OFFICE SUPPLIES AND WRITING PAPER",GPC
WALSALL COUNCIL,HTTP://OPENDATACOMMUNITIES.ORG/ID/METROPOLITAN-DISTRICT-COUNCIL/WALSALL,30/06/2020,CHILDRENS SERVICES,TRAINLINE,27/04/2020,H59620200428KIIBMUQFM-1,-86.20,GENERAL MANAGEMENT SUPPORT (IN-OFFICERS & STAFF PUBLIC TRANSP,PASSENGER RAILWAYS,GPC
WALSALL COUNCIL,HTTP://OPENDATACOMMUNITIES.ORG/ID/METROPOLITAN-DISTRICT-COUNCIL/WALSALL,30/06/2020,CHILDRENS SERVICES,POST OFFICE COUNTER,27/04/2020,H59620200428KKEJMSKPJ-1,133.50,LOOKED AFTER CHILDRENS SOCIAL -POSTAGES & COURIER SERVICES,POSTAL SERVICES - GOVERNMENT ONLY,GPC
WALSALL COUNCIL,HTTP://OPENDATACOMMUNITIES.ORG/ID/METROPOLITAN-DISTRICT-COUNCIL/WALSALL,30/06/2020,ADULT SOCIAL CARE,ASDA SUPERSTORE,27/04/2020,H59620200428LTNNPAUBK-1,37.00,ASC PARTNERSHIPS-FOOD & DRINK SUPPLIES,GROCERY STORES AND SUPERMARKETS,GPC
WALSALL COUNCIL,HTTP://OPENDATACOMMUNITIES.ORG/ID/METROPOLITAN-DISTRICT-COUNCIL/WALSALL,30/06/2020,CHILDRENS SERVICES,WWW.GAME.CO.UK,27/04/2020,H59620200428LUUBWJHTT-1,17.99,REDRUTH ROAD-RESIDENTS PERSONAL EXPENSES-AL,"GAME, TOY, AND HOBBY SHOPS",GPC
WALSALL COUNCIL,HTTP://OPENDATACOMMUNITIES.ORG/ID/METROPOLITAN-DISTRICT-COUNCIL/WALSALL,30/06/2020,CHILDRENS SERVICES - SCHOOLS,ZOOM.GBP,27/04/2020,H59620200428MAMLSLVDH-1,14.39,CADMUS FEDERATION-FREE STAFF MEALS,DIRECT MARKETING CONTINUITY SUBSCRIPTION MERCHANTS,GPC
WALSALL COUNCIL,HTTP://OPENDATACOMMUNITIES.ORG/ID/METROPOLITAN-DISTRICT-COUNCIL/WALSALL,30/06/2020,RESOURCES & TRANSFORMATION,AMZNMKTPLACE AMAZON.CO.UK,27/04/2020,H59620200428NBXOYDTQX-1,48.51,RECHARGEABLE EQUIPMENT-COMPUTER EQUIPMENT,MISCELLANEOUS AND SPECIALTY RETAIL STORES,GPC
WALSALL COUNCIL,HTTP://OPENDATACOMMUNITIES.ORG/ID/METROPOLITAN-DISTRICT-COUNCIL/WALSALL,30/06/2020,CHILDRENS SERVICES,THETRAINLINE.COM,27/04/2020,H59620200428NKGWXEYXD-1,46.78,SAFEGUARDING & FAMILY SUPPORT-SECTION 1/17CHILD CARE ACT 198,PASSENGER RAILWAYS,GPC
WALSALL COUNCIL,HTTP://OPENDATACOMMUNITIES.ORG/ID/METROPOLITAN-DISTRICT-COUNCIL/WALSALL,30/06/2020,ECONOMY & ENVIRONMENT,DISPLAYSENSE.CO.UK,27/04/2020,H59620200428NXGUYJNZL-1,55.96,WALSALL GALA CENTRE-PURCHASE OF FURNITURE & EQUIPM,OTHER COMMERCIAL EQUIPMENT,GPC
WALSALL COUNCIL,HTTP://OPENDATACOMMUNITIES.ORG/ID/METROPOLITAN-DISTRICT-COUNCIL/WALSALL,30/06/2020,RESOURCES & TRANSFORMATION,ALDI 78 772,27/04/2020,H59620200428OLWPIJCTU-1,4.05,ACCOMMODATION SERVICES MANAGEM-CLEANING MATERIALS,GROCERY STORES AND SUPERMARKETS,GPC
WALSALL COUNCIL,HTTP://OPENDATACOMMUNITIES.ORG/ID/METROPOLITAN-DISTRICT-COUNCIL/WALSALL,30/06/2020,CHILDRENS SERVICES,CO-OPERATIVE FOOD,27/04/2020,H59620200428PFFCLEMDR-1,3.98,ADOLESCENT SERVICE-FOOD & DRINK SUPPLIES,GROCERY STORES AND SUPERMARKETS,GPC
WALSALL COUNCIL,HTTP://OPENDATACOMMUNITIES.ORG/ID/METROPOLITAN-DISTRICT-COUNCIL/WALSALL,30/06/2020,CHILDRENS SERVICES,AMZNMKTPLACE,27/04/2020,H59620200428PJIYFIBLS-1,20.90,VIRTUAL SCHOOL - CENTRAL PUPIL-OTHER EXPENSES,MISCELLANEOUS AND SPECIALTY RETAIL STORES,GPC
WALSALL COUNCIL,HTTP://OPENDATACOMMUNITIES.ORG/ID/METROPOLITAN-DISTRICT-COUNCIL/WALSALL,30/06/2020,CHILDRENS SERVICES,THETRAINLINE.COM,27/04/2020,H59620200428SBXDVSPKS-1,-44.50,SAFEGUARDING & FAMILY SUPPORT-SECTION 1/17CHILD CARE ACT 198,PASSENGER RAILWAYS,GPC
WALSALL COUNCIL,HTTP://OPENDATACOMMUNITIES.ORG/ID/METROPOLITAN-DISTRICT-COUNCIL/WALSALL,30/06/2020,RESOURCES & TRANSFORMATION,HIMLEY COUNTRY HOTEL,27/04/2020,H59620200428SDSDGRCHB-1,140.00,YOUNG PERSONS HOMELESS SERVICE-ACCOMMODATION AND RELATED COST,"HOTELS, MOTELS, RESORTS",GPC
WALSALL COUNCIL,HTTP://OPENDATACOMMUNITIES.ORG/ID/METROPOLITAN-DISTRICT-COUNCIL/WALSALL,30/06/2020,CHILDRENS SERVICES,TESCO STORES 6161,27/04/2020,H59620200428TGXMPGIHQ-1,17.00,REDRUTH ROAD-RESIDENTS PERSONAL EXPENSES-AL,GROCERY STORES AND SUPERMARKETS,GPC
WALSALL COUNCIL,HTTP://OPENDATACOMMUNITIES.ORG/ID/METROPOLITAN-DISTRICT-COUNCIL/WALSALL,30/06/2020,CHILDRENS SERVICES,TESCO STORES 6161,27/04/2020,H59620200428TGXMPGIHQ-2,20.00,REDRUTH ROAD-RESIDENTS PERSONAL EXPENSES-AL,GROCERY STORES AND SUPERMARKETS,GPC
WALSALL COUNCIL,HTTP://OPENDATACOMMUNITIES.ORG/ID/METROPOLITAN-DISTRICT-COUNCIL/WALSALL,30/06/2020,CHILDRENS SERVICES,AMZNMKTPLACE,27/04/2020,H59620200428UGLEFLQIK-1,141.95,"43A HILTON ROAD, WILLENHALL-RESIDENTS PERSONAL EXPENSES-AL",MISCELLANEOUS AND SPECIALTY RETAIL STORES,GPC
WALSALL COUNCIL,HTTP://OPENDATACOMMUNITIES.ORG/ID/METROPOLITAN-DISTRICT-COUNCIL/WALSALL,30/06/2020,ECONOMY & ENVIRONMENT,SCREWFIX DIRECT,27/04/2020,H59620200428UOERGBPFO-1,57.98,WALSALL GALA CENTRE-PURCHASE OF FURNITURE & EQUIPM,HOME SUPPLY WAREHOUSE STORES,GPC
WALSALL COUNCIL,HTTP://OPENDATACOMMUNITIES.ORG/ID/METROPOLITAN-DISTRICT-COUNCIL/WALSALL,30/06/2020,CHILDRENS SERVICES - SCHOOLS,AMZNMKTPLACE AMAZON.CO.UK,27/04/2020,H59620200428VBIBCCALP-1,43.98,PALFREY JUNIOR SCHOOL-STATIONERY & GENERAL OFFICE SU,MISCELLANEOUS AND SPECIALTY RETAIL STORES,GPC
WALSALL COUNCIL,HTTP://OPENDATACOMMUNITIES.ORG/ID/METROPOLITAN-DISTRICT-COUNCIL/WALSALL,30/06/2020,ECONOMY & ENVIRONMENT,WWW.BANNERUK.COM,27/04/2020,H59620200428VKCQHUXQC-1,-5.16,NEW ART GALLERY - ADMIN-STATIONERY & GENERAL OFFICE SU,"STATIONERY, OFFICE SUPPLIES AND WRITING PAPER",GPC
WALSALL COUNCIL,HTTP://OPENDATACOMMUNITIES.ORG/ID/METROPOLITAN-DISTRICT-COUNCIL/WALSALL,30/06/2020,ECONOMY & ENVIRONMENT,SCREWFIX DIRECT,27/04/2020,H59620200428YYCHLWELK-1,4.29,DEPOT-MATERIALS,HOME SUPPLY WAREHOUSE STORES,GPC
WALSALL COUNCIL,HTTP://OPENDATACOMMUNITIES.ORG/ID/METROPOLITAN-DISTRICT-COUNCIL/WALSALL,30/06/2020,RESOURCES & TRANSFORMATION,HIMLEY COUNTRY HOTEL,28/04/2020,H59620200429BYMKCELSL-1,105.00,YOUNG PERSONS HOMELESS SERVICE-ACCOMMODATION AND RELATED COST,"HOTELS, MOTELS, RESORTS",GPC
WALSALL COUNCIL,HTTP://OPENDATACOMMUNITIES.ORG/ID/METROPOLITAN-DISTRICT-COUNCIL/WALSALL,30/06/2020,CHILDRENS SERVICES,B&M RETAIL,28/04/2020,H59620200429CMVPTUGUU-1,14.17,REDRUTH ROAD-FOOD & DRINK SUPPLIES,DISCOUNT STORES,GPC
WALSALL COUNCIL,HTTP://OPENDATACOMMUNITIES.ORG/ID/METROPOLITAN-DISTRICT-COUNCIL/WALSALL,30/06/2020,CHILDRENS SERVICES,ABILITY SMART LTD,28/04/2020,H59620200429CORWLQRIP-1,119.00,LOOKED AFTER CHILDRENS SOCIAL -COMPUTER EQUIPMENT,COMPUTER SOFTWARE STORES,GPC
WALSALL COUNCIL,HTTP://OPENDATACOMMUNITIES.ORG/ID/METROPOLITAN-DISTRICT-COUNCIL/WALSALL,30/06/2020,CHILDRENS SERVICES,WALSALL COUNCIL,28/04/2020,H59620200429EIKNIKGXC-1,42.34,ADMINISTRATIVE SUPPLIES-MATERIALS,GOVERNMENT SERVICES,GPC
WALSALL COUNCIL,HTTP://OPENDATACOMMUNITIES.ORG/ID/METROPOLITAN-DISTRICT-COUNCIL/WALSALL,30/06/2020,ECONOMY & ENVIRONMENT,DIGITAL ID,28/04/2020,H59620200429ERKYYJVTI-1,118.74,CENTRALISED STATIONARY-COMPUTER EQUIPMENT,"COMPUTERS, COMPUTER PERIPHERAL EQUIPMENT, SOFTWARE",GPC
WALSALL COUNCIL,HTTP://OPENDATACOMMUNITIES.ORG/ID/METROPOLITAN-DISTRICT-COUNCIL/WALSALL,30/06/2020,ECONOMY & ENVIRONMENT,AMZNMKTPLACE AMAZON.CO.UK,28/04/2020,H59620200429ERXMOWXND-1,34.26,FLEET-MATERIALS,MISCELLANEOUS AND SPECIALTY RETAIL STORES,GPC
WALSALL COUNCIL,HTTP://OPENDATACOMMUNITIES.ORG/ID/METROPOLITAN-DISTRICT-COUNCIL/WALSALL,30/06/2020,RESOURCES & TRANSFORMATION,ARTHUR BRETT CATER,28/04/2020,H59620200429EZWVOJILN-1,37.16,CA LINDENS PRIMARY SCHOOL-FOOD & DRINK SUPPLIES,MISCELLANEOUS FOOD STORES & CONVENIENCE STORES,GPC
WALSALL COUNCIL,HTTP://OPENDATACOMMUNITIES.ORG/ID/METROPOLITAN-DISTRICT-COUNCIL/WALSALL,30/06/2020,CHILDRENS SERVICES,ALDI 42 772,28/04/2020,H59620200429FGDPUTUHN-1,8.52,REDRUTH ROAD-FOOD & DRINK SUPPLIES,GROCERY STORES AND SUPERMARKETS,GPC
WALSALL COUNCIL,HTTP://OPENDATACOMMUNITIES.ORG/ID/METROPOLITAN-DISTRICT-COUNCIL/WALSALL,30/06/2020,CHILDRENS SERVICES,ALDI 42 772,28/04/2020,H59620200429FGDPUTUHN-2,108.74,REDRUTH ROAD-FOOD & DRINK SUPPLIES,GROCERY STORES AND SUPERMARKETS,GPC
WALSALL COUNCIL,HTTP://OPENDATACOMMUNITIES.ORG/ID/METROPOLITAN-DISTRICT-COUNCIL/WALSALL,30/06/2020,RESOURCES & TRANSFORMATION,METRO INNS WALSALL,28/04/2020,H59620200429FLZYLBIXG-1,270.50,BED & BREAKFAST PAYMENTS-HOTEL ACCOMMODATION-EMPLOYEES,"HOTELS, MOTELS, RESORTS",GPC
WALSALL COUNCIL,HTTP://OPENDATACOMMUNITIES.ORG/ID/METROPOLITAN-DISTRICT-COUNCIL/WALSALL,30/06/2020,ECONOMY & ENVIRONMENT,WF* WAYFAIR 3084967774,28/04/2020,H59620200429HJPSWFITU-1,38.49,ESF BLACK COUNTRY TA PROGRAMME-PURCHASE OF FURNITURE & EQUIPM,"EQUIPMENT, FURNITURE, AND HOME FURNISHINGS STORES ",GPC
WALSALL COUNCIL,HTTP://OPENDATACOMMUNITIES.ORG/ID/METROPOLITAN-DISTRICT-COUNCIL/WALSALL,30/06/2020,ECONOMY & ENVIRONMENT,WF* WAYFAIR 3084967774,28/04/2020,H59620200429HJPSWFITU-2,38.50,ESF BLACK COUNTRY TA PROGRAMME-PURCHASE OF FURNITURE & EQUIPM,"EQUIPMENT, FURNITURE, AND HOME FURNISHINGS STORES ",GPC
WALSALL COUNCIL,HTTP://OPENDATACOMMUNITIES.ORG/ID/METROPOLITAN-DISTRICT-COUNCIL/WALSALL,30/06/2020,CHILDRENS SERVICES,VIRTUAL COLLEGE LIMITE,28/04/2020,H59620200429HMWCCLWFL-1,28.80,57 LICHFIELD ROAD-EXTERNAL TRAINING,OTHER SCHOOLS AND EDUCATIONAL SERVICES,GPC
WALSALL COUNCIL,HTTP://OPENDATACOMMUNITIES.ORG/ID/METROPOLITAN-DISTRICT-COUNCIL/WALSALL,30/06/2020,CHILDRENS SERVICES,MOONPIG,28/04/2020,H59620200429IDIIYKAQR-1,4.05,ADOLESCENT SERVICE-STATIONERY & GENERAL OFFICE SU,MISCELLANEOUS GENERAL MERCHANDISE,GPC
WALSALL COUNCIL,HTTP://OPENDATACOMMUNITIES.ORG/ID/METROPOLITAN-DISTRICT-COUNCIL/WALSALL,30/06/2020,ECONOMY & ENVIRONMENT,FUTURE GARMENTS LTD,28/04/2020,H59620200429IDPKNIIFI-1,1200.00,FLEET-MATERIALS,"MEN'S, WOMEN'S, AND CHILDREN'S UNIFORMS",GPC
WALSALL COUNCIL,HTTP://OPENDATACOMMUNITIES.ORG/ID/METROPOLITAN-DISTRICT-COUNCIL/WALSALL,30/06/2020,CHILDRENS SERVICES,AMAZON.CO.UK*J14IX77Q5 AM,28/04/2020,H59620200429IJJBOYBCH-1,10.16,ST FRANCIS OF ASSISI CATHOLIC -EXTERNAL TRAINING,MISCELLANEOUS AND SPECIALTY RETAIL STORES,GPC
WALSALL COUNCIL,HTTP://OPENDATACOMMUNITIES.ORG/ID/METROPOLITAN-DISTRICT-COUNCIL/WALSALL,30/06/2020,ECONOMY & ENVIRONMENT,DIGITAL ID,28/04/2020,H59620200429IKNWEDGKT-1,299.34,CENTRALISED STATIONARY-COMPUTER EQUIPMENT,"COMPUTERS, COMPUTER PERIPHERAL EQUIPMENT, SOFTWARE",GPC
WALSALL COUNCIL,HTTP://OPENDATACOMMUNITIES.ORG/ID/METROPOLITAN-DISTRICT-COUNCIL/WALSALL,30/06/2020,RESOURCES & TRANSFORMATION,FACEBK K9PD5R6N22,28/04/2020,H59620200429IMHQYIQGG-1,25.00,AREA PARTNERSHIPS-PUBLICITY & ADVERTISING (NON S,ADVERTISING SERVICES,GPC
WALSALL COUNCIL,HTTP://OPENDATACOMMUNITIES.ORG/ID/METROPOLITAN-DISTRICT-COUNCIL/WALSALL,30/06/2020,CHILDRENS SERVICES,POST OFFICE COUNTER,28/04/2020,H59620200429JGDOVLSGL-1,2.06,FAMILY PLACEMENTS-POSTAGES & COURIER SERVICES,POSTAL SERVICES - GOVERNMENT ONLY,GPC
WALSALL COUNCIL,HTTP://OPENDATACOMMUNITIES.ORG/ID/METROPOLITAN-DISTRICT-COUNCIL/WALSALL,30/06/2020,ECONOMY & ENVIRONMENT,FUTURE GARMENTS LTD,28/04/2020,H59620200429LQPIMCUGN-1,1200.00,FLEET-MATERIALS,"MEN'S, WOMEN'S, AND CHILDREN'S UNIFORMS",GPC
WALSALL COUNCIL,HTTP://OPENDATACOMMUNITIES.ORG/ID/METROPOLITAN-DISTRICT-COUNCIL/WALSALL,30/06/2020,RESOURCES & TRANSFORMATION,AMZNMKTPLACE,28/04/2020,H59620200429LRGLXIVRN-1,12.96,CCTV-STATIONERY & GENERAL OFFICE SU,MISCELLANEOUS AND SPECIALTY RETAIL STORES,GPC
WALSALL COUNCIL,HTTP://OPENDATACOMMUNITIES.ORG/ID/METROPOLITAN-DISTRICT-COUNCIL/WALSALL,30/06/2020,RESOURCES & TRANSFORMATION,METRO INNS WALSALL,28/04/2020,H59620200429LRXILGUOX-1,152.00,BED & BREAKFAST PAYMENTS-BED & BREAKFAST PAYMENTS,"HOTELS, MOTELS, RESORTS",GPC
WALSALL COUNCIL,HTTP://OPENDATACOMMUNITIES.ORG/ID/METROPOLITAN-DISTRICT-COUNCIL/WALSALL,30/06/2020,CHILDRENS SERVICES - SCHOOLS,AMZNMKTPLACE AMAZON.CO.UK,28/04/2020,H59620200429MDQIJGOZQ-1,114.89,CADMUS FEDERATION-MATERIALS,MISCELLANEOUS AND SPECIALTY RETAIL STORES,GPC
WALSALL COUNCIL,HTTP://OPENDATACOMMUNITIES.ORG/ID/METROPOLITAN-DISTRICT-COUNCIL/WALSALL,30/06/2020,CHILDRENS SERVICES,WALSALL COUNCIL,28/04/2020,H59620200429MLHOMIJCY-1,42.34,ST FRANCIS OF ASSISI CATHOLIC -POLICE CHECKS,GOVERNMENT SERVICES,GPC
WALSALL COUNCIL,HTTP://OPENDATACOMMUNITIES.ORG/ID/METROPOLITAN-DISTRICT-COUNCIL/WALSALL,30/06/2020,CHILDRENS SERVICES,AMAZON.CO.UK*2B54M7EK5 AM,28/04/2020,H59620200429MLIHCHNVH-1,21.25,ST FRANCIS OF ASSISI CATHOLIC -STATIONERY & GENERAL OFFICE SU,MISCELLANEOUS AND SPECIALTY RETAIL STORES,GPC
WALSALL COUNCIL,HTTP://OPENDATACOMMUNITIES.ORG/ID/METROPOLITAN-DISTRICT-COUNCIL/WALSALL,30/06/2020,CHILDRENS SERVICES,VIRTUAL COLLEGE LIMITE,28/04/2020,H59620200429MMCIXHDEF-1,90.00,57 LICHFIELD ROAD-EXTERNAL TRAINING,OTHER SCHOOLS AND EDUCATIONAL SERVICES,GPC
WALSALL COUNCIL,HTTP://OPENDATACOMMUNITIES.ORG/ID/METROPOLITAN-DISTRICT-COUNCIL/WALSALL,30/06/2020,RESOURCES & TRANSFORMATION,AMZNMKTPLACE AMAZON.CO.UK,28/04/2020,H59620200429MXCFXFFWN-1,304.49,RECHARGEABLE EQUIPMENT-COMPUTER EQUIPMENT,MISCELLANEOUS AND SPECIALTY RETAIL STORES,GPC
WALSALL COUNCIL,HTTP://OPENDATACOMMUNITIES.ORG/ID/METROPOLITAN-DISTRICT-COUNCIL/WALSALL,30/06/2020,ECONOMY & ENVIRONMENT,ARGOS LTD,28/04/2020,H59620200429MZFQTHPNS-1,130.00,STREET PRIDE MANAGEMENT-MATERIALS,DISCOUNT STORES,GPC
WALSALL COUNCIL,HTTP://OPENDATACOMMUNITIES.ORG/ID/METROPOLITAN-DISTRICT-COUNCIL/WALSALL,30/06/2020,CHILDRENS SERVICES,WALSALL COUNCIL,28/04/2020,H59620200429ONSFGGLBI-1,42.34,ST FRANCIS OF ASSISI CATHOLIC -POLICE CHECKS,GOVERNMENT SERVICES,GPC
WALSALL COUNCIL,HTTP://OPENDATACOMMUNITIES.ORG/ID/METROPOLITAN-DISTRICT-COUNCIL/WALSALL,30/06/2020,CHILDRENS SERVICES,FUNKYPIGEON.COM,28/04/2020,H59620200429PHOBRWXUS-1,4.22,ADOLESCENT SERVICE-STATIONERY & GENERAL OFFICE SU,"CARD, GIFT, NOVELTY, AND SOUVENIR SHOPS",GPC
WALSALL COUNCIL,HTTP://OPENDATACOMMUNITIES.ORG/ID/METROPOLITAN-DISTRICT-COUNCIL/WALSALL,30/06/2020,CHILDRENS SERVICES,ALDI 42 772,28/04/2020,H59620200429QACDVUROS-1,6.98,REDRUTH ROAD-PURCHASE OF FURNITURE & EQUIPM,GROCERY STORES AND SUPERMARKETS,GPC
WALSALL COUNCIL,HTTP://OPENDATACOMMUNITIES.ORG/ID/METROPOLITAN-DISTRICT-COUNCIL/WALSALL,30/06/2020,CHILDRENS SERVICES,ARGOS LTD,28/04/2020,H59620200429QUMBCFUOK-1,49.99,SAFEGUARDING & FAMILY SUPPORT-SECTION 1/17CHILD CARE ACT 198,DISCOUNT STORES,GPC
WALSALL COUNCIL,HTTP://OPENDATACOMMUNITIES.ORG/ID/METROPOLITAN-DISTRICT-COUNCIL/WALSALL,30/06/2020,CHILDRENS SERVICES,B&M RETAIL,28/04/2020,H59620200429TDHPOHKMG-1,4.00,REDRUTH ROAD-CLEANING MATERIALS,DISCOUNT STORES,GPC
WALSALL COUNCIL,HTTP://OPENDATACOMMUNITIES.ORG/ID/METROPOLITAN-DISTRICT-COUNCIL/WALSALL,30/06/2020,RESOURCES & TRANSFORMATION,CO-OPERATIVE FOOD,28/04/2020,H59620200429VGPOPNVMB-1,49.00,WALSALL CRISIS SUPPORT SCHEME-CRISIS SUPPORT PAYMENTS,GROCERY STORES AND SUPERMARKETS,GPC
WALSALL COUNCIL,HTTP://OPENDATACOMMUNITIES.ORG/ID/METROPOLITAN-DISTRICT-COUNCIL/WALSALL,30/06/2020,CHILDRENS SERVICES,POST OFFICE COUNTER,28/04/2020,H59620200429XDTIRNUPU-1,7.40,FAMILY PLACEMENTS-POSTAGES & COURIER SERVICES,POSTAL SERVICES - GOVERNMENT ONLY,GPC
WALSALL COUNCIL,HTTP://OPENDATACOMMUNITIES.ORG/ID/METROPOLITAN-DISTRICT-COUNCIL/WALSALL,30/06/2020,ECONOMY & ENVIRONMENT,WWW.THEWORKS.CO.UK,28/04/2020,H59620200429XGAWUXTHS-1,4.50,YEI ESF FUNDING-PROFESSIONAL FEES & SERVICES,DISCOUNT STORES,GPC
WALSALL COUNCIL,HTTP://OPENDATACOMMUNITIES.ORG/ID/METROPOLITAN-DISTRICT-COUNCIL/WALSALL,30/06/2020,ECONOMY & ENVIRONMENT,WWW.THEWORKS.CO.UK,28/04/2020,H59620200429XGAWUXTHS-2,4.50,YEI (IMPACT) PROGRAMME-PROFESSIONAL FEES & SERVICES,DISCOUNT STORES,GPC
WALSALL COUNCIL,HTTP://OPENDATACOMMUNITIES.ORG/ID/METROPOLITAN-DISTRICT-COUNCIL/WALSALL,30/06/2020,ECONOMY & ENVIRONMENT,WWW.THEWORKS.CO.UK,28/04/2020,H59620200429XGAWUXTHS-3,20.00,YEI ESF FUNDING-PROFESSIONAL FEES & SERVICES,DISCOUNT STORES,GPC
WALSALL COUNCIL,HTTP://OPENDATACOMMUNITIES.ORG/ID/METROPOLITAN-DISTRICT-COUNCIL/WALSALL,30/06/2020,ECONOMY & ENVIRONMENT,WWW.THEWORKS.CO.UK,28/04/2020,H59620200429XGAWUXTHS-4,20.00,YEI (IMPACT) PROGRAMME-PROFESSIONAL FEES & SERVICES,DISCOUNT STORES,GPC
WALSALL COUNCIL,HTTP://OPENDATACOMMUNITIES.ORG/ID/METROPOLITAN-DISTRICT-COUNCIL/WALSALL,30/06/2020,CHILDRENS SERVICES,CO-OPERATIVE FOOD,28/04/2020,H59620200429XSTWVEGSV-1,3.98,REDRUTH ROAD-FOOD & DRINK SUPPLIES,GROCERY STORES AND SUPERMARKETS,GPC
WALSALL COUNCIL,HTTP://OPENDATACOMMUNITIES.ORG/ID/METROPOLITAN-DISTRICT-COUNCIL/WALSALL,30/06/2020,CHILDRENS SERVICES,B&M RETAIL,28/04/2020,H59620200429YEOGXGLEK-1,61.95,REDRUTH ROAD-PURCHASE OF FURNITURE & EQUIPM,DISCOUNT STORES,GPC
WALSALL COUNCIL,HTTP://OPENDATACOMMUNITIES.ORG/ID/METROPOLITAN-DISTRICT-COUNCIL/WALSALL,30/06/2020,ECONOMY & ENVIRONMENT,SCREWFIX DIRECT,29/04/2020,H59620200430CJIIUKTHX-1,14.08,DEPOT-MATERIALS,HOME SUPPLY WAREHOUSE STORES,GPC
WALSALL COUNCIL,HTTP://OPENDATACOMMUNITIES.ORG/ID/METROPOLITAN-DISTRICT-COUNCIL/WALSALL,30/06/2020,CHILDRENS SERVICES,NISA LOCAL,29/04/2020,H59620200430CJMLUCSQJ-1,8.16,REDRUTH ROAD-FOOD & DRINK SUPPLIES,MISCELLANEOUS FOOD STORES & CONVENIENCE STORES,GPC
WALSALL COUNCIL,HTTP://OPENDATACOMMUNITIES.ORG/ID/METROPOLITAN-DISTRICT-COUNCIL/WALSALL,30/06/2020,RESOURCES & TRANSFORMATION,JOHAL DAIRIES LTD,29/04/2020,H59620200430CLXTNHDWS-1,18.38,CA LINDENS PRIMARY SCHOOL-FOOD & DRINK SUPPLIES,OTHER NONDURABLE GOODS,GPC
WALSALL COUNCIL,HTTP://OPENDATACOMMUNITIES.ORG/ID/METROPOLITAN-DISTRICT-COUNCIL/WALSALL,30/06/2020,CHILDRENS SERVICES - SCHOOLS,AMZNMKTPLACE,29/04/2020,H59620200430CSCKUTIEU-1,72.00,PALFREY JUNIOR SCHOOL-STATIONERY & GENERAL OFFICE SU,MISCELLANEOUS AND SPECIALTY RETAIL STORES,GPC
WALSALL COUNCIL,HTTP://OPENDATACOMMUNITIES.ORG/ID/METROPOLITAN-DISTRICT-COUNCIL/WALSALL,30/06/2020,RESOURCES & TRANSFORMATION,JOHAL DAIRIES LTD,29/04/2020,H59620200430DRGOGBRGU-1,13.84,CA WALSALL WOOD PRIMARY SCHOOL-FOOD & DRINK SUPPLIES,OTHER NONDURABLE GOODS,GPC
WALSALL COUNCIL,HTTP://OPENDATACOMMUNITIES.ORG/ID/METROPOLITAN-DISTRICT-COUNCIL/WALSALL,30/06/2020,ECONOMY & ENVIRONMENT,SPALDINGS LIMITED,29/04/2020,H59620200430EUKPHHFCR-1,70.76,COUNTRYSIDE MANAGEMENT - OTHER-PURCHASE OF FURNITURE & EQUIPM,PROFESSIONAL SERVICES,GPC
WALSALL COUNCIL,HTTP://OPENDATACOMMUNITIES.ORG/ID/METROPOLITAN-DISTRICT-COUNCIL/WALSALL,30/06/2020,ECONOMY & ENVIRONMENT,B & Q 1276,29/04/2020,H59620200430EZJMCFWPY-1,145.42,DEPOT-MATERIALS,HOME SUPPLY WAREHOUSE STORES,GPC
WALSALL COUNCIL,HTTP://OPENDATACOMMUNITIES.ORG/ID/METROPOLITAN-DISTRICT-COUNCIL/WALSALL,30/06/2020,RESOURCES & TRANSFORMATION,PAYPAL *POZZANI PW,29/04/2020,H59620200430FAYRXPJLW-1,-50.98,CENTRAL OFFICE ACCOMMODATION-OPERATIONAL MAINTENANCE,HARDWARE STORES,GPC
WALSALL COUNCIL,HTTP://OPENDATACOMMUNITIES.ORG/ID/METROPOLITAN-DISTRICT-COUNCIL/WALSALL,30/06/2020,CHILDRENS SERVICES,AMZNMKTPLACE AMAZON.CO.UK,29/04/2020,H59620200430JTAPDOPAW-1,6.48,"43A HILTON ROAD, WILLENHALL-PURCHASE OF FURNITURE & EQUIPM",MISCELLANEOUS AND SPECIALTY RETAIL STORES,GPC
WALSALL COUNCIL,HTTP://OPENDATACOMMUNITIES.ORG/ID/METROPOLITAN-DISTRICT-COUNCIL/WALSALL,30/06/2020,RESOURCES & TRANSFORMATION,JOHAL DAIRIES LTD,29/04/2020,H59620200430KXSNKLOPD-1,13.84,CA CASTLEFORT JMI SCHOOL-FOOD & DRINK SUPPLIES,OTHER NONDURABLE GOODS,GPC
WALSALL COUNCIL,HTTP://OPENDATACOMMUNITIES.ORG/ID/METROPOLITAN-DISTRICT-COUNCIL/WALSALL,30/06/2020,CHILDRENS SERVICES,GEN REGISTER OFFICE,29/04/2020,H59620200430LWXFNTNIM-1,14.00,SAFEGUARDING & FAMILY SUPPORT-FEES & LICENCES,GOVERNMENT SERVICES,GPC
WALSALL COUNCIL,HTTP://OPENDATACOMMUNITIES.ORG/ID/METROPOLITAN-DISTRICT-COUNCIL/WALSALL,30/06/2020,RESOURCES & TRANSFORMATION,WWW.SCC.COM,29/04/2020,H59620200430MPVCENHMP-1,176.12,RECHARGEABLE EQUIPMENT-COMPUTER EQUIPMENT,"COMPUTERS, COMPUTER PERIPHERAL EQUIPMENT, SOFTWARE",GPC
WALSALL COUNCIL,HTTP://OPENDATACOMMUNITIES.ORG/ID/METROPOLITAN-DISTRICT-COUNCIL/WALSALL,30/06/2020,RESOURCES & TRANSFORMATION,JOHAL DAIRIES LTD,29/04/2020,H59620200430NWEJVCIZI-1,37.62,CA ELMWOOD SPECIAL SCHOOL-FOOD & DRINK SUPPLIES,OTHER NONDURABLE GOODS,GPC
WALSALL COUNCIL,HTTP://OPENDATACOMMUNITIES.ORG/ID/METROPOLITAN-DISTRICT-COUNCIL/WALSALL,30/06/2020,RESOURCES & TRANSFORMATION,METRO INNS WALSALL,29/04/2020,H59620200430PDDJVIYPW-1,266.00,BED & BREAKFAST PAYMENTS-HOTEL ACCOMMODATION-EMPLOYEES,"HOTELS, MOTELS, RESORTS",GPC
WALSALL COUNCIL,HTTP://OPENDATACOMMUNITIES.ORG/ID/METROPOLITAN-DISTRICT-COUNCIL/WALSALL,30/06/2020,CHILDRENS SERVICES - SCHOOLS,AMAZON.CO.UK*A57I65FC5 AM,29/04/2020,H59620200430PMFDQBFUS-1,19.39,PUPIL PREMIUM-LIBRARY BOOKS,MISCELLANEOUS AND SPECIALTY RETAIL STORES,GPC
WALSALL COUNCIL,HTTP://OPENDATACOMMUNITIES.ORG/ID/METROPOLITAN-DISTRICT-COUNCIL/WALSALL,30/06/2020,CHILDRENS SERVICES - SCHOOLS,THETRAINLINE.COM,29/04/2020,H59620200430SDJSCVXDX-1,-382.50,CADMUS FEDERATION-MATERIALS,PASSENGER RAILWAYS,GPC
WALSALL COUNCIL,HTTP://OPENDATACOMMUNITIES.ORG/ID/METROPOLITAN-DISTRICT-COUNCIL/WALSALL,30/06/2020,CHILDRENS SERVICES,ASDA SUPERSTORE,29/04/2020,H59620200430SDMQJLXHY-1,30.60,REDRUTH ROAD-PURCHASE OF FURNITURE & EQUIPM,GROCERY STORES AND SUPERMARKETS,GPC
WALSALL COUNCIL,HTTP://OPENDATACOMMUNITIES.ORG/ID/METROPOLITAN-DISTRICT-COUNCIL/WALSALL,30/06/2020,ADULT SOCIAL CARE,BAINS CONVENIENCE STORE,29/04/2020,H59620200430SWFYVTXLT-1,10.40,GOSCOTE-FOOD & DRINK SUPPLIES,GROCERY STORES AND SUPERMARKETS,GPC
WALSALL COUNCIL,HTTP://OPENDATACOMMUNITIES.ORG/ID/METROPOLITAN-DISTRICT-COUNCIL/WALSALL,30/06/2020,CHILDRENS SERVICES,ASDA SUPERSTORE,29/04/2020,H59620200430TCQTJXMMR-1,1.00,REDRUTH ROAD-FOOD & DRINK SUPPLIES,GROCERY STORES AND SUPERMARKETS,GPC
WALSALL COUNCIL,HTTP://OPENDATACOMMUNITIES.ORG/ID/METROPOLITAN-DISTRICT-COUNCIL/WALSALL,30/06/2020,CHILDRENS SERVICES,ASDA SUPERSTORE,29/04/2020,H59620200430TCQTJXMMR-2,39.07,REDRUTH ROAD-FOOD & DRINK SUPPLIES,GROCERY STORES AND SUPERMARKETS,GPC
WALSALL COUNCIL,HTTP://OPENDATACOMMUNITIES.ORG/ID/METROPOLITAN-DISTRICT-COUNCIL/WALSALL,30/06/2020,RESOURCES & TRANSFORMATION,KAPLAN FINANCIAL LTD,29/04/2020,H59620200430TGJRWTEXO-1,-275.00,FINANCE TRAINING-EXTERNAL TRAINING,"SCHOOLS, BUSINESS AND SECRETARIAL",GPC
WALSALL COUNCIL,HTTP://OPENDATACOMMUNITIES.ORG/ID/METROPOLITAN-DISTRICT-COUNCIL/WALSALL,30/06/2020,CHILDRENS SERVICES,AMZNMKTPLACE AMAZON.CO.UK,29/04/2020,H59620200430THHMYQHOC-1,-22.99,VIRTUAL SCHOOL - CENTRAL PUPIL-OTHER EXPENSES,MISCELLANEOUS AND SPECIALTY RETAIL STORES,GPC
WALSALL COUNCIL,HTTP://OPENDATACOMMUNITIES.ORG/ID/METROPOLITAN-DISTRICT-COUNCIL/WALSALL,30/06/2020,RESOURCES & TRANSFORMATION,LETTINGS AND MORE,29/04/2020,H59620200430TOXEORNQD-1,670.00,HOMELESS PREVENTION GRANT-RENTS,REAL ESTATE MANAGERS - RENTALS,GPC
WALSALL COUNCIL,HTTP://OPENDATACOMMUNITIES.ORG/ID/METROPOLITAN-DISTRICT-COUNCIL/WALSALL,30/06/2020,RESOURCES & TRANSFORMATION,JOHAL DAIRIES LTD,29/04/2020,H59620200430UIMKMHDFX-1,3.76,CA KINGSHILL SCHOOL-FOOD & DRINK SUPPLIES,OTHER NONDURABLE GOODS,GPC
WALSALL COUNCIL,HTTP://OPENDATACOMMUNITIES.ORG/ID/METROPOLITAN-DISTRICT-COUNCIL/WALSALL,30/06/2020,RESOURCES & TRANSFORMATION,TRAINLINE,29/04/2020,H59620200430UIWKJUJZI-1,-294.00,PREVENT GRANT-OFFICERS & STAFF PUBLIC TRANSP,PASSENGER RAILWAYS,GPC
WALSALL COUNCIL,HTTP://OPENDATACOMMUNITIES.ORG/ID/METROPOLITAN-DISTRICT-COUNCIL/WALSALL,30/06/2020,ECONOMY & ENVIRONMENT,B & Q 1276,29/04/2020,H59620200430UJOFKSITG-1,68.75,INFRASTRUCTURE MAINTENANCE-MATERIALS,HOME SUPPLY WAREHOUSE STORES,GPC
WALSALL COUNCIL,HTTP://OPENDATACOMMUNITIES.ORG/ID/METROPOLITAN-DISTRICT-COUNCIL/WALSALL,30/06/2020,ECONOMY & ENVIRONMENT,WWW.BANNERUK.COM,29/04/2020,H59620200430UYPLFDSBO-1,371.36,CENTRALISED STATIONARY-STATIONERY & GENERAL OFFICE SU,"STATIONERY, OFFICE SUPPLIES AND WRITING PAPER",GPC
WALSALL COUNCIL,HTTP://OPENDATACOMMUNITIES.ORG/ID/METROPOLITAN-DISTRICT-COUNCIL/WALSALL,30/06/2020,RESOURCES & TRANSFORMATION,ARTHUR BRETT CATER,29/04/2020,H59620200430WFIMWDDCE-1,13.34,CA ELMORE GREEN PRIMARY SCHOOL-FOOD & DRINK SUPPLIES,MISCELLANEOUS FOOD STORES & CONVENIENCE STORES,GPC
WALSALL COUNCIL,HTTP://OPENDATACOMMUNITIES.ORG/ID/METROPOLITAN-DISTRICT-COUNCIL/WALSALL,30/06/2020,RESOURCES & TRANSFORMATION,JOHAL DAIRIES LTD,29/04/2020,H59620200430WVTLHONWL-1,34.26,CA ELMORE GREEN PRIMARY SCHOOL-FOOD & DRINK SUPPLIES,OTHER NONDURABLE GOODS,GPC
WALSALL COUNCIL,HTTP://OPENDATACOMMUNITIES.ORG/ID/METROPOLITAN-DISTRICT-COUNCIL/WALSALL,30/06/2020,RESOURCES & TRANSFORMATION,PAYPAL *POZZANI PW,29/04/2020,H59620200430YYYBVQVXT-1,244.94,CENTRAL OFFICE ACCOMMODATION-OPERATIONAL MAINTENANCE,HARDWARE STORES,GPC
WALSALL COUNCIL,HTTP://OPENDATACOMMUNITIES.ORG/ID/METROPOLITAN-DISTRICT-COUNCIL/WALSALL,30/06/2020,CHILDRENS SERVICES,POST OFFICE COUNTER,29/04/2020,H59620200430ZUXSMMDPD-1,3.70,FAMILY PLACEMENTS-POSTAGES & COURIER SERVICES,POSTAL SERVICES - GOVERNMENT ONLY,GPC
WALSALL COUNCIL,HTTP://OPENDATACOMMUNITIES.ORG/ID/METROPOLITAN-DISTRICT-COUNCIL/WALSALL,30/06/2020,RESOURCES & TRANSFORMATION,AMAZON.CO.UK*2M3M267X5,30/04/2020,H59620200501COBLIBGJW-1,33.98,WALSALL CRISIS SUPPORT SCHEME-OTHER EMPLOYEES FEES & EXPENSE,OTHER DIRECT MARKETING-OTHER DIRECT MARKETERS,GPC
WALSALL COUNCIL,HTTP://OPENDATACOMMUNITIES.ORG/ID/METROPOLITAN-DISTRICT-COUNCIL/WALSALL,30/06/2020,CHILDRENS SERVICES,ARGOS LTD,30/04/2020,H59620200501DHUOYILOH-1,35.99,SAFEGUARDING & FAMILY SUPPORT-SECTION 1/17CHILD CARE ACT 198,DISCOUNT STORES,GPC
WALSALL COUNCIL,HTTP://OPENDATACOMMUNITIES.ORG/ID/METROPOLITAN-DISTRICT-COUNCIL/WALSALL,30/06/2020,CHILDRENS SERVICES,AMZNMKTPLACE AMAZON.CO.UK,30/04/2020,H59620200501DQXWNQSIO-1,14.99,FAMILY PLACEMENTS-STATIONERY & GENERAL OFFICE SU,MISCELLANEOUS AND SPECIALTY RETAIL STORES,GPC
WALSALL COUNCIL,HTTP://OPENDATACOMMUNITIES.ORG/ID/METROPOLITAN-DISTRICT-COUNCIL/WALSALL,30/06/2020,CHILDRENS SERVICES,CO-OPERATIVE FOOD,30/04/2020,H59620200501EICVGERLF-1,6.00,PELSALL VILLAGE SCHOOL-FOOD & DRINK SUPPLIES,GROCERY STORES AND SUPERMARKETS,GPC
WALSALL COUNCIL,HTTP://OPENDATACOMMUNITIES.ORG/ID/METROPOLITAN-DISTRICT-COUNCIL/WALSALL,30/06/2020,CHILDRENS SERVICES,CO-OPERATIVE FOOD,30/04/2020,H59620200501EICVGERLF-2,3.10,PELSALL VILLAGE SCHOOL-FOOD & DRINK SUPPLIES,GROCERY STORES AND SUPERMARKETS,GPC
WALSALL COUNCIL,HTTP://OPENDATACOMMUNITIES.ORG/ID/METROPOLITAN-DISTRICT-COUNCIL/WALSALL,30/06/2020,CHILDRENS SERVICES,ARGOS LTD,30/04/2020,H59620200501FEIQVLSTG-1,203.94,SUPPORT UNDER SECT 23 OF THE C-SUPPORT UNDER SECTION 23 OF TH,DISCOUNT STORES,GPC
WALSALL COUNCIL,HTTP://OPENDATACOMMUNITIES.ORG/ID/METROPOLITAN-DISTRICT-COUNCIL/WALSALL,30/06/2020,CHILDRENS SERVICES,AMZNMKTPLACE AMAZON.CO.UK,30/04/2020,H59620200501FJUNYLWNH-1,21.97,FAMILY PLACEMENTS-STATIONERY & GENERAL OFFICE SU,MISCELLANEOUS AND SPECIALTY RETAIL STORES,GPC
WALSALL COUNCIL,HTTP://OPENDATACOMMUNITIES.ORG/ID/METROPOLITAN-DISTRICT-COUNCIL/WALSALL,30/06/2020,RESOURCES & TRANSFORMATION,POUNDSTRETCHER 772,30/04/2020,H59620200501GDJTEQQOE-1,8.97,HOMELESSNESS PREVENTION STRATE-PURCHASE OF FURNITURE & EQUIPM,VARIETY STORES,GPC
WALSALL COUNCIL,HTTP://OPENDATACOMMUNITIES.ORG/ID/METROPOLITAN-DISTRICT-COUNCIL/WALSALL,30/06/2020,RESOURCES & TRANSFORMATION,METRO INNS WALSALL,30/04/2020,H59620200501GLDXAIXGD-1,266.00,BED & BREAKFAST PAYMENTS-BED & BREAKFAST PAYMENTS,"HOTELS, MOTELS, RESORTS",GPC
WALSALL COUNCIL,HTTP://OPENDATACOMMUNITIES.ORG/ID/METROPOLITAN-DISTRICT-COUNCIL/WALSALL,30/06/2020,CHILDRENS SERVICES,ARGOS LTD,30/04/2020,H59620200501IGKDUDLXR-1,393.93,VIRTUAL SCHOOL - CENTRAL PUPIL-OTHER EXPENSES,DISCOUNT STORES,GPC
WALSALL COUNCIL,HTTP://OPENDATACOMMUNITIES.ORG/ID/METROPOLITAN-DISTRICT-COUNCIL/WALSALL,30/06/2020,CHILDRENS SERVICES,ARGOS LTD,30/04/2020,H59620200501IYURVNBSV-1,30.94,TRANSITION AND LEAVING CARE PL-CARE LEAVERS MTCE PAYMENTS,DISCOUNT STORES,GPC
WALSALL COUNCIL,HTTP://OPENDATACOMMUNITIES.ORG/ID/METROPOLITAN-DISTRICT-COUNCIL/WALSALL,30/06/2020,RESOURCES & TRANSFORMATION,NCS*CIMA VUE EXAM,30/04/2020,H59620200501KEETXWBEV-1,275.00,FINANCE TRAINING-EXTERNAL TRAINING,OTHER SCHOOLS AND EDUCATIONAL SERVICES,GPC
WALSALL COUNCIL,HTTP://OPENDATACOMMUNITIES.ORG/ID/METROPOLITAN-DISTRICT-COUNCIL/WALSALL,30/06/2020,CHILDRENS SERVICES,PLANBEE,30/04/2020,H59620200501KTWFUQBPK-1,116.00,WALSALL WOOD PRIMARY SCHOOL-EXTERNAL TRAINING,BOOK STORES,GPC
WALSALL COUNCIL,HTTP://OPENDATACOMMUNITIES.ORG/ID/METROPOLITAN-DISTRICT-COUNCIL/WALSALL,30/06/2020,RESOURCES & TRANSFORMATION,COBDEN HOTEL LIMITED,30/04/2020,H59620200501KVEVOHQQI-1,385.00,ACCOMMODATION SERVICES MANAGEM-BED & BREAKFAST PAYMENTS,"HOTELS, MOTELS, RESORTS",GPC
WALSALL COUNCIL,HTTP://OPENDATACOMMUNITIES.ORG/ID/METROPOLITAN-DISTRICT-COUNCIL/WALSALL,30/06/2020,ECONOMY & ENVIRONMENT,AK HARDWARE & PLUMBING,30/04/2020,H59620200501MFDRGTFRR-1,45.00,LEATHER MUSEUM-MATERIALS,HARDWARE STORES,GPC
